Organisation Name,Organisation Code,Unique Ref No,Effective Date,Directorate  where expenditure incurred,Supplier name ,Payment Date,Net Amount,Purpose of Spend,Procurement Classification (Higher Level),Procurement Classification (Lower Level),Capital/Revenue
Walsall Council,http://opendatacommunities.org/id/metropolitan-district-council/walsall,WC81-1,30/06/2017,Economy & Environment,11KBW,08/06/2017,"1,500.00",73014-LEGAL FEES-PRIV CONTRACTOR FEES,CEMETERIES CENTRAL ADMINISTRATION,Third Party Payments,Revenue
Walsall Council,http://opendatacommunities.org/id/metropolitan-district-council/walsall,WC81-2,30/06/2017,Economy & Environment,4IMPRINT,14/06/2017,326.47,68001-PUBLICITY & ADVERTISING (NOT STAFF ADVERTISING),YEI (IMPACT) PROGRAMME,Supplies & Services,Revenue
Walsall Council,http://opendatacommunities.org/id/metropolitan-district-council/walsall,WC81-3,30/06/2017,Economy & Environment,4IMPRINT,14/06/2017,326.48,68001-PUBLICITY & ADVERTISING (NOT STAFF ADVERTISING),YEI ESF FUNDING,Supplies & Services,Revenue
Walsall Council,http://opendatacommunities.org/id/metropolitan-district-council/walsall,WC81-4,30/06/2017,Childrens,5 CARE SERVICES LTD,21/06/2017,806.00,63000-PROFESSIONAL FEES AND SERVICES,DIRECTLY COMMISSIONED NURSING SERVICES,Supplies & Services,Revenue
Walsall Council,http://opendatacommunities.org/id/metropolitan-district-council/walsall,WC81-5,30/06/2017,Childrens,5 CARE SERVICES LTD,21/06/2017,"1,287.00",63000-PROFESSIONAL FEES AND SERVICES,DIRECTLY COMMISSIONED NURSING SERVICES,Supplies & Services,Revenue
Walsall Council,http://opendatacommunities.org/id/metropolitan-district-council/walsall,WC81-6,30/06/2017,Childrens,5 CARE SERVICES LTD,21/06/2017,"1,683.50",63000-PROFESSIONAL FEES AND SERVICES,DIRECTLY COMMISSIONED NURSING SERVICES,Supplies & Services,Revenue
Walsall Council,http://opendatacommunities.org/id/metropolitan-district-council/walsall,WC81-7,30/06/2017,Adult Social Care,5 CARE SERVICES LTD,21/06/2017,"42,398.98",73372-DOMICILIARY CARE,OP COMMISSIONING,Third Party Payments,Revenue
Walsall Council,http://opendatacommunities.org/id/metropolitan-district-council/walsall,WC81-8,30/06/2017,Economy & Environment,A ASHTON,14/06/2017,250.00,60500-GENERAL MATERIALS,COMMUNITY LIAISON,Supplies & Services,Revenue
Walsall Council,http://opendatacommunities.org/id/metropolitan-district-council/walsall,WC81-9,30/06/2017,Economy & Environment,A D T FIRE AND SECURITY PLC,01/06/2017,270.00,60008-MAINTENANCE-FURNITURE & EQUIPMENT,LOCAL HISTORY CENTRE,Supplies & Services,Revenue
Walsall Council,http://opendatacommunities.org/id/metropolitan-district-council/walsall,WC81-10,30/06/2017,Childrens,A D T FIRE AND SECURITY PLC,13/06/2017,536.50,"40000-REPAIRS,ALTERATIONS & MAINTENANCE-PREM","43A HILTON ROAD, WILLENHALL",Premises,Revenue
Walsall Council,http://opendatacommunities.org/id/metropolitan-district-council/walsall,WC81-11,30/06/2017,Economy & Environment,A F BLAKEMORE & SON LTD,09/06/2017,244.60,61001-FROZEN FOODS-PROVISIONS,BLOXWICH LEISURE CENTRE,Supplies & Services,Revenue
Walsall Council,http://opendatacommunities.org/id/metropolitan-district-council/walsall,WC81-12,30/06/2017,Economy & Environment,A F BLAKEMORE & SON LTD,02/06/2017,250.65,61008-CONFECTIONERY/SNACKS-PROVISIONS,WALSALL GALA CENTRE,Supplies & Services,Revenue
Walsall Council,http://opendatacommunities.org/id/metropolitan-district-council/walsall,WC81-13,30/06/2017,Economy & Environment,A F BLAKEMORE & SON LTD,02/06/2017,294.26,61018-DRINKS-PROVISIONS,WALSALL GALA CENTRE,Supplies & Services,Revenue
Walsall Council,http://opendatacommunities.org/id/metropolitan-district-council/walsall,WC81-14,30/06/2017,Economy & Environment,A F BLAKEMORE & SON LTD,20/06/2017,317.32,61006-FRUIT & VEGETABLES OTHER-PROVISIONS,OAK PARK,Supplies & Services,Revenue
Walsall Council,http://opendatacommunities.org/id/metropolitan-district-council/walsall,WC81-15,30/06/2017,Adult Social Care,A F BLAKEMORE & SON LTD,28/06/2017,361.44,61016-FOOD AND BEVERAGES-PROVISIONS,GOSCOTE,Supplies & Services,Revenue
Walsall Council,http://opendatacommunities.org/id/metropolitan-district-council/walsall,WC81-16,30/06/2017,Adult Social Care,A F BLAKEMORE & SON LTD,09/06/2017,363.71,61016-FOOD AND BEVERAGES-PROVISIONS,GOSCOTE,Supplies & Services,Revenue
Walsall Council,http://opendatacommunities.org/id/metropolitan-district-council/walsall,WC81-17,30/06/2017,Economy & Environment,A F BLAKEMORE & SON LTD,14/06/2017,414.80,61018-DRINKS-PROVISIONS,DARLASTON LEISURE CENTRE,Supplies & Services,Revenue
Walsall Council,http://opendatacommunities.org/id/metropolitan-district-council/walsall,WC81-18,30/06/2017,Economy & Environment,A F BLAKEMORE & SON LTD,14/06/2017,449.60,61008-CONFECTIONERY/SNACKS-PROVISIONS,DARLASTON LEISURE CENTRE,Supplies & Services,Revenue
Walsall Council,http://opendatacommunities.org/id/metropolitan-district-council/walsall,WC81-19,30/06/2017,Economy & Environment,A F BLAKEMORE & SON LTD,02/06/2017,578.96,61008-CONFECTIONERY/SNACKS-PROVISIONS,OAK PARK,Supplies & Services,Revenue
Walsall Council,http://opendatacommunities.org/id/metropolitan-district-council/walsall,WC81-20,30/06/2017,Adult Social Care,A F BLAKEMORE & SON LTD,06/06/2017,647.65,61016-FOOD AND BEVERAGES-PROVISIONS,GOSCOTE,Supplies & Services,Revenue
Walsall Council,http://opendatacommunities.org/id/metropolitan-district-council/walsall,WC81-21,30/06/2017,Adult Social Care,A F BLAKEMORE & SON LTD,02/06/2017,743.23,61016-FOOD AND BEVERAGES-PROVISIONS,REABLEMENT TEAM - HOLLY BANK,Supplies & Services,Revenue
Walsall Council,http://opendatacommunities.org/id/metropolitan-district-council/walsall,WC81-22,30/06/2017,Economy & Environment,A F BLAKEMORE & SON LTD,20/06/2017,"1,029.69",61008-CONFECTIONERY/SNACKS-PROVISIONS,OAK PARK,Supplies & Services,Revenue
Walsall Council,http://opendatacommunities.org/id/metropolitan-district-council/walsall,WC81-23,30/06/2017,Economy & Environment,A F BLAKEMORE & SON LTD,09/06/2017,"1,183.98",61002-DRY FOODS-PROVISIONS,BLOXWICH LEISURE CENTRE,Supplies & Services,Revenue
Walsall Council,http://opendatacommunities.org/id/metropolitan-district-council/walsall,WC81-24,30/06/2017,Economy & Environment,A KARIMS CHUCKERY PHARMACY,13/06/2017,604.81,71007-CONTRIBUTION TO PCT,PUBLIC HEALTH BUSINESS SUPPORT,Third Party Payments,Revenue
Walsall Council,http://opendatacommunities.org/id/metropolitan-district-council/walsall,WC81-25,30/06/2017,Economy & Environment,A KARIMS CHUCKERY PHARMACY,22/06/2017,"2,080.46",71007-CONTRIBUTION TO PCT,PUBLIC HEALTH BUSINESS SUPPORT,Third Party Payments,Revenue
Walsall Council,http://opendatacommunities.org/id/metropolitan-district-council/walsall,WC81-26,30/06/2017,Childrens,REDACTED,14/06/2017,696.18,76422-DIRECT PAYMENTS TO SOCIAL SERVICES CLIENTS,FAMILY SUPPORT - DIRECT PAYMENTS,Transfer Payments,Revenue
Walsall Council,http://opendatacommunities.org/id/metropolitan-district-council/walsall,WC81-27,30/06/2017,Adult Social Care,ABBEY COURT NURSING & RESIDEN,13/06/2017,"1,728.77",73373-RESIDENTIAL & NURSING CARE PLACEMENTS,OP COMMISSIONING,Third Party Payments,Revenue
Walsall Council,http://opendatacommunities.org/id/metropolitan-district-council/walsall,WC81-28,30/06/2017,Adult Social Care,ABBEY COURT NURSING & RESIDEN,13/06/2017,"1,728.77",73373-RESIDENTIAL & NURSING CARE PLACEMENTS,OP COMMISSIONING,Third Party Payments,Revenue
Walsall Council,http://opendatacommunities.org/id/metropolitan-district-council/walsall,WC81-29,30/06/2017,Adult Social Care,ABBEY COURT NURSING & RESIDEN,13/06/2017,"1,818.30",73373-RESIDENTIAL & NURSING CARE PLACEMENTS,OP COMMISSIONING,Third Party Payments,Revenue
Walsall Council,http://opendatacommunities.org/id/metropolitan-district-council/walsall,WC81-30,30/06/2017,Adult Social Care,ABBEY COURT NURSING & RESIDEN,13/06/2017,"1,822.16",73373-RESIDENTIAL & NURSING CARE PLACEMENTS,MH COMMISSIONING,Third Party Payments,Revenue
Walsall Council,http://opendatacommunities.org/id/metropolitan-district-council/walsall,WC81-31,30/06/2017,Adult Social Care,ABBEY COURT NURSING & RESIDEN,13/06/2017,"2,075.44",73373-RESIDENTIAL & NURSING CARE PLACEMENTS,OP COMMISSIONING,Third Party Payments,Revenue
Walsall Council,http://opendatacommunities.org/id/metropolitan-district-council/walsall,WC81-32,30/06/2017,Childrens,ABC FOSTERING,19/06/2017,"2,635.20",74037-INDEPENDENT FOSTER CARE-OTH AGENCY PROVISION,EXTERNAL FOSTER CARE PROVISION,Third Party Payments,Revenue
Walsall Council,http://opendatacommunities.org/id/metropolitan-district-council/walsall,WC81-33,30/06/2017,Childrens,ABC FOSTERING,19/06/2017,"2,635.20",74037-INDEPENDENT FOSTER CARE-OTH AGENCY PROVISION,EXTERNAL FOSTER CARE PROVISION,Third Party Payments,Revenue
Walsall Council,http://opendatacommunities.org/id/metropolitan-district-council/walsall,WC81-34,30/06/2017,Childrens,ABC FOSTERING,19/06/2017,"2,880.00",74037-INDEPENDENT FOSTER CARE-OTH AGENCY PROVISION,EXTERNAL FOSTER CARE PROVISION,Third Party Payments,Revenue
Walsall Council,http://opendatacommunities.org/id/metropolitan-district-council/walsall,WC81-35,30/06/2017,Childrens,ABC FOSTERING,19/06/2017,"3,042.00",74037-INDEPENDENT FOSTER CARE-OTH AGENCY PROVISION,EXTERNAL FOSTER CARE PROVISION,Third Party Payments,Revenue
Walsall Council,http://opendatacommunities.org/id/metropolitan-district-council/walsall,WC81-36,30/06/2017,Childrens,ABC FOSTERING,19/06/2017,"3,182.40",74037-INDEPENDENT FOSTER CARE-OTH AGENCY PROVISION,EXTERNAL FOSTER CARE PROVISION,Third Party Payments,Revenue
Walsall Council,http://opendatacommunities.org/id/metropolitan-district-council/walsall,WC81-37,30/06/2017,Adult Social Care,REDACTED,14/06/2017,"1,947.10",76422-DIRECT PAYMENTS TO SOCIAL SERVICES CLIENTS,LD COMMISSIONING,Transfer Payments,Revenue
Walsall Council,http://opendatacommunities.org/id/metropolitan-district-council/walsall,WC81-38,30/06/2017,Adult Social Care,REDACTED,14/06/2017,"2,947.49",76422-DIRECT PAYMENTS TO SOCIAL SERVICES CLIENTS,LD COMMISSIONING,Transfer Payments,Revenue
Walsall Council,http://opendatacommunities.org/id/metropolitan-district-council/walsall,WC81-39,30/06/2017,Childrens,ABLEWELL CARS,01/06/2017,"1,219.00",52000-WITH DRIVER-HIRE OF VEHICLES,SCHOOL TRANSPORT,Transport,Revenue
Walsall Council,http://opendatacommunities.org/id/metropolitan-district-council/walsall,WC81-40,30/06/2017,Economy & Environment,ABRSM,12/06/2017,"4,270.00",63000-PROFESSIONAL FEES AND SERVICES,MUSIC HUB FOREST ARTS,Supplies & Services,Revenue
Walsall Council,http://opendatacommunities.org/id/metropolitan-district-council/walsall,WC81-41,30/06/2017,Economy & Environment,AC COACHING & SPORTS DEVELOPMENT LIMITED,09/06/2017,390.00,63000-PROFESSIONAL FEES AND SERVICES,SPORTS COACHING,Supplies & Services,Revenue
Walsall Council,http://opendatacommunities.org/id/metropolitan-district-council/walsall,WC81-42,30/06/2017,Adult Social Care,ACCORD HOUSING ASSOCIATION LTD#135,19/06/2017,267.12,73374-SUPPORTED & OTHER ACCOMMODATION,MH COMMISSIONING,Third Party Payments,Revenue
Walsall Council,http://opendatacommunities.org/id/metropolitan-district-council/walsall,WC81-43,30/06/2017,Adult Social Care,ACCORD HOUSING ASSOCIATION LTD#135,19/06/2017,319.06,73374-SUPPORTED & OTHER ACCOMMODATION,MH COMMISSIONING,Third Party Payments,Revenue
Walsall Council,http://opendatacommunities.org/id/metropolitan-district-council/walsall,WC81-44,30/06/2017,Adult Social Care,ACCORD HOUSING ASSOCIATION LTD#135,02/06/2017,346.48,73374-SUPPORTED & OTHER ACCOMMODATION,MH COMMISSIONING,Third Party Payments,Revenue
Walsall Council,http://opendatacommunities.org/id/metropolitan-district-council/walsall,WC81-45,30/06/2017,Adult Social Care,ACCORD HOUSING ASSOCIATION LTD#135,23/06/2017,578.25,73374-SUPPORTED & OTHER ACCOMMODATION,LD COMMISSIONING,Third Party Payments,Revenue
Walsall Council,http://opendatacommunities.org/id/metropolitan-district-council/walsall,WC81-46,30/06/2017,Adult Social Care,ACCORD HOUSING ASSOCIATION LTD#135,19/06/2017,598.20,73374-SUPPORTED & OTHER ACCOMMODATION,MH COMMISSIONING,Third Party Payments,Revenue
Walsall Council,http://opendatacommunities.org/id/metropolitan-district-council/walsall,WC81-47,30/06/2017,Adult Social Care,ACCORD HOUSING ASSOCIATION LTD#135,19/06/2017,604.48,73374-SUPPORTED & OTHER ACCOMMODATION,MH COMMISSIONING,Third Party Payments,Revenue
Walsall Council,http://opendatacommunities.org/id/metropolitan-district-council/walsall,WC81-48,30/06/2017,Adult Social Care,ACCORD HOUSING ASSOCIATION LTD#135,21/06/2017,724.45,73372-DOMICILIARY CARE,OP COMMISSIONING,Third Party Payments,Revenue
Walsall Council,http://opendatacommunities.org/id/metropolitan-district-council/walsall,WC81-49,30/06/2017,Adult Social Care,ACCORD HOUSING ASSOCIATION LTD#135,19/06/2017,801.36,73374-SUPPORTED & OTHER ACCOMMODATION,OP COMMISSIONING,Third Party Payments,Revenue
Walsall Council,http://opendatacommunities.org/id/metropolitan-district-council/walsall,WC81-50,30/06/2017,Adult Social Care,ACCORD HOUSING ASSOCIATION LTD#135,19/06/2017,868.92,73374-SUPPORTED & OTHER ACCOMMODATION,MH COMMISSIONING,Third Party Payments,Revenue
Walsall Council,http://opendatacommunities.org/id/metropolitan-district-council/walsall,WC81-51,30/06/2017,Adult Social Care,ACCORD HOUSING ASSOCIATION LTD#135,19/06/2017,"1,038.92",73374-SUPPORTED & OTHER ACCOMMODATION,MH COMMISSIONING,Third Party Payments,Revenue
Walsall Council,http://opendatacommunities.org/id/metropolitan-district-council/walsall,WC81-52,30/06/2017,Adult Social Care,ACCORD HOUSING ASSOCIATION LTD#135,19/06/2017,"1,133.40",73374-SUPPORTED & OTHER ACCOMMODATION,MH COMMISSIONING,Third Party Payments,Revenue
Walsall Council,http://opendatacommunities.org/id/metropolitan-district-council/walsall,WC81-53,30/06/2017,Adult Social Care,ACCORD HOUSING ASSOCIATION LTD#135,19/06/2017,"1,322.28",73374-SUPPORTED & OTHER ACCOMMODATION,MH COMMISSIONING,Third Party Payments,Revenue
Walsall Council,http://opendatacommunities.org/id/metropolitan-district-council/walsall,WC81-54,30/06/2017,Adult Social Care,ACCORD HOUSING ASSOCIATION LTD#135,19/06/2017,"1,341.16",73374-SUPPORTED & OTHER ACCOMMODATION,MH COMMISSIONING,Third Party Payments,Revenue
Walsall Council,http://opendatacommunities.org/id/metropolitan-district-council/walsall,WC81-55,30/06/2017,Adult Social Care,ACCORD HOUSING ASSOCIATION LTD#135,19/06/2017,"1,473.40",73374-SUPPORTED & OTHER ACCOMMODATION,MH COMMISSIONING,Third Party Payments,Revenue
Walsall Council,http://opendatacommunities.org/id/metropolitan-district-council/walsall,WC81-56,30/06/2017,Adult Social Care,ACCORD HOUSING ASSOCIATION LTD#135,19/06/2017,"1,567.84",73374-SUPPORTED & OTHER ACCOMMODATION,MH COMMISSIONING,Third Party Payments,Revenue
Walsall Council,http://opendatacommunities.org/id/metropolitan-district-council/walsall,WC81-57,30/06/2017,Adult Social Care,ACCORD HOUSING ASSOCIATION LTD#135,13/06/2017,"4,285.72",73373-RESIDENTIAL & NURSING CARE PLACEMENTS,LD COMMISSIONING,Third Party Payments,Revenue
Walsall Council,http://opendatacommunities.org/id/metropolitan-district-council/walsall,WC81-58,30/06/2017,Adult Social Care,ACCORD HOUSING ASSOCIATION LTD#135,13/06/2017,"4,285.72",73373-RESIDENTIAL & NURSING CARE PLACEMENTS,LD COMMISSIONING,Third Party Payments,Revenue
Walsall Council,http://opendatacommunities.org/id/metropolitan-district-council/walsall,WC81-59,30/06/2017,Adult Social Care,ACCORD HOUSING ASSOCIATION LTD#135,13/06/2017,"4,285.72",73373-RESIDENTIAL & NURSING CARE PLACEMENTS,LD COMMISSIONING,Third Party Payments,Revenue
Walsall Council,http://opendatacommunities.org/id/metropolitan-district-council/walsall,WC81-60,30/06/2017,Adult Social Care,ACCORD HOUSING ASSOCIATION LTD#135,13/06/2017,"4,285.72",73373-RESIDENTIAL & NURSING CARE PLACEMENTS,LD COMMISSIONING,Third Party Payments,Revenue
Walsall Council,http://opendatacommunities.org/id/metropolitan-district-council/walsall,WC81-61,30/06/2017,Adult Social Care,ACCORD HOUSING ASSOCIATION LTD#135,13/06/2017,"5,560.80",73373-RESIDENTIAL & NURSING CARE PLACEMENTS,LD COMMISSIONING,Third Party Payments,Revenue
Walsall Council,http://opendatacommunities.org/id/metropolitan-district-council/walsall,WC81-62,30/06/2017,Adult Social Care,ACCORD HOUSING ASSOCIATION LTD#135,13/06/2017,"5,981.48",73373-RESIDENTIAL & NURSING CARE PLACEMENTS,LD COMMISSIONING,Third Party Payments,Revenue
Walsall Council,http://opendatacommunities.org/id/metropolitan-district-council/walsall,WC81-63,30/06/2017,Adult Social Care,ACCORD HOUSING ASSOCIATION LTD#135,13/06/2017,"5,981.48",73373-RESIDENTIAL & NURSING CARE PLACEMENTS,LD COMMISSIONING,Third Party Payments,Revenue
Walsall Council,http://opendatacommunities.org/id/metropolitan-district-council/walsall,WC81-64,30/06/2017,Adult Social Care,ACCORD HOUSING ASSOCIATION LTD#135,13/06/2017,"5,981.48",73373-RESIDENTIAL & NURSING CARE PLACEMENTS,LD COMMISSIONING,Third Party Payments,Revenue
Walsall Council,http://opendatacommunities.org/id/metropolitan-district-council/walsall,WC81-65,30/06/2017,Adult Social Care,ACCORD HOUSING ASSOCIATION LTD#135,21/06/2017,"6,408.73",73373-RESIDENTIAL & NURSING CARE PLACEMENTS,LD COMMISSIONING,Third Party Payments,Revenue
Walsall Council,http://opendatacommunities.org/id/metropolitan-district-council/walsall,WC81-66,30/06/2017,Childrens,ACCORD HOUSING ASSOCIATION LTD#135,21/06/2017,"6,655.50",63102-CONSULTANTS FEES - CORPORATE,TOXIC TRIO,Supplies & Services,Revenue
Walsall Council,http://opendatacommunities.org/id/metropolitan-district-council/walsall,WC81-67,30/06/2017,Adult Social Care,ACCORD HOUSING ASSOCIATION LTD#135,21/06/2017,"31,814.75",73372-DOMICILIARY CARE,OP COMMISSIONING,Third Party Payments,Revenue
Walsall Council,http://opendatacommunities.org/id/metropolitan-district-council/walsall,WC81-68,30/06/2017,Adult Social Care,ACCORD HOUSING ASSOCIATION LTD#135,07/06/2017,"59,721.47",73365-BLOCK GROSS-SUPPORTING PEOPLE,OLDER PEOPLES CONTRACTS/SLA,Third Party Payments,Revenue
Walsall Council,http://opendatacommunities.org/id/metropolitan-district-council/walsall,WC81-69,30/06/2017,Adult Social Care,ACE CARE AGENCY,07/06/2017,366.09,73372-DOMICILIARY CARE,OP COMMISSIONING,Third Party Payments,Revenue
Walsall Council,http://opendatacommunities.org/id/metropolitan-district-council/walsall,WC81-70,30/06/2017,Adult Social Care,ACE CARE AGENCY,07/06/2017,593.49,73372-DOMICILIARY CARE,OP COMMISSIONING,Third Party Payments,Revenue
Walsall Council,http://opendatacommunities.org/id/metropolitan-district-council/walsall,WC81-71,30/06/2017,Adult Social Care,ACE CARE AGENCY,07/06/2017,607.05,73372-DOMICILIARY CARE,OP COMMISSIONING,Third Party Payments,Revenue
Walsall Council,http://opendatacommunities.org/id/metropolitan-district-council/walsall,WC81-72,30/06/2017,Adult Social Care,ACE CARE AGENCY,07/06/2017,819.00,73372-DOMICILIARY CARE,OP COMMISSIONING,Third Party Payments,Revenue
Walsall Council,http://opendatacommunities.org/id/metropolitan-district-council/walsall,WC81-73,30/06/2017,Adult Social Care,ACEPAY LTD (COTTAGE NUR HOME),21/06/2017,"-3,005.99",73373-RESIDENTIAL & NURSING CARE PLACEMENTS,OP COMMISSIONING,Third Party Payments,Revenue
Walsall Council,http://opendatacommunities.org/id/metropolitan-district-council/walsall,WC81-74,30/06/2017,Adult Social Care,ACEPAY LTD (COTTAGE NUR HOME),21/06/2017,"-1,381.13",73373-RESIDENTIAL & NURSING CARE PLACEMENTS,OP COMMISSIONING,Third Party Payments,Revenue
Walsall Council,http://opendatacommunities.org/id/metropolitan-district-council/walsall,WC81-75,30/06/2017,Adult Social Care,ACEPAY LTD (COTTAGE NUR HOME),27/06/2017,"1,028.48",73373-RESIDENTIAL & NURSING CARE PLACEMENTS,OP COMMISSIONING,Third Party Payments,Revenue
Walsall Council,http://opendatacommunities.org/id/metropolitan-district-council/walsall,WC81-76,30/06/2017,Adult Social Care,ACEPAY LTD (COTTAGE NUR HOME),06/06/2017,"2,270.00",73373-RESIDENTIAL & NURSING CARE PLACEMENTS,OP COMMISSIONING,Third Party Payments,Revenue
Walsall Council,http://opendatacommunities.org/id/metropolitan-district-council/walsall,WC81-77,30/06/2017,Adult Social Care,ACEPAY LTD (COTTAGE NUR HOME),06/06/2017,"2,270.00",73373-RESIDENTIAL & NURSING CARE PLACEMENTS,OP COMMISSIONING,Third Party Payments,Revenue
Walsall Council,http://opendatacommunities.org/id/metropolitan-district-council/walsall,WC81-78,30/06/2017,Adult Social Care,ACEPAY LTD (COTTAGE NUR HOME),06/06/2017,"2,270.00",73373-RESIDENTIAL & NURSING CARE PLACEMENTS,OP COMMISSIONING,Third Party Payments,Revenue
Walsall Council,http://opendatacommunities.org/id/metropolitan-district-council/walsall,WC81-79,30/06/2017,Adult Social Care,ACEPAY LTD (COTTAGE NUR HOME),27/06/2017,"2,270.00",73373-RESIDENTIAL & NURSING CARE PLACEMENTS,OP COMMISSIONING,Third Party Payments,Revenue
Walsall Council,http://opendatacommunities.org/id/metropolitan-district-council/walsall,WC81-80,30/06/2017,Adult Social Care,ACEPAY LTD (COTTAGE NUR HOME),27/06/2017,"2,270.00",73373-RESIDENTIAL & NURSING CARE PLACEMENTS,OP COMMISSIONING,Third Party Payments,Revenue
Walsall Council,http://opendatacommunities.org/id/metropolitan-district-council/walsall,WC81-81,30/06/2017,Adult Social Care,ACEPAY LTD (COTTAGE NUR HOME),27/06/2017,"2,270.00",73373-RESIDENTIAL & NURSING CARE PLACEMENTS,OP COMMISSIONING,Third Party Payments,Revenue
Walsall Council,http://opendatacommunities.org/id/metropolitan-district-council/walsall,WC81-82,30/06/2017,Adult Social Care,ACEPAY LTD (COTTAGE NUR HOME),06/06/2017,"2,316.00",73373-RESIDENTIAL & NURSING CARE PLACEMENTS,OP COMMISSIONING,Third Party Payments,Revenue
Walsall Council,http://opendatacommunities.org/id/metropolitan-district-council/walsall,WC81-83,30/06/2017,Adult Social Care,ACEPAY LTD (COTTAGE NUR HOME),13/06/2017,"2,316.00",73373-RESIDENTIAL & NURSING CARE PLACEMENTS,OP COMMISSIONING,Third Party Payments,Revenue
Walsall Council,http://opendatacommunities.org/id/metropolitan-district-council/walsall,WC81-84,30/06/2017,Adult Social Care,ACEPAY LTD (COTTAGE NUR HOME),27/06/2017,"2,316.00",73373-RESIDENTIAL & NURSING CARE PLACEMENTS,OP COMMISSIONING,Third Party Payments,Revenue
Walsall Council,http://opendatacommunities.org/id/metropolitan-district-council/walsall,WC81-85,30/06/2017,Adult Social Care,ACEPAY LTD (COTTAGE NUR HOME),27/06/2017,"2,316.00",73373-RESIDENTIAL & NURSING CARE PLACEMENTS,OP COMMISSIONING,Third Party Payments,Revenue
Walsall Council,http://opendatacommunities.org/id/metropolitan-district-council/walsall,WC81-86,30/06/2017,Adult Social Care,ACORN CARE LTD,27/06/2017,-489.49,73373-RESIDENTIAL & NURSING CARE PLACEMENTS,LD COMMISSIONING,Third Party Payments,Revenue
Walsall Council,http://opendatacommunities.org/id/metropolitan-district-council/walsall,WC81-87,30/06/2017,Adult Social Care,ACORN REST HOME,13/06/2017,"1,620.00",73373-RESIDENTIAL & NURSING CARE PLACEMENTS,OP COMMISSIONING,Third Party Payments,Revenue
Walsall Council,http://opendatacommunities.org/id/metropolitan-district-council/walsall,WC81-88,30/06/2017,Childrens,ACORNS CHILDRENS HOSPICE TRUST,09/06/2017,750.00,63000-PROFESSIONAL FEES AND SERVICES,DIRECTLY COMMISSIONED NURSING SERVICES,Supplies & Services,Revenue
Walsall Council,http://opendatacommunities.org/id/metropolitan-district-council/walsall,WC81-89,30/06/2017,Childrens,ACORNS CHILDRENS HOSPICE TRUST,19/06/2017,750.00,63000-PROFESSIONAL FEES AND SERVICES,DIRECTLY COMMISSIONED NURSING SERVICES,Supplies & Services,Revenue
Walsall Council,http://opendatacommunities.org/id/metropolitan-district-council/walsall,WC81-90,30/06/2017,Economy & Environment,ACTION DIGITAL MEDIA LTD,07/06/2017,436.00,"62521-INTERPRETATION,TRANSLATION & HUMAN AIDS TO TRANSCRIPTION",NAG - TEMPORARY EXHIBITIONS,Supplies & Services,Revenue
Walsall Council,http://opendatacommunities.org/id/metropolitan-district-council/walsall,WC81-91,30/06/2017,Adult Social Care,ACTON BANKS LTD,23/06/2017,424.02,34305-AGENCY STAFF-EMPLOYEES,GOSCOTE,Employees,Revenue
Walsall Council,http://opendatacommunities.org/id/metropolitan-district-council/walsall,WC81-92,30/06/2017,Adult Social Care,ACTON BANKS LTD,28/06/2017,676.14,34305-AGENCY STAFF-EMPLOYEES,GOSCOTE,Employees,Revenue
Walsall Council,http://opendatacommunities.org/id/metropolitan-district-council/walsall,WC81-93,30/06/2017,Adult Social Care,ACTON BANKS LTD,06/06/2017,733.44,34305-AGENCY STAFF-EMPLOYEES,GOSCOTE,Employees,Revenue
Walsall Council,http://opendatacommunities.org/id/metropolitan-district-council/walsall,WC81-94,30/06/2017,Adult Social Care,ACTON BANKS LTD,14/06/2017,848.04,34305-AGENCY STAFF-EMPLOYEES,GOSCOTE,Employees,Revenue
Walsall Council,http://opendatacommunities.org/id/metropolitan-district-council/walsall,WC81-95,30/06/2017,Adult Social Care,ACTON BANKS LTD,14/06/2017,"1,382.22",34305-AGENCY STAFF-EMPLOYEES,REABLEMENT TEAM - HOLLY BANK,Employees,Revenue
Walsall Council,http://opendatacommunities.org/id/metropolitan-district-council/walsall,WC81-96,30/06/2017,Adult Social Care,ACTON BANKS LTD,23/06/2017,"1,415.31",73025-PROFESSIONAL SERVICES-PRIV CONTRACTOR & OTHER AGENCIES,REABLEMENT TEAM - HOLLY BANK,Third Party Payments,Revenue
Walsall Council,http://opendatacommunities.org/id/metropolitan-district-council/walsall,WC81-97,30/06/2017,Adult Social Care,ACTON BANKS LTD,02/06/2017,"1,969.56",34305-AGENCY STAFF-EMPLOYEES,REABLEMENT TEAM - HOLLY BANK,Employees,Revenue
Walsall Council,http://opendatacommunities.org/id/metropolitan-district-council/walsall,WC81-98,30/06/2017,Adult Social Care,ACTON BANKS LTD,20/06/2017,"2,316.87",73025-PROFESSIONAL SERVICES-PRIV CONTRACTOR & OTHER AGENCIES,REABLEMENT TEAM - HOLLY BANK,Third Party Payments,Revenue
Walsall Council,http://opendatacommunities.org/id/metropolitan-district-council/walsall,WC81-99,30/06/2017,Adult Social Care,ACTON BANKS LTD,06/06/2017,"2,759.64",73025-PROFESSIONAL SERVICES-PRIV CONTRACTOR & OTHER AGENCIES,REABLEMENT TEAM - HOLLY BANK,Third Party Payments,Revenue
Walsall Council,http://opendatacommunities.org/id/metropolitan-district-council/walsall,WC81-100,30/06/2017,Adult Social Care,ACTON BANKS LTD,01/06/2017,"2,949.46",34305-AGENCY STAFF-EMPLOYEES,REABLEMENT TEAM - HOLLY BANK,Employees,Revenue
Walsall Council,http://opendatacommunities.org/id/metropolitan-district-council/walsall,WC81-101,30/06/2017,Adult Social Care,REDACTED,14/06/2017,607.50,76422-DIRECT PAYMENTS TO SOCIAL SERVICES CLIENTS,LD COMMISSIONING,Transfer Payments,Revenue
Walsall Council,http://opendatacommunities.org/id/metropolitan-district-council/walsall,WC81-102,30/06/2017,Adult Social Care,REDACTED,14/06/2017,"1,205.00",76422-DIRECT PAYMENTS TO SOCIAL SERVICES CLIENTS,OP COMMISSIONING,Transfer Payments,Revenue
Walsall Council,http://opendatacommunities.org/id/metropolitan-district-council/walsall,WC81-103,30/06/2017,Childrens,ADMIRAL SELF STORAGE LTD,16/06/2017,228.78,63000-PROFESSIONAL FEES AND SERVICES,PLACEMENTS & RESOURCES TEAM,Supplies & Services,Revenue
Walsall Council,http://opendatacommunities.org/id/metropolitan-district-council/walsall,WC81-104,30/06/2017,Childrens,ADOPTION UK,09/06/2017,"1,102.25",63000-PROFESSIONAL FEES AND SERVICES,ADOPTION TEAM,Supplies & Services,Revenue
Walsall Council,http://opendatacommunities.org/id/metropolitan-district-council/walsall,WC81-105,30/06/2017,Childrens,REDACTED,06/06/2017,333.12,74510-RESIDENTS ORDERS,ADOPTION ALLOWANCES,Third Party Payments,Revenue
Walsall Council,http://opendatacommunities.org/id/metropolitan-district-council/walsall,WC81-106,30/06/2017,Childrens,REDACTED,06/06/2017,361.12,74510-RESIDENTS ORDERS,ADOPTION ALLOWANCES,Third Party Payments,Revenue
Walsall Council,http://opendatacommunities.org/id/metropolitan-district-council/walsall,WC81-107,30/06/2017,Adult Social Care,ADVANCE HEALTH CARE (UK) LTD,21/06/2017,"-1,204.64",73372-DOMICILIARY CARE,OP COMMISSIONING,Third Party Payments,Revenue
Walsall Council,http://opendatacommunities.org/id/metropolitan-district-council/walsall,WC81-108,30/06/2017,Adult Social Care,ADVANCE HEALTH CARE (UK) LTD,26/06/2017,-641.90,73025-PROFESSIONAL SERVICES-PRIV CONTRACTOR & OTHER AGENCIES,ACM MANAGEMENT TEAM,Third Party Payments,Revenue
Walsall Council,http://opendatacommunities.org/id/metropolitan-district-council/walsall,WC81-109,30/06/2017,Adult Social Care,ADVANCE HEALTH CARE (UK) LTD,23/06/2017,273.00,73019-PSE'S-PRIV CONTRACTOR FEES,COMMUNITY INTERMEDIATE CARE,Third Party Payments,Revenue
Walsall Council,http://opendatacommunities.org/id/metropolitan-district-council/walsall,WC81-110,30/06/2017,Adult Social Care,ADVANCE HEALTH CARE (UK) LTD,21/06/2017,314.44,73025-PROFESSIONAL SERVICES-PRIV CONTRACTOR & OTHER AGENCIES,ACM MANAGEMENT TEAM,Third Party Payments,Revenue
Walsall Council,http://opendatacommunities.org/id/metropolitan-district-council/walsall,WC81-111,30/06/2017,Adult Social Care,ADVANCE HEALTH CARE (UK) LTD,21/06/2017,474.50,73372-DOMICILIARY CARE,OP COMMISSIONING,Third Party Payments,Revenue
Walsall Council,http://opendatacommunities.org/id/metropolitan-district-council/walsall,WC81-112,30/06/2017,Adult Social Care,ADVANCE HEALTH CARE (UK) LTD,26/06/2017,641.90,73025-PROFESSIONAL SERVICES-PRIV CONTRACTOR & OTHER AGENCIES,ACM MANAGEMENT TEAM,Third Party Payments,Revenue
Walsall Council,http://opendatacommunities.org/id/metropolitan-district-council/walsall,WC81-113,30/06/2017,Adult Social Care,ADVANCE HEALTH CARE (UK) LTD,21/06/2017,643.50,73372-DOMICILIARY CARE,OP COMMISSIONING,Third Party Payments,Revenue
Walsall Council,http://opendatacommunities.org/id/metropolitan-district-council/walsall,WC81-114,30/06/2017,Adult Social Care,ADVANCE HEALTH CARE (UK) LTD,16/06/2017,733.60,73025-PROFESSIONAL SERVICES-PRIV CONTRACTOR & OTHER AGENCIES,ACM MANAGEMENT TEAM,Third Party Payments,Revenue
Walsall Council,http://opendatacommunities.org/id/metropolitan-district-council/walsall,WC81-115,30/06/2017,Adult Social Care,ADVANCE HEALTH CARE (UK) LTD,21/06/2017,"1,150.50",73372-DOMICILIARY CARE,OP COMMISSIONING,Third Party Payments,Revenue
Walsall Council,http://opendatacommunities.org/id/metropolitan-district-council/walsall,WC81-116,30/06/2017,Adult Social Care,ADVANCE HEALTH CARE (UK) LTD,09/06/2017,"1,204.64",73019-PSE'S-PRIV CONTRACTOR FEES,COMMUNITY INTERMEDIATE CARE,Third Party Payments,Revenue
Walsall Council,http://opendatacommunities.org/id/metropolitan-district-council/walsall,WC81-117,30/06/2017,Adult Social Care,ADVANCE HEALTH CARE (UK) LTD,16/06/2017,"1,409.56",73025-PROFESSIONAL SERVICES-PRIV CONTRACTOR & OTHER AGENCIES,ACM MANAGEMENT TEAM,Third Party Payments,Revenue
Walsall Council,http://opendatacommunities.org/id/metropolitan-district-council/walsall,WC81-118,30/06/2017,Adult Social Care,ADVANCE HEALTH CARE (UK) LTD,21/06/2017,"5,145.03",73025-PROFESSIONAL SERVICES-PRIV CONTRACTOR & OTHER AGENCIES,COMMUNITY INTERMEDIATE CARE,Third Party Payments,Revenue
Walsall Council,http://opendatacommunities.org/id/metropolitan-district-council/walsall,WC81-119,30/06/2017,Adult Social Care,ADVANCE HEALTH CARE (UK) LTD,21/06/2017,"5,171.23",73025-PROFESSIONAL SERVICES-PRIV CONTRACTOR & OTHER AGENCIES,COMMUNITY INTERMEDIATE CARE,Third Party Payments,Revenue
Walsall Council,http://opendatacommunities.org/id/metropolitan-district-council/walsall,WC81-120,30/06/2017,Adult Social Care,ADVANCE HEALTH CARE (UK) LTD,06/06/2017,"5,354.63",73025-PROFESSIONAL SERVICES-PRIV CONTRACTOR & OTHER AGENCIES,COMMUNITY INTERMEDIATE CARE,Third Party Payments,Revenue
Walsall Council,http://opendatacommunities.org/id/metropolitan-district-council/walsall,WC81-121,30/06/2017,Adult Social Care,ADVANCE HEALTH CARE (UK) LTD,14/06/2017,"5,472.53",73025-PROFESSIONAL SERVICES-PRIV CONTRACTOR & OTHER AGENCIES,COMMUNITY INTERMEDIATE CARE,Third Party Payments,Revenue
Walsall Council,http://opendatacommunities.org/id/metropolitan-district-council/walsall,WC81-122,30/06/2017,Adult Social Care,ADVANCE HEALTH CARE (UK) LTD,06/06/2017,"5,560.95",73025-PROFESSIONAL SERVICES-PRIV CONTRACTOR & OTHER AGENCIES,COMMUNITY INTERMEDIATE CARE,Third Party Payments,Revenue
Walsall Council,http://opendatacommunities.org/id/metropolitan-district-council/walsall,WC81-123,30/06/2017,Adult Social Care,ADVANCE HEALTH CARE (UK) LTD,21/06/2017,"86,242.07",73372-DOMICILIARY CARE,OP COMMISSIONING,Third Party Payments,Revenue
Walsall Council,http://opendatacommunities.org/id/metropolitan-district-council/walsall,WC81-124,30/06/2017,Economy & Environment,ADVANCE PHARMA LTD T/A PLECK PHARMACY,22/06/2017,412.82,71007-CONTRIBUTION TO PCT,PUBLIC HEALTH BUSINESS SUPPORT,Third Party Payments,Revenue
Walsall Council,http://opendatacommunities.org/id/metropolitan-district-council/walsall,WC81-125,30/06/2017,Change and Governance,ADVANCED DIGITAL IMAGING,14/06/2017,635.20,60500-GENERAL MATERIALS,PRINTING SERVICES,Supplies & Services,Revenue
Walsall Council,http://opendatacommunities.org/id/metropolitan-district-council/walsall,WC81-126,30/06/2017,Adult Social Care,ADVOCACY MATTERS LIMITED,05/06/2017,"6,714.50",70000-SOCIAL SERVICES-FEES TO VOLUNTARY BODIES,COMPLEX NEEDS CONTRACTS/SLA's,Third Party Payments,Revenue
Walsall Council,http://opendatacommunities.org/id/metropolitan-district-council/walsall,WC81-127,30/06/2017,Adult Social Care,ADVOCACY MATTERS LIMITED,05/06/2017,"10,060.00",70000-SOCIAL SERVICES-FEES TO VOLUNTARY BODIES,COMPLEX NEEDS CONTRACTS/SLA's,Third Party Payments,Revenue
Walsall Council,http://opendatacommunities.org/id/metropolitan-district-council/walsall,WC81-128,30/06/2017,Economy & Environment,AECOM LIMITED,14/06/2017,"24,116.67",01002-PROJECT FEES,CFR 1178 M6 JUNCTION 10 HIGHWAYS ENGLAND CONTRIBUTION,Capital,Capital
Walsall Council,http://opendatacommunities.org/id/metropolitan-district-council/walsall,WC81-129,30/06/2017,Adult Social Care,AGE UK WALSALL,14/06/2017,"6,772.00",76423-DIRECT PAYMENTS SUPPORT,DIRECT PAYMENT SUPPORT ORGANISATIONS,Transfer Payments,Revenue
Walsall Council,http://opendatacommunities.org/id/metropolitan-district-council/walsall,WC81-130,30/06/2017,Adult Social Care,AGE UK WALSALL,09/06/2017,"6,920.00",76423-DIRECT PAYMENTS SUPPORT,DIRECT PAYMENT SUPPORT ORGANISATIONS,Transfer Payments,Revenue
Walsall Council,http://opendatacommunities.org/id/metropolitan-district-council/walsall,WC81-131,30/06/2017,Adult Social Care,AGE UK WALSALL,07/06/2017,"8,225.00",76423-DIRECT PAYMENTS SUPPORT,DIRECT PAYMENT SUPPORT ORGANISATIONS,Transfer Payments,Revenue
Walsall Council,http://opendatacommunities.org/id/metropolitan-district-council/walsall,WC81-132,30/06/2017,Economy & Environment,AGROVISTA UK LTD,12/06/2017,547.50,60500-GENERAL MATERIALS,GROUNDS,Supplies & Services,Revenue
Walsall Council,http://opendatacommunities.org/id/metropolitan-district-council/walsall,WC81-133,30/06/2017,Adult Social Care,REDACTED,14/06/2017,"2,352.50",76422-DIRECT PAYMENTS TO SOCIAL SERVICES CLIENTS,LD COMMISSIONING,Transfer Payments,Revenue
Walsall Council,http://opendatacommunities.org/id/metropolitan-district-council/walsall,WC81-134,30/06/2017,Adult Social Care,REDACTED,14/06/2017,"1,142.75",76422-DIRECT PAYMENTS TO SOCIAL SERVICES CLIENTS,OP COMMISSIONING,Transfer Payments,Revenue
Walsall Council,http://opendatacommunities.org/id/metropolitan-district-council/walsall,WC81-135,30/06/2017,Childrens,AJK TRAVEL,12/06/2017,"22,359.16",52000-WITH DRIVER-HIRE OF VEHICLES,SCHOOL TRANSPORT,Transport,Revenue
Walsall Council,http://opendatacommunities.org/id/metropolitan-district-council/walsall,WC81-136,30/06/2017,Change and Governance,AKD TRAINING SOLUTIONS LTD,15/06/2017,"5,800.00",66500-GRANTS TO OTHER ORGS,COHESION,Third Party Payments,Revenue
Walsall Council,http://opendatacommunities.org/id/metropolitan-district-council/walsall,WC81-137,30/06/2017,Economy & Environment,ALANA ECOLOGY LTD,02/06/2017,694.12,60008-MAINTENANCE-FURNITURE & EQUIPMENT,ENVIRONMENTAL IMPROVEMENT SERVICE,Supplies & Services,Revenue
Walsall Council,http://opendatacommunities.org/id/metropolitan-district-council/walsall,WC81-138,30/06/2017,Childrens,ALBRIGHTON CARE LTD,19/06/2017,"9,980.00",74036-EXTERNAL RESIDENTIAL CARE-OTH AGENCY PROVISION,INDEPENDENT RESIDENTIAL HOMES,Third Party Payments,Revenue
Walsall Council,http://opendatacommunities.org/id/metropolitan-district-council/walsall,WC81-139,30/06/2017,Adult Social Care,ALDERGROVE MANOR LTD,13/06/2017,"1,839.68",73373-RESIDENTIAL & NURSING CARE PLACEMENTS,MH COMMISSIONING,Third Party Payments,Revenue
Walsall Council,http://opendatacommunities.org/id/metropolitan-district-council/walsall,WC81-140,30/06/2017,Childrens,ALDRIDGE & BARONS LIMITED,27/06/2017,430.00,52000-WITH DRIVER-HIRE OF VEHICLES,SCHOOL TRANSPORT,Transport,Revenue
Walsall Council,http://opendatacommunities.org/id/metropolitan-district-council/walsall,WC81-141,30/06/2017,Childrens,ALDRIDGE & BARONS LIMITED,01/06/2017,"5,368.30",52000-WITH DRIVER-HIRE OF VEHICLES,SCHOOL TRANSPORT,Transport,Revenue
Walsall Council,http://opendatacommunities.org/id/metropolitan-district-council/walsall,WC81-142,30/06/2017,Childrens,ALDRIDGE & BARONS LIMITED,01/06/2017,"13,949.70",52000-WITH DRIVER-HIRE OF VEHICLES,SCHOOL TRANSPORT,Transport,Revenue
Walsall Council,http://opendatacommunities.org/id/metropolitan-district-council/walsall,WC81-143,30/06/2017,Childrens,ALDRIDGE & BARONS LIMITED,02/06/2017,"16,303.05",52000-WITH DRIVER-HIRE OF VEHICLES,SCHOOL TRANSPORT,Transport,Revenue
Walsall Council,http://opendatacommunities.org/id/metropolitan-district-council/walsall,WC81-144,30/06/2017,Change and Governance,ALDRIDGE METHODIST CHURCH 001,16/06/2017,290.00,63128-HIRE OF ROOM-SERVICES-FEES,ELECTORAL ADMINISTRATION,Supplies & Services,Revenue
Walsall Council,http://opendatacommunities.org/id/metropolitan-district-council/walsall,WC81-145,30/06/2017,Childrens,ALDRIDGE SCHOOL A SCIENCE COLLEGE.,28/06/2017,"28,346.19",66502-TOP UP FUNDING -GRANTS TO SCHOOLS,ALDRIDGE SCHOOL SCIENCE COLLEGE (ACADEMY),Third Party Payments,Revenue
Walsall Council,http://opendatacommunities.org/id/metropolitan-district-council/walsall,WC81-146,30/06/2017,Adult Social Care,REDACTED,14/06/2017,"1,505.00",76422-DIRECT PAYMENTS TO SOCIAL SERVICES CLIENTS,PD COMMISSIONING,Transfer Payments,Revenue
Walsall Council,http://opendatacommunities.org/id/metropolitan-district-council/walsall,WC81-147,30/06/2017,Adult Social Care,ALEXANDRA HOUSE CARE SERVICES LTD T/A STONEBRIDGE NURSING HOME,13/06/2017,"7,117.44",73373-RESIDENTIAL & NURSING CARE PLACEMENTS,LD COMMISSIONING,Third Party Payments,Revenue
Walsall Council,http://opendatacommunities.org/id/metropolitan-district-council/walsall,WC81-148,30/06/2017,Childrens,REDACTED,14/06/2017,728.33,76422-DIRECT PAYMENTS TO SOCIAL SERVICES CLIENTS,FAMILY SUPPORT - DIRECT PAYMENTS,Transfer Payments,Revenue
Walsall Council,http://opendatacommunities.org/id/metropolitan-district-council/walsall,WC81-149,30/06/2017,Adult Social Care,REDACTED,14/06/2017,"1,122.50",76422-DIRECT PAYMENTS TO SOCIAL SERVICES CLIENTS,PD COMMISSIONING,Transfer Payments,Revenue
Walsall Council,http://opendatacommunities.org/id/metropolitan-district-council/walsall,WC81-150,30/06/2017,Adult Social Care,REDACTED,14/06/2017,765.00,76422-DIRECT PAYMENTS TO SOCIAL SERVICES CLIENTS,OP COMMISSIONING,Transfer Payments,Revenue
Walsall Council,http://opendatacommunities.org/id/metropolitan-district-council/walsall,WC81-151,30/06/2017,Adult Social Care,REDACTED,21/06/2017,"1,251.64",73374-SUPPORTED & OTHER ACCOMMODATION,LD COMMISSIONING,Third Party Payments,Revenue
Walsall Council,http://opendatacommunities.org/id/metropolitan-district-council/walsall,WC81-152,30/06/2017,Childrens,REDACTED,06/06/2017,571.44,74501-MAINTENANCE ALLOWANCE-FOSTER CARERS,FAMILY & FRIENDS FOSTER CARE PROVISION,Transfer Payments,Revenue
Walsall Council,http://opendatacommunities.org/id/metropolitan-district-council/walsall,WC81-153,30/06/2017,Childrens,REDACTED,06/06/2017,552.96,74510-RESIDENTS ORDERS,ADOPTION ALLOWANCES,Third Party Payments,Revenue
Walsall Council,http://opendatacommunities.org/id/metropolitan-district-council/walsall,WC81-154,30/06/2017,Childrens,ALL SAINTS NATIONAL ACADEMY #1,28/06/2017,"4,916.16",66502-TOP UP FUNDING -GRANTS TO SCHOOLS,ALL SAINTS NATIONAL ACADEMY,Third Party Payments,Revenue
Walsall Council,http://opendatacommunities.org/id/metropolitan-district-council/walsall,WC81-155,30/06/2017,Adult Social Care,ALMA COURT,05/06/2017,"2,790.00",73374-SUPPORTED & OTHER ACCOMMODATION,OP COMMISSIONING,Third Party Payments,Revenue
Walsall Council,http://opendatacommunities.org/id/metropolitan-district-council/walsall,WC81-156,30/06/2017,Adult Social Care,ALMA COURT,13/06/2017,"6,113.10",73373-RESIDENTIAL & NURSING CARE PLACEMENTS,MH COMMISSIONING,Third Party Payments,Revenue
Walsall Council,http://opendatacommunities.org/id/metropolitan-district-council/walsall,WC81-157,30/06/2017,Childrens,ALMOZENE NURSERY & CHILDRENS CENTRE,09/06/2017,777.60,63120-CRECHE FACILITIES-SERVICES-FEES,LOOKED AFTER CHILDRENS SOCIAL WORK TEAM,Supplies & Services,Revenue
Walsall Council,http://opendatacommunities.org/id/metropolitan-district-council/walsall,WC81-158,30/06/2017,Childrens,ALMOZENE NURSERY & CHILDRENS CENTRE,22/06/2017,972.00,63120-CRECHE FACILITIES-SERVICES-FEES,LOOKED AFTER CHILDRENS SOCIAL WORK TEAM,Supplies & Services,Revenue
Walsall Council,http://opendatacommunities.org/id/metropolitan-district-council/walsall,WC81-159,30/06/2017,Childrens,ALPHA HAIR DESIGN ACADEMY,14/06/2017,550.00,30030-EXTERNAL TRAINING,VIRTUAL SCHOOL CENTRAL PUPIL PREMIUM,Employees,Revenue
Walsall Council,http://opendatacommunities.org/id/metropolitan-district-council/walsall,WC81-160,30/06/2017,Childrens,ALPHA HAIR DESIGN ACADEMY,19/06/2017,"1,650.00",60500-GENERAL MATERIALS,PUPIL REFERAL UNIT EXCLUSIONS,Supplies & Services,Revenue
Walsall Council,http://opendatacommunities.org/id/metropolitan-district-council/walsall,WC81-161,30/06/2017,Childrens,ALPHA HAIR DESIGN ACADEMY,19/06/2017,"2,200.00",60500-GENERAL MATERIALS,PUPIL REFERAL UNIT EXCLUSIONS,Supplies & Services,Revenue
Walsall Council,http://opendatacommunities.org/id/metropolitan-district-council/walsall,WC81-162,30/06/2017,Childrens,ALPHA HAIR DESIGN ACADEMY,19/06/2017,"2,200.00",60500-GENERAL MATERIALS,PUPIL REFERAL UNIT EXCLUSIONS,Supplies & Services,Revenue
Walsall Council,http://opendatacommunities.org/id/metropolitan-district-council/walsall,WC81-163,30/06/2017,Adult Social Care,ALPHA HEALTH CARE LTD,27/06/2017,"-4,557.14",73373-RESIDENTIAL & NURSING CARE PLACEMENTS,MH COMMISSIONING,Third Party Payments,Revenue
Walsall Council,http://opendatacommunities.org/id/metropolitan-district-council/walsall,WC81-164,30/06/2017,Adult Social Care,ALPHA HEALTH CARE LTD,21/06/2017,"1,620.00",73373-RESIDENTIAL & NURSING CARE PLACEMENTS,OP COMMISSIONING,Third Party Payments,Revenue
Walsall Council,http://opendatacommunities.org/id/metropolitan-district-council/walsall,WC81-165,30/06/2017,Adult Social Care,ALPHA HEALTH CARE LTD,21/06/2017,"1,620.00",73373-RESIDENTIAL & NURSING CARE PLACEMENTS,OP COMMISSIONING,Third Party Payments,Revenue
Walsall Council,http://opendatacommunities.org/id/metropolitan-district-council/walsall,WC81-166,30/06/2017,Adult Social Care,ALPHA HEALTH CARE LTD,21/06/2017,"1,649.80",73373-RESIDENTIAL & NURSING CARE PLACEMENTS,OP COMMISSIONING,Third Party Payments,Revenue
Walsall Council,http://opendatacommunities.org/id/metropolitan-district-council/walsall,WC81-167,30/06/2017,Adult Social Care,ALPHA HEALTH CARE LTD,21/06/2017,"1,649.80",73373-RESIDENTIAL & NURSING CARE PLACEMENTS,OP COMMISSIONING,Third Party Payments,Revenue
Walsall Council,http://opendatacommunities.org/id/metropolitan-district-council/walsall,WC81-168,30/06/2017,Adult Social Care,ALPHA HEALTH CARE LTD,21/06/2017,"1,649.80",73373-RESIDENTIAL & NURSING CARE PLACEMENTS,OP COMMISSIONING,Third Party Payments,Revenue
Walsall Council,http://opendatacommunities.org/id/metropolitan-district-council/walsall,WC81-169,30/06/2017,Adult Social Care,ALPHA HEALTH CARE LTD,21/06/2017,"1,649.80",73373-RESIDENTIAL & NURSING CARE PLACEMENTS,MH COMMISSIONING,Third Party Payments,Revenue
Walsall Council,http://opendatacommunities.org/id/metropolitan-district-council/walsall,WC81-170,30/06/2017,Adult Social Care,ALPHA HEALTH CARE LTD,21/06/2017,"1,649.80",73373-RESIDENTIAL & NURSING CARE PLACEMENTS,OP COMMISSIONING,Third Party Payments,Revenue
Walsall Council,http://opendatacommunities.org/id/metropolitan-district-council/walsall,WC81-171,30/06/2017,Adult Social Care,ALPHA HEALTH CARE LTD,21/06/2017,"1,649.80",73373-RESIDENTIAL & NURSING CARE PLACEMENTS,MH COMMISSIONING,Third Party Payments,Revenue
Walsall Council,http://opendatacommunities.org/id/metropolitan-district-council/walsall,WC81-172,30/06/2017,Adult Social Care,ALPHA HEALTH CARE LTD,21/06/2017,"1,800.00",73373-RESIDENTIAL & NURSING CARE PLACEMENTS,MH COMMISSIONING,Third Party Payments,Revenue
Walsall Council,http://opendatacommunities.org/id/metropolitan-district-council/walsall,WC81-173,30/06/2017,Adult Social Care,ALPHA HEALTH CARE LTD,21/06/2017,"2,095.00",73373-RESIDENTIAL & NURSING CARE PLACEMENTS,OP COMMISSIONING,Third Party Payments,Revenue
Walsall Council,http://opendatacommunities.org/id/metropolitan-district-council/walsall,WC81-174,30/06/2017,Adult Social Care,ALPHA HEALTH CARE LTD,21/06/2017,"2,175.00",73373-RESIDENTIAL & NURSING CARE PLACEMENTS,OP COMMISSIONING,Third Party Payments,Revenue
Walsall Council,http://opendatacommunities.org/id/metropolitan-district-council/walsall,WC81-175,30/06/2017,Adult Social Care,ALPHA HEALTH CARE LTD,21/06/2017,"2,175.00",73373-RESIDENTIAL & NURSING CARE PLACEMENTS,OP COMMISSIONING,Third Party Payments,Revenue
Walsall Council,http://opendatacommunities.org/id/metropolitan-district-council/walsall,WC81-176,30/06/2017,Adult Social Care,ALPHA HEALTH CARE LTD,21/06/2017,"2,326.00",73373-RESIDENTIAL & NURSING CARE PLACEMENTS,MH COMMISSIONING,Third Party Payments,Revenue
Walsall Council,http://opendatacommunities.org/id/metropolitan-district-council/walsall,WC81-177,30/06/2017,Adult Social Care,ALPHA HEALTH CARE LTD,21/06/2017,"2,859.48",73373-RESIDENTIAL & NURSING CARE PLACEMENTS,MH COMMISSIONING,Third Party Payments,Revenue
Walsall Council,http://opendatacommunities.org/id/metropolitan-district-council/walsall,WC81-178,30/06/2017,Adult Social Care,ALPHA HEALTH CARE LTD,21/06/2017,"3,107.14",73373-RESIDENTIAL & NURSING CARE PLACEMENTS,MH COMMISSIONING,Third Party Payments,Revenue
Walsall Council,http://opendatacommunities.org/id/metropolitan-district-council/walsall,WC81-179,30/06/2017,Adult Social Care,ALPHA HEALTH CARE LTD,21/06/2017,"5,800.00",73373-RESIDENTIAL & NURSING CARE PLACEMENTS,MH COMMISSIONING,Third Party Payments,Revenue
Walsall Council,http://opendatacommunities.org/id/metropolitan-district-council/walsall,WC81-180,30/06/2017,Adult Social Care,ALPHA HEALTH CARE LTD,27/06/2017,"5,800.00",73373-RESIDENTIAL & NURSING CARE PLACEMENTS,MH COMMISSIONING,Third Party Payments,Revenue
Walsall Council,http://opendatacommunities.org/id/metropolitan-district-council/walsall,WC81-181,30/06/2017,Childrens,ALPHABIOLABS,01/06/2017,570.00,63000-PROFESSIONAL FEES AND SERVICES,SAFEGUARDING & FAMILY SUPPORT,Supplies & Services,Revenue
Walsall Council,http://opendatacommunities.org/id/metropolitan-district-council/walsall,WC81-182,30/06/2017,Childrens,REDACTED,06/06/2017,808.04,74009-ADOPTION ALLOWANCE,ADOPTION ALLOWANCES,Transfer Payments,Revenue
Walsall Council,http://opendatacommunities.org/id/metropolitan-district-council/walsall,WC81-183,30/06/2017,Childrens,REDACTED,19/06/2017,9.24,60006-NEW-FURNITURE & EQUIPMENT,INTERNAL FOSTER CARE PROVISION,Supplies & Services,Revenue
Walsall Council,http://opendatacommunities.org/id/metropolitan-district-council/walsall,WC81-184,30/06/2017,Childrens,REDACTED,19/06/2017,62.36,74506-TRAVEL-FOSTER CARERS,INTERNAL FOSTER CARE PROVISION,Transfer Payments,Revenue
Walsall Council,http://opendatacommunities.org/id/metropolitan-district-council/walsall,WC81-185,30/06/2017,Childrens,REDACTED,19/06/2017,530.96,74508-INTERNAL FOSTER CARERS-CARER FEES,INTERNAL FOSTER CARE PROVISION,Transfer Payments,Revenue
Walsall Council,http://opendatacommunities.org/id/metropolitan-district-council/walsall,WC81-186,30/06/2017,Childrens,REDACTED,19/06/2017,650.92,74501-MAINTENANCE ALLOWANCE-FOSTER CARERS,INTERNAL FOSTER CARE PROVISION,Transfer Payments,Revenue
Walsall Council,http://opendatacommunities.org/id/metropolitan-district-council/walsall,WC81-187,30/06/2017,Childrens,REDACTED,14/06/2017,421.15,76422-DIRECT PAYMENTS TO SOCIAL SERVICES CLIENTS,FAMILY SUPPORT - DIRECT PAYMENTS,Transfer Payments,Revenue
Walsall Council,http://opendatacommunities.org/id/metropolitan-district-council/walsall,WC81-188,30/06/2017,Change and Governance,AMEY LG LIMITED,28/06/2017,"2,640.44","40000-REPAIRS,ALTERATIONS & MAINTENANCE-PREM","STATUES, MEMORIALS & CLOCKS",Premises,Revenue
Walsall Council,http://opendatacommunities.org/id/metropolitan-district-council/walsall,WC81-189,30/06/2017,Childrens,AMG NURSING CARE SERVICES,12/06/2017,"2,274.48",63000-PROFESSIONAL FEES AND SERVICES,DIRECTLY COMMISSIONED NURSING SERVICES,Supplies & Services,Revenue
Walsall Council,http://opendatacommunities.org/id/metropolitan-district-council/walsall,WC81-190,30/06/2017,Adult Social Care,AMG NURSING CARE SERVICES,13/06/2017,"10,711.68",73374-SUPPORTED & OTHER ACCOMMODATION,OP COMMISSIONING,Third Party Payments,Revenue
Walsall Council,http://opendatacommunities.org/id/metropolitan-district-council/walsall,WC81-191,30/06/2017,Childrens,REDACTED,06/06/2017,9.24,60006-NEW-FURNITURE & EQUIPMENT,FAMILY & FRIENDS FOSTER CARE PROVISION,Supplies & Services,Revenue
Walsall Council,http://opendatacommunities.org/id/metropolitan-district-council/walsall,WC81-192,30/06/2017,Childrens,REDACTED,06/06/2017,345.24,74508-INTERNAL FOSTER CARERS-CARER FEES,FAMILY & FRIENDS FOSTER CARE PROVISION,Transfer Payments,Revenue
Walsall Council,http://opendatacommunities.org/id/metropolitan-district-council/walsall,WC81-193,30/06/2017,Childrens,REDACTED,06/06/2017,571.44,74501-MAINTENANCE ALLOWANCE-FOSTER CARERS,FAMILY & FRIENDS FOSTER CARE PROVISION,Transfer Payments,Revenue
Walsall Council,http://opendatacommunities.org/id/metropolitan-district-council/walsall,WC81-194,30/06/2017,Childrens,REDACTED,06/06/2017,425.08,74510-RESIDENTS ORDERS,ADOPTION ALLOWANCES,Third Party Payments,Revenue
Walsall Council,http://opendatacommunities.org/id/metropolitan-district-council/walsall,WC81-195,30/06/2017,Adult Social Care,REDACTED,14/06/2017,720.00,76422-DIRECT PAYMENTS TO SOCIAL SERVICES CLIENTS,OP COMMISSIONING,Transfer Payments,Revenue
Walsall Council,http://opendatacommunities.org/id/metropolitan-district-council/walsall,WC81-196,30/06/2017,Adult Social Care,ANCHOR,06/06/2017,450.00,73373-RESIDENTIAL & NURSING CARE PLACEMENTS,OP COMMISSIONING,Third Party Payments,Revenue
Walsall Council,http://opendatacommunities.org/id/metropolitan-district-council/walsall,WC81-197,30/06/2017,Adult Social Care,ANCHOR,06/06/2017,"1,385.43",73373-RESIDENTIAL & NURSING CARE PLACEMENTS,OP COMMISSIONING,Third Party Payments,Revenue
Walsall Council,http://opendatacommunities.org/id/metropolitan-district-council/walsall,WC81-198,30/06/2017,Adult Social Care,ANCHOR,06/06/2017,"1,492.00",73373-RESIDENTIAL & NURSING CARE PLACEMENTS,OP COMMISSIONING,Third Party Payments,Revenue
Walsall Council,http://opendatacommunities.org/id/metropolitan-district-council/walsall,WC81-199,30/06/2017,Adult Social Care,ANCHOR,06/06/2017,"1,620.00",73373-RESIDENTIAL & NURSING CARE PLACEMENTS,OP COMMISSIONING,Third Party Payments,Revenue
Walsall Council,http://opendatacommunities.org/id/metropolitan-district-council/walsall,WC81-200,30/06/2017,Adult Social Care,ANCHOR,06/06/2017,"1,620.00",73373-RESIDENTIAL & NURSING CARE PLACEMENTS,OP COMMISSIONING,Third Party Payments,Revenue
Walsall Council,http://opendatacommunities.org/id/metropolitan-district-council/walsall,WC81-201,30/06/2017,Adult Social Care,ANCHOR,06/06/2017,"1,620.00",73373-RESIDENTIAL & NURSING CARE PLACEMENTS,OP COMMISSIONING,Third Party Payments,Revenue
Walsall Council,http://opendatacommunities.org/id/metropolitan-district-council/walsall,WC81-202,30/06/2017,Adult Social Care,ANCHOR,06/06/2017,"1,800.00",73373-RESIDENTIAL & NURSING CARE PLACEMENTS,OP COMMISSIONING,Third Party Payments,Revenue
Walsall Council,http://opendatacommunities.org/id/metropolitan-district-council/walsall,WC81-203,30/06/2017,Adult Social Care,ANCHOR,06/06/2017,"1,800.00",73373-RESIDENTIAL & NURSING CARE PLACEMENTS,OP COMMISSIONING,Third Party Payments,Revenue
Walsall Council,http://opendatacommunities.org/id/metropolitan-district-council/walsall,WC81-204,30/06/2017,Adult Social Care,ANCHOR,06/06/2017,"1,800.00",73373-RESIDENTIAL & NURSING CARE PLACEMENTS,OP COMMISSIONING,Third Party Payments,Revenue
Walsall Council,http://opendatacommunities.org/id/metropolitan-district-council/walsall,WC81-205,30/06/2017,Adult Social Care,ANCHOR,06/06/2017,"1,800.00",73373-RESIDENTIAL & NURSING CARE PLACEMENTS,OP COMMISSIONING,Third Party Payments,Revenue
Walsall Council,http://opendatacommunities.org/id/metropolitan-district-council/walsall,WC81-206,30/06/2017,Adult Social Care,ANCHOR,06/06/2017,"1,800.00",73373-RESIDENTIAL & NURSING CARE PLACEMENTS,OP COMMISSIONING,Third Party Payments,Revenue
Walsall Council,http://opendatacommunities.org/id/metropolitan-district-council/walsall,WC81-207,30/06/2017,Adult Social Care,ANCHOR,06/06/2017,"1,800.00",73373-RESIDENTIAL & NURSING CARE PLACEMENTS,OP COMMISSIONING,Third Party Payments,Revenue
Walsall Council,http://opendatacommunities.org/id/metropolitan-district-council/walsall,WC81-208,30/06/2017,Adult Social Care,ANCHOR,06/06/2017,"1,800.00",73373-RESIDENTIAL & NURSING CARE PLACEMENTS,OP COMMISSIONING,Third Party Payments,Revenue
Walsall Council,http://opendatacommunities.org/id/metropolitan-district-council/walsall,WC81-209,30/06/2017,Adult Social Care,ANCHOR,06/06/2017,"1,800.00",73373-RESIDENTIAL & NURSING CARE PLACEMENTS,OP COMMISSIONING,Third Party Payments,Revenue
Walsall Council,http://opendatacommunities.org/id/metropolitan-district-council/walsall,WC81-210,30/06/2017,Adult Social Care,ANCHOR,06/06/2017,"1,800.00",73373-RESIDENTIAL & NURSING CARE PLACEMENTS,OP COMMISSIONING,Third Party Payments,Revenue
Walsall Council,http://opendatacommunities.org/id/metropolitan-district-council/walsall,WC81-211,30/06/2017,Adult Social Care,ANCHOR,06/06/2017,"1,800.00",73373-RESIDENTIAL & NURSING CARE PLACEMENTS,OP COMMISSIONING,Third Party Payments,Revenue
Walsall Council,http://opendatacommunities.org/id/metropolitan-district-council/walsall,WC81-212,30/06/2017,Adult Social Care,ANCHOR,06/06/2017,"1,800.00",73373-RESIDENTIAL & NURSING CARE PLACEMENTS,OP COMMISSIONING,Third Party Payments,Revenue
Walsall Council,http://opendatacommunities.org/id/metropolitan-district-council/walsall,WC81-213,30/06/2017,Adult Social Care,ANCHOR,06/06/2017,"1,800.00",73373-RESIDENTIAL & NURSING CARE PLACEMENTS,OP COMMISSIONING,Third Party Payments,Revenue
Walsall Council,http://opendatacommunities.org/id/metropolitan-district-council/walsall,WC81-214,30/06/2017,Adult Social Care,ANCHOR,06/06/2017,"1,800.00",73373-RESIDENTIAL & NURSING CARE PLACEMENTS,OP COMMISSIONING,Third Party Payments,Revenue
Walsall Council,http://opendatacommunities.org/id/metropolitan-district-council/walsall,WC81-215,30/06/2017,Adult Social Care,ANCHOR,06/06/2017,"1,800.00",73373-RESIDENTIAL & NURSING CARE PLACEMENTS,OP COMMISSIONING,Third Party Payments,Revenue
Walsall Council,http://opendatacommunities.org/id/metropolitan-district-council/walsall,WC81-216,30/06/2017,Adult Social Care,ANCHOR,06/06/2017,"1,800.00",73373-RESIDENTIAL & NURSING CARE PLACEMENTS,OP COMMISSIONING,Third Party Payments,Revenue
Walsall Council,http://opendatacommunities.org/id/metropolitan-district-council/walsall,WC81-217,30/06/2017,Adult Social Care,ANCHOR,06/06/2017,"1,800.00",73373-RESIDENTIAL & NURSING CARE PLACEMENTS,MH COMMISSIONING,Third Party Payments,Revenue
Walsall Council,http://opendatacommunities.org/id/metropolitan-district-council/walsall,WC81-218,30/06/2017,Adult Social Care,ANCHOR,06/06/2017,"1,800.00",73373-RESIDENTIAL & NURSING CARE PLACEMENTS,OP COMMISSIONING,Third Party Payments,Revenue
Walsall Council,http://opendatacommunities.org/id/metropolitan-district-council/walsall,WC81-219,30/06/2017,Adult Social Care,ANCHOR,21/06/2017,"1,800.00",73373-RESIDENTIAL & NURSING CARE PLACEMENTS,OP COMMISSIONING,Third Party Payments,Revenue
Walsall Council,http://opendatacommunities.org/id/metropolitan-district-council/walsall,WC81-220,30/06/2017,Adult Social Care,ANCHOR,21/06/2017,"1,800.00",73373-RESIDENTIAL & NURSING CARE PLACEMENTS,OP COMMISSIONING,Third Party Payments,Revenue
Walsall Council,http://opendatacommunities.org/id/metropolitan-district-council/walsall,WC81-221,30/06/2017,Adult Social Care,ANCHOR,21/06/2017,"2,080.00",73373-RESIDENTIAL & NURSING CARE PLACEMENTS,MH COMMISSIONING,Third Party Payments,Revenue
Walsall Council,http://opendatacommunities.org/id/metropolitan-district-council/walsall,WC81-222,30/06/2017,Childrens,REDACTED,19/06/2017,9.24,60006-NEW-FURNITURE & EQUIPMENT,INTERNAL FOSTER CARE PROVISION,Supplies & Services,Revenue
Walsall Council,http://opendatacommunities.org/id/metropolitan-district-council/walsall,WC81-223,30/06/2017,Childrens,REDACTED,19/06/2017,177.12,74506-TRAVEL-FOSTER CARERS,INTERNAL FOSTER CARE PROVISION,Transfer Payments,Revenue
Walsall Council,http://opendatacommunities.org/id/metropolitan-district-council/walsall,WC81-224,30/06/2017,Childrens,REDACTED,19/06/2017,810.32,74501-MAINTENANCE ALLOWANCE-FOSTER CARERS,INTERNAL FOSTER CARE PROVISION,Transfer Payments,Revenue
Walsall Council,http://opendatacommunities.org/id/metropolitan-district-council/walsall,WC81-225,30/06/2017,Childrens,REDACTED,19/06/2017,897.52,74508-INTERNAL FOSTER CARERS-CARER FEES,INTERNAL FOSTER CARE PROVISION,Transfer Payments,Revenue
Walsall Council,http://opendatacommunities.org/id/metropolitan-district-council/walsall,WC81-226,30/06/2017,Adult Social Care,ANGEL COURT RESIDENTIAL CARE HOME,13/06/2017,"1,928.57",73373-RESIDENTIAL & NURSING CARE PLACEMENTS,OP COMMISSIONING,Third Party Payments,Revenue
Walsall Council,http://opendatacommunities.org/id/metropolitan-district-council/walsall,WC81-227,30/06/2017,Adult Social Care,ANGEL COURT RESIDENTIAL CARE HOME,13/06/2017,"2,006.96",73373-RESIDENTIAL & NURSING CARE PLACEMENTS,OP COMMISSIONING,Third Party Payments,Revenue
Walsall Council,http://opendatacommunities.org/id/metropolitan-district-council/walsall,WC81-228,30/06/2017,Adult Social Care,ANGEL COURT RESIDENTIAL CARE HOME,13/06/2017,"2,080.71",73373-RESIDENTIAL & NURSING CARE PLACEMENTS,OP COMMISSIONING,Third Party Payments,Revenue
Walsall Council,http://opendatacommunities.org/id/metropolitan-district-council/walsall,WC81-229,30/06/2017,Childrens,REDACTED,06/06/2017,368.76,74509-SPECIAL GUARDIANSHIP ORDERS,ADOPTION ALLOWANCES,Transfer Payments,Revenue
Walsall Council,http://opendatacommunities.org/id/metropolitan-district-council/walsall,WC81-230,30/06/2017,Childrens,REDACTED,06/06/2017,368.76,74509-SPECIAL GUARDIANSHIP ORDERS,ADOPTION ALLOWANCES,Transfer Payments,Revenue
Walsall Council,http://opendatacommunities.org/id/metropolitan-district-council/walsall,WC81-231,30/06/2017,Childrens,REDACTED,06/06/2017,500.16,74509-SPECIAL GUARDIANSHIP ORDERS,ADOPTION ALLOWANCES,Transfer Payments,Revenue
Walsall Council,http://opendatacommunities.org/id/metropolitan-district-council/walsall,WC81-232,30/06/2017,Childrens,REDACTED,06/06/2017,312.04,74509-SPECIAL GUARDIANSHIP ORDERS,ADOPTION ALLOWANCES,Transfer Payments,Revenue
Walsall Council,http://opendatacommunities.org/id/metropolitan-district-council/walsall,WC81-233,30/06/2017,Adult Social Care,REDACTED,14/06/2017,430.00,76422-DIRECT PAYMENTS TO SOCIAL SERVICES CLIENTS,LD COMMISSIONING,Transfer Payments,Revenue
Walsall Council,http://opendatacommunities.org/id/metropolitan-district-council/walsall,WC81-234,30/06/2017,Adult Social Care,REDACTED,09/06/2017,301.60,73374-SUPPORTED & OTHER ACCOMMODATION,LD COMMISSIONING,Third Party Payments,Revenue
Walsall Council,http://opendatacommunities.org/id/metropolitan-district-council/walsall,WC81-235,30/06/2017,Adult Social Care,ANSON COURT RESIDENTIAL HOME,06/06/2017,"1,800.00",73373-RESIDENTIAL & NURSING CARE PLACEMENTS,OP COMMISSIONING,Third Party Payments,Revenue
Walsall Council,http://opendatacommunities.org/id/metropolitan-district-council/walsall,WC81-236,30/06/2017,Adult Social Care,ANSON COURT RESIDENTIAL HOME,06/06/2017,"1,800.00",73373-RESIDENTIAL & NURSING CARE PLACEMENTS,OP COMMISSIONING,Third Party Payments,Revenue
Walsall Council,http://opendatacommunities.org/id/metropolitan-district-council/walsall,WC81-237,30/06/2017,Adult Social Care,ANSON COURT RESIDENTIAL HOME,06/06/2017,"1,800.00",73373-RESIDENTIAL & NURSING CARE PLACEMENTS,MH COMMISSIONING,Third Party Payments,Revenue
Walsall Council,http://opendatacommunities.org/id/metropolitan-district-council/walsall,WC81-238,30/06/2017,Adult Social Care,ANSON COURT RESIDENTIAL HOME,06/06/2017,"1,800.00",73373-RESIDENTIAL & NURSING CARE PLACEMENTS,OP COMMISSIONING,Third Party Payments,Revenue
Walsall Council,http://opendatacommunities.org/id/metropolitan-district-council/walsall,WC81-239,30/06/2017,Adult Social Care,ANSON COURT RESIDENTIAL HOME,06/06/2017,"1,800.00",73373-RESIDENTIAL & NURSING CARE PLACEMENTS,OP COMMISSIONING,Third Party Payments,Revenue
Walsall Council,http://opendatacommunities.org/id/metropolitan-district-council/walsall,WC81-240,30/06/2017,Adult Social Care,ANSON COURT RESIDENTIAL HOME,06/06/2017,"1,800.00",73373-RESIDENTIAL & NURSING CARE PLACEMENTS,OP COMMISSIONING,Third Party Payments,Revenue
Walsall Council,http://opendatacommunities.org/id/metropolitan-district-council/walsall,WC81-241,30/06/2017,Adult Social Care,ANSON COURT RESIDENTIAL HOME,06/06/2017,"1,800.00",73373-RESIDENTIAL & NURSING CARE PLACEMENTS,OP COMMISSIONING,Third Party Payments,Revenue
Walsall Council,http://opendatacommunities.org/id/metropolitan-district-council/walsall,WC81-242,30/06/2017,Adult Social Care,ANSON COURT RESIDENTIAL HOME,06/06/2017,"1,800.00",73373-RESIDENTIAL & NURSING CARE PLACEMENTS,MH COMMISSIONING,Third Party Payments,Revenue
Walsall Council,http://opendatacommunities.org/id/metropolitan-district-council/walsall,WC81-243,30/06/2017,Adult Social Care,ANSON COURT RESIDENTIAL HOME,06/06/2017,"1,800.00",73373-RESIDENTIAL & NURSING CARE PLACEMENTS,OP COMMISSIONING,Third Party Payments,Revenue
Walsall Council,http://opendatacommunities.org/id/metropolitan-district-council/walsall,WC81-244,30/06/2017,Adult Social Care,ANSON COURT RESIDENTIAL HOME,06/06/2017,"1,800.00",73373-RESIDENTIAL & NURSING CARE PLACEMENTS,MH COMMISSIONING,Third Party Payments,Revenue
Walsall Council,http://opendatacommunities.org/id/metropolitan-district-council/walsall,WC81-245,30/06/2017,Adult Social Care,ANSON COURT RESIDENTIAL HOME,06/06/2017,"1,800.00",73373-RESIDENTIAL & NURSING CARE PLACEMENTS,OP COMMISSIONING,Third Party Payments,Revenue
Walsall Council,http://opendatacommunities.org/id/metropolitan-district-council/walsall,WC81-246,30/06/2017,Adult Social Care,ANSON COURT RESIDENTIAL HOME,06/06/2017,"1,800.00",73373-RESIDENTIAL & NURSING CARE PLACEMENTS,MH COMMISSIONING,Third Party Payments,Revenue
Walsall Council,http://opendatacommunities.org/id/metropolitan-district-council/walsall,WC81-247,30/06/2017,Adult Social Care,ANSON COURT RESIDENTIAL HOME,06/06/2017,"1,800.00",73373-RESIDENTIAL & NURSING CARE PLACEMENTS,OP COMMISSIONING,Third Party Payments,Revenue
Walsall Council,http://opendatacommunities.org/id/metropolitan-district-council/walsall,WC81-248,30/06/2017,Adult Social Care,ANSON COURT RESIDENTIAL HOME,06/06/2017,"1,800.00",73373-RESIDENTIAL & NURSING CARE PLACEMENTS,OP COMMISSIONING,Third Party Payments,Revenue
Walsall Council,http://opendatacommunities.org/id/metropolitan-district-council/walsall,WC81-249,30/06/2017,Adult Social Care,ANSON COURT RESIDENTIAL HOME,06/06/2017,"1,800.00",73373-RESIDENTIAL & NURSING CARE PLACEMENTS,OP COMMISSIONING,Third Party Payments,Revenue
Walsall Council,http://opendatacommunities.org/id/metropolitan-district-council/walsall,WC81-250,30/06/2017,Adult Social Care,ANSON COURT RESIDENTIAL HOME,06/06/2017,"1,800.00",73373-RESIDENTIAL & NURSING CARE PLACEMENTS,OP COMMISSIONING,Third Party Payments,Revenue
Walsall Council,http://opendatacommunities.org/id/metropolitan-district-council/walsall,WC81-251,30/06/2017,Adult Social Care,ANSON COURT RESIDENTIAL HOME,06/06/2017,"1,800.00",73373-RESIDENTIAL & NURSING CARE PLACEMENTS,OP COMMISSIONING,Third Party Payments,Revenue
Walsall Council,http://opendatacommunities.org/id/metropolitan-district-council/walsall,WC81-252,30/06/2017,Adult Social Care,ANSON COURT RESIDENTIAL HOME,06/06/2017,"1,800.00",73373-RESIDENTIAL & NURSING CARE PLACEMENTS,OP COMMISSIONING,Third Party Payments,Revenue
Walsall Council,http://opendatacommunities.org/id/metropolitan-district-council/walsall,WC81-253,30/06/2017,Adult Social Care,ANSON COURT RESIDENTIAL HOME,06/06/2017,"1,800.00",73373-RESIDENTIAL & NURSING CARE PLACEMENTS,OP COMMISSIONING,Third Party Payments,Revenue
Walsall Council,http://opendatacommunities.org/id/metropolitan-district-council/walsall,WC81-254,30/06/2017,Adult Social Care,ANSON COURT RESIDENTIAL HOME,06/06/2017,"1,800.00",73373-RESIDENTIAL & NURSING CARE PLACEMENTS,OP COMMISSIONING,Third Party Payments,Revenue
Walsall Council,http://opendatacommunities.org/id/metropolitan-district-council/walsall,WC81-255,30/06/2017,Adult Social Care,ANSON COURT RESIDENTIAL HOME,13/06/2017,"1,800.00",73373-RESIDENTIAL & NURSING CARE PLACEMENTS,OP COMMISSIONING,Third Party Payments,Revenue
Walsall Council,http://opendatacommunities.org/id/metropolitan-district-council/walsall,WC81-256,30/06/2017,Adult Social Care,ANSON COURT RESIDENTIAL HOME,13/06/2017,"1,800.00",73373-RESIDENTIAL & NURSING CARE PLACEMENTS,OP COMMISSIONING,Third Party Payments,Revenue
Walsall Council,http://opendatacommunities.org/id/metropolitan-district-council/walsall,WC81-257,30/06/2017,Adult Social Care,ANSON COURT RESIDENTIAL HOME,13/06/2017,"1,800.00",73373-RESIDENTIAL & NURSING CARE PLACEMENTS,OP COMMISSIONING,Third Party Payments,Revenue
Walsall Council,http://opendatacommunities.org/id/metropolitan-district-council/walsall,WC81-258,30/06/2017,Adult Social Care,ANSON COURT RESIDENTIAL HOME,06/06/2017,"1,880.00",73373-RESIDENTIAL & NURSING CARE PLACEMENTS,OP COMMISSIONING,Third Party Payments,Revenue
Walsall Council,http://opendatacommunities.org/id/metropolitan-district-council/walsall,WC81-259,30/06/2017,Adult Social Care,ANSON COURT RESIDENTIAL HOME,06/06/2017,"4,880.00",73373-RESIDENTIAL & NURSING CARE PLACEMENTS,MH COMMISSIONING,Third Party Payments,Revenue
Walsall Council,http://opendatacommunities.org/id/metropolitan-district-council/walsall,WC81-260,30/06/2017,Childrens,REDACTED,06/06/2017,604.00,74510-RESIDENTS ORDERS,ADOPTION ALLOWANCES,Third Party Payments,Revenue
Walsall Council,http://opendatacommunities.org/id/metropolitan-district-council/walsall,WC81-261,30/06/2017,Childrens,REDACTED,06/06/2017,333.12,74509-SPECIAL GUARDIANSHIP ORDERS,ADOPTION ALLOWANCES,Transfer Payments,Revenue
Walsall Council,http://opendatacommunities.org/id/metropolitan-district-council/walsall,WC81-262,30/06/2017,Change and Governance,APCOA PARKING SERVICES (UK) LTD,12/06/2017,-700.00,73025-PROFESSIONAL SERVICES-PRIV CONTRACTOR & OTHER AGENCIES,ELECTORAL ADMINISTRATION,Third Party Payments,Revenue
Walsall Council,http://opendatacommunities.org/id/metropolitan-district-council/walsall,WC81-263,30/06/2017,Change and Governance,APCOA PARKING SERVICES (UK) LTD,12/06/2017,700.00,73025-PROFESSIONAL SERVICES-PRIV CONTRACTOR & OTHER AGENCIES,ELECTORAL ADMINISTRATION,Third Party Payments,Revenue
Walsall Council,http://opendatacommunities.org/id/metropolitan-district-council/walsall,WC81-264,30/06/2017,Change and Governance,APCOA PARKING SERVICES (UK) LTD,12/06/2017,700.00,73025-PROFESSIONAL SERVICES-PRIV CONTRACTOR & OTHER AGENCIES,ELECTORAL ADMINISTRATION,Third Party Payments,Revenue
Walsall Council,http://opendatacommunities.org/id/metropolitan-district-council/walsall,WC81-265,30/06/2017,Change and Governance,APCOA PARKING SERVICES (UK) LTD,28/06/2017,"2,930.00",73025-PROFESSIONAL SERVICES-PRIV CONTRACTOR & OTHER AGENCIES,ELECTORAL ADMINISTRATION,Third Party Payments,Revenue
Walsall Council,http://opendatacommunities.org/id/metropolitan-district-council/walsall,WC81-266,30/06/2017,Economy & Environment,APCOA PARKING SERVICES (UK) LTD,16/06/2017,"44,406.01",73025-PROFESSIONAL SERVICES-PRIV CONTRACTOR & OTHER AGENCIES,PARKING SERVICES OFF-STREET,Third Party Payments,Revenue
Walsall Council,http://opendatacommunities.org/id/metropolitan-district-council/walsall,WC81-267,30/06/2017,Childrens,APPLE TRANSCRIPTION LIMITED,20/06/2017,690.06,73014-LEGAL FEES-PRIV CONTRACTOR FEES,GENERAL MANAGEMENT SUPPORT (INC LEGAL),Third Party Payments,Revenue
Walsall Council,http://opendatacommunities.org/id/metropolitan-district-council/walsall,WC81-268,30/06/2017,Economy & Environment,AQUALYMPIC,22/06/2017,430.00,34305-AGENCY STAFF-EMPLOYEES,BLOXWICH LEISURE CENTRE,Employees,Revenue
Walsall Council,http://opendatacommunities.org/id/metropolitan-district-council/walsall,WC81-269,30/06/2017,Economy & Environment,AQUALYMPIC,28/06/2017,480.00,34305-AGENCY STAFF-EMPLOYEES,BLOXWICH LEISURE CENTRE,Employees,Revenue
Walsall Council,http://opendatacommunities.org/id/metropolitan-district-council/walsall,WC81-270,30/06/2017,Economy & Environment,AQUALYMPIC,21/06/2017,520.00,34305-AGENCY STAFF-EMPLOYEES,OAK PARK,Employees,Revenue
Walsall Council,http://opendatacommunities.org/id/metropolitan-district-council/walsall,WC81-271,30/06/2017,Economy & Environment,AQUALYMPIC,06/06/2017,"1,150.00",34305-AGENCY STAFF-EMPLOYEES,OAK PARK,Employees,Revenue
Walsall Council,http://opendatacommunities.org/id/metropolitan-district-council/walsall,WC81-272,30/06/2017,Economy & Environment,AQUALYMPIC,21/06/2017,"1,230.00",34305-AGENCY STAFF-EMPLOYEES,OAK PARK,Employees,Revenue
Walsall Council,http://opendatacommunities.org/id/metropolitan-district-council/walsall,WC81-273,30/06/2017,Economy & Environment,AQUAMO LTD,02/06/2017,281.00,60008-MAINTENANCE-FURNITURE & EQUIPMENT,DARLASTON LEISURE CENTRE,Supplies & Services,Revenue
Walsall Council,http://opendatacommunities.org/id/metropolitan-district-council/walsall,WC81-274,30/06/2017,Adult Social Care,ARBORETUM NURSING HOME.,13/06/2017,"2,270.00",73373-RESIDENTIAL & NURSING CARE PLACEMENTS,PD COMMISSIONING,Third Party Payments,Revenue
Walsall Council,http://opendatacommunities.org/id/metropolitan-district-council/walsall,WC81-275,30/06/2017,Adult Social Care,ARBORETUM NURSING HOME.,13/06/2017,"2,270.00",73373-RESIDENTIAL & NURSING CARE PLACEMENTS,OP COMMISSIONING,Third Party Payments,Revenue
Walsall Council,http://opendatacommunities.org/id/metropolitan-district-council/walsall,WC81-276,30/06/2017,Adult Social Care,ARBORETUM NURSING HOME.,13/06/2017,"2,310.00",73373-RESIDENTIAL & NURSING CARE PLACEMENTS,OP COMMISSIONING,Third Party Payments,Revenue
Walsall Council,http://opendatacommunities.org/id/metropolitan-district-council/walsall,WC81-277,30/06/2017,Adult Social Care,ARBORETUM NURSING HOME.,13/06/2017,"2,314.28",73373-RESIDENTIAL & NURSING CARE PLACEMENTS,OP COMMISSIONING,Third Party Payments,Revenue
Walsall Council,http://opendatacommunities.org/id/metropolitan-district-council/walsall,WC81-278,30/06/2017,Adult Social Care,ARBORETUM NURSING HOME.,13/06/2017,"2,315.04",73373-RESIDENTIAL & NURSING CARE PLACEMENTS,OP COMMISSIONING,Third Party Payments,Revenue
Walsall Council,http://opendatacommunities.org/id/metropolitan-district-council/walsall,WC81-279,30/06/2017,Adult Social Care,ARBORETUM NURSING HOME.,13/06/2017,"2,328.76",73373-RESIDENTIAL & NURSING CARE PLACEMENTS,OP COMMISSIONING,Third Party Payments,Revenue
Walsall Council,http://opendatacommunities.org/id/metropolitan-district-council/walsall,WC81-280,30/06/2017,Adult Social Care,ARBORETUM NURSING HOME.,13/06/2017,"2,350.00",73373-RESIDENTIAL & NURSING CARE PLACEMENTS,OP COMMISSIONING,Third Party Payments,Revenue
Walsall Council,http://opendatacommunities.org/id/metropolitan-district-council/walsall,WC81-281,30/06/2017,Adult Social Care,ARBORETUM NURSING HOME.,21/06/2017,"14,900.00",73019-PSE'S-PRIV CONTRACTOR FEES,TRANSITIONAL CARE SUPPORT TEAM,Third Party Payments,Revenue
Walsall Council,http://opendatacommunities.org/id/metropolitan-district-council/walsall,WC81-282,30/06/2017,Economy & Environment,ARCADIS CONSULTING (UK) LIMITED,13/06/2017,"25,800.00",01001-OTHER CONSULTANTS FEES,CFR 1147 WALSALL TO WOLVERHAMPTON RAPID TRANSIT,Capital,Capital
Walsall Council,http://opendatacommunities.org/id/metropolitan-district-council/walsall,WC81-283,30/06/2017,Economy & Environment,ARCANE DIRECT MARKETING,21/06/2017,304.50,62511-DISTRIBUTION,NAG - ART GALLERY MARKETING,Supplies & Services,Revenue
Walsall Council,http://opendatacommunities.org/id/metropolitan-district-council/walsall,WC81-284,30/06/2017,Economy & Environment,ARCANE DIRECT MARKETING,21/06/2017,904.21,62511-DISTRIBUTION,NAG - ART GALLERY MARKETING,Supplies & Services,Revenue
Walsall Council,http://opendatacommunities.org/id/metropolitan-district-council/walsall,WC81-285,30/06/2017,Economy & Environment,ARCHWAY TCS LTD,09/06/2017,767.02,73025-PROFESSIONAL SERVICES-PRIV CONTRACTOR & OTHER AGENCIES,DEPOT,Third Party Payments,Revenue
Walsall Council,http://opendatacommunities.org/id/metropolitan-district-council/walsall,WC81-286,30/06/2017,Economy & Environment,ARCO GROUP,09/06/2017,300.00,60514-MATERIALS TO STORES,FLEET PARTS STOCK ACCOUNT,Supplies & Services,Revenue
Walsall Council,http://opendatacommunities.org/id/metropolitan-district-council/walsall,WC81-287,30/06/2017,Childrens,ARNFIELD CARE LIMITED,19/06/2017,"15,616.00",74036-EXTERNAL RESIDENTIAL CARE-OTH AGENCY PROVISION,INDEPENDENT RESIDENTIAL HOMES,Third Party Payments,Revenue
Walsall Council,http://opendatacommunities.org/id/metropolitan-district-council/walsall,WC81-288,30/06/2017,Childrens,ARTHUR M GRIFFITHS & SON LTD,28/06/2017,"13,261.14",01006-SITE WORKS MAIN CONTRACTORS,CFR 929 KING CHARLES PRIMARY SIGNIFICANT ENLARGEMENT,Capital,Capital
Walsall Council,http://opendatacommunities.org/id/metropolitan-district-council/walsall,WC81-289,30/06/2017,Childrens,ARTHUR M GRIFFITHS & SON LTD,01/06/2017,"36,119.15",01006-SITE WORKS MAIN CONTRACTORS,CFR 929 KING CHARLES PRIMARY SIGNIFICANT ENLARGEMENT,Capital,Capital
Walsall Council,http://opendatacommunities.org/id/metropolitan-district-council/walsall,WC81-290,30/06/2017,Childrens,ARTHUR M GRIFFITHS & SON LTD,20/06/2017,"103,500.56",01006-SITE WORKS MAIN CONTRACTORS,CFR 929 FIBBERSLEY PRIMARY SIGNIFICANT ENLARGEMENT,Capital,Capital
Walsall Council,http://opendatacommunities.org/id/metropolitan-district-council/walsall,WC81-291,30/06/2017,Economy & Environment,ASDA PHARMACY,22/06/2017,176.70,71007-CONTRIBUTION TO PCT,PUBLIC HEALTH BUSINESS SUPPORT,Third Party Payments,Revenue
Walsall Council,http://opendatacommunities.org/id/metropolitan-district-council/walsall,WC81-292,30/06/2017,Economy & Environment,ASDA PHARMACY,22/06/2017,256.65,63000-PROFESSIONAL FEES AND SERVICES,SEXUAL HEALTH,Supplies & Services,Revenue
Walsall Council,http://opendatacommunities.org/id/metropolitan-district-council/walsall,WC81-293,30/06/2017,Adult Social Care,ASH GRANGE CARE HOME,27/06/2017,551.38,73373-RESIDENTIAL & NURSING CARE PLACEMENTS,OP COMMISSIONING,Third Party Payments,Revenue
Walsall Council,http://opendatacommunities.org/id/metropolitan-district-council/walsall,WC81-294,30/06/2017,Adult Social Care,ASH GRANGE CARE HOME,13/06/2017,642.35,73373-RESIDENTIAL & NURSING CARE PLACEMENTS,OP COMMISSIONING,Third Party Payments,Revenue
Walsall Council,http://opendatacommunities.org/id/metropolitan-district-council/walsall,WC81-295,30/06/2017,Adult Social Care,ASH GRANGE CARE HOME,27/06/2017,689.21,73373-RESIDENTIAL & NURSING CARE PLACEMENTS,OP COMMISSIONING,Third Party Payments,Revenue
Walsall Council,http://opendatacommunities.org/id/metropolitan-district-council/walsall,WC81-296,30/06/2017,Adult Social Care,ASH GRANGE CARE HOME,27/06/2017,689.21,73373-RESIDENTIAL & NURSING CARE PLACEMENTS,OP COMMISSIONING,Third Party Payments,Revenue
Walsall Council,http://opendatacommunities.org/id/metropolitan-district-council/walsall,WC81-297,30/06/2017,Adult Social Care,ASH GRANGE CARE HOME,13/06/2017,825.70,73373-RESIDENTIAL & NURSING CARE PLACEMENTS,OP COMMISSIONING,Third Party Payments,Revenue
Walsall Council,http://opendatacommunities.org/id/metropolitan-district-council/walsall,WC81-298,30/06/2017,Adult Social Care,ASH GRANGE CARE HOME,27/06/2017,"1,299.89",73373-RESIDENTIAL & NURSING CARE PLACEMENTS,OP COMMISSIONING,Third Party Payments,Revenue
Walsall Council,http://opendatacommunities.org/id/metropolitan-district-council/walsall,WC81-299,30/06/2017,Adult Social Care,ASH GRANGE CARE HOME,21/06/2017,"1,620.00",73373-RESIDENTIAL & NURSING CARE PLACEMENTS,OP COMMISSIONING,Third Party Payments,Revenue
Walsall Council,http://opendatacommunities.org/id/metropolitan-district-council/walsall,WC81-300,30/06/2017,Adult Social Care,ASH GRANGE CARE HOME,21/06/2017,"1,620.00",73373-RESIDENTIAL & NURSING CARE PLACEMENTS,OP COMMISSIONING,Third Party Payments,Revenue
Walsall Council,http://opendatacommunities.org/id/metropolitan-district-council/walsall,WC81-301,30/06/2017,Adult Social Care,ASH GRANGE CARE HOME,13/06/2017,"1,651.40",73373-RESIDENTIAL & NURSING CARE PLACEMENTS,OP COMMISSIONING,Third Party Payments,Revenue
Walsall Council,http://opendatacommunities.org/id/metropolitan-district-council/walsall,WC81-302,30/06/2017,Adult Social Care,ASH GRANGE CARE HOME,27/06/2017,"1,929.80",73373-RESIDENTIAL & NURSING CARE PLACEMENTS,OP COMMISSIONING,Third Party Payments,Revenue
Walsall Council,http://opendatacommunities.org/id/metropolitan-district-council/walsall,WC81-303,30/06/2017,Adult Social Care,ASH GRANGE CARE HOME,21/06/2017,"2,270.00",73373-RESIDENTIAL & NURSING CARE PLACEMENTS,OP COMMISSIONING,Third Party Payments,Revenue
Walsall Council,http://opendatacommunities.org/id/metropolitan-district-council/walsall,WC81-304,30/06/2017,Adult Social Care,ASH GRANGE CARE HOME,21/06/2017,"2,270.00",73373-RESIDENTIAL & NURSING CARE PLACEMENTS,OP COMMISSIONING,Third Party Payments,Revenue
Walsall Council,http://opendatacommunities.org/id/metropolitan-district-council/walsall,WC81-305,30/06/2017,Adult Social Care,ASH GRANGE CARE HOME,21/06/2017,"2,274.80",73373-RESIDENTIAL & NURSING CARE PLACEMENTS,OP COMMISSIONING,Third Party Payments,Revenue
Walsall Council,http://opendatacommunities.org/id/metropolitan-district-council/walsall,WC81-306,30/06/2017,Adult Social Care,ASH GRANGE CARE HOME,21/06/2017,"2,274.80",73373-RESIDENTIAL & NURSING CARE PLACEMENTS,OP COMMISSIONING,Third Party Payments,Revenue
Walsall Council,http://opendatacommunities.org/id/metropolitan-district-council/walsall,WC81-307,30/06/2017,Adult Social Care,ASH GRANGE CARE HOME,21/06/2017,"2,283.60",73373-RESIDENTIAL & NURSING CARE PLACEMENTS,OP COMMISSIONING,Third Party Payments,Revenue
Walsall Council,http://opendatacommunities.org/id/metropolitan-district-council/walsall,WC81-308,30/06/2017,Adult Social Care,ASH GRANGE CARE HOME,21/06/2017,"2,283.60",73373-RESIDENTIAL & NURSING CARE PLACEMENTS,OP COMMISSIONING,Third Party Payments,Revenue
Walsall Council,http://opendatacommunities.org/id/metropolitan-district-council/walsall,WC81-309,30/06/2017,Adult Social Care,ASH GRANGE CARE HOME,21/06/2017,"2,283.60",73373-RESIDENTIAL & NURSING CARE PLACEMENTS,MH COMMISSIONING,Third Party Payments,Revenue
Walsall Council,http://opendatacommunities.org/id/metropolitan-district-council/walsall,WC81-310,30/06/2017,Adult Social Care,ASH GRANGE CARE HOME,21/06/2017,"2,283.60",73373-RESIDENTIAL & NURSING CARE PLACEMENTS,OP COMMISSIONING,Third Party Payments,Revenue
Walsall Council,http://opendatacommunities.org/id/metropolitan-district-council/walsall,WC81-311,30/06/2017,Adult Social Care,ASH GRANGE CARE HOME,27/06/2017,"2,283.60",73373-RESIDENTIAL & NURSING CARE PLACEMENTS,OP COMMISSIONING,Third Party Payments,Revenue
Walsall Council,http://opendatacommunities.org/id/metropolitan-district-council/walsall,WC81-312,30/06/2017,Adult Social Care,ASH GRANGE CARE HOME,27/06/2017,"2,283.60",73373-RESIDENTIAL & NURSING CARE PLACEMENTS,OP COMMISSIONING,Third Party Payments,Revenue
Walsall Council,http://opendatacommunities.org/id/metropolitan-district-council/walsall,WC81-313,30/06/2017,Adult Social Care,ASH GRANGE CARE HOME,27/06/2017,"2,283.60",73373-RESIDENTIAL & NURSING CARE PLACEMENTS,OP COMMISSIONING,Third Party Payments,Revenue
Walsall Council,http://opendatacommunities.org/id/metropolitan-district-council/walsall,WC81-314,30/06/2017,Adult Social Care,ASH GRANGE CARE HOME,27/06/2017,"2,283.60",73373-RESIDENTIAL & NURSING CARE PLACEMENTS,OP COMMISSIONING,Third Party Payments,Revenue
Walsall Council,http://opendatacommunities.org/id/metropolitan-district-council/walsall,WC81-315,30/06/2017,Adult Social Care,ASH GRANGE CARE HOME,27/06/2017,"2,367.24",73373-RESIDENTIAL & NURSING CARE PLACEMENTS,OP COMMISSIONING,Third Party Payments,Revenue
Walsall Council,http://opendatacommunities.org/id/metropolitan-district-council/walsall,WC81-316,30/06/2017,Adult Social Care,ASH GRANGE CARE HOME,21/06/2017,"2,483.60",73373-RESIDENTIAL & NURSING CARE PLACEMENTS,OP COMMISSIONING,Third Party Payments,Revenue
Walsall Council,http://opendatacommunities.org/id/metropolitan-district-council/walsall,WC81-317,30/06/2017,Adult Social Care,ASH GRANGE CARE HOME,21/06/2017,"2,483.60",73373-RESIDENTIAL & NURSING CARE PLACEMENTS,OP COMMISSIONING,Third Party Payments,Revenue
Walsall Council,http://opendatacommunities.org/id/metropolitan-district-council/walsall,WC81-318,30/06/2017,Adult Social Care,ASH GRANGE CARE HOME,21/06/2017,"2,499.60",73373-RESIDENTIAL & NURSING CARE PLACEMENTS,MH COMMISSIONING,Third Party Payments,Revenue
Walsall Council,http://opendatacommunities.org/id/metropolitan-district-council/walsall,WC81-319,30/06/2017,Adult Social Care,ASH GRANGE CARE HOME,21/06/2017,"2,523.60",73373-RESIDENTIAL & NURSING CARE PLACEMENTS,OP COMMISSIONING,Third Party Payments,Revenue
Walsall Council,http://opendatacommunities.org/id/metropolitan-district-council/walsall,WC81-320,30/06/2017,Adult Social Care,ASH GRANGE CARE HOME,06/06/2017,"2,823.21",73373-RESIDENTIAL & NURSING CARE PLACEMENTS,OP COMMISSIONING,Third Party Payments,Revenue
Walsall Council,http://opendatacommunities.org/id/metropolitan-district-council/walsall,WC81-321,30/06/2017,Adult Social Care,ASH GRANGE CARE HOME,21/06/2017,"3,115.92",73373-RESIDENTIAL & NURSING CARE PLACEMENTS,PD COMMISSIONING,Third Party Payments,Revenue
Walsall Council,http://opendatacommunities.org/id/metropolitan-district-council/walsall,WC81-322,30/06/2017,Adult Social Care,ASHBOURNE LODGE,13/06/2017,"2,103.86",73373-RESIDENTIAL & NURSING CARE PLACEMENTS,OP COMMISSIONING,Third Party Payments,Revenue
Walsall Council,http://opendatacommunities.org/id/metropolitan-district-council/walsall,WC81-323,30/06/2017,Adult Social Care,REDACTED,14/06/2017,346.20,76422-DIRECT PAYMENTS TO SOCIAL SERVICES CLIENTS,LD COMMISSIONING,Transfer Payments,Revenue
Walsall Council,http://opendatacommunities.org/id/metropolitan-district-council/walsall,WC81-324,30/06/2017,Adult Social Care,REDACTED,14/06/2017,945.00,76422-DIRECT PAYMENTS TO SOCIAL SERVICES CLIENTS,OP COMMISSIONING,Transfer Payments,Revenue
Walsall Council,http://opendatacommunities.org/id/metropolitan-district-council/walsall,WC81-325,30/06/2017,Childrens,ASPIRE RESIDENTIAL CARE HOME,19/06/2017,"8,326.00",74036-EXTERNAL RESIDENTIAL CARE-OTH AGENCY PROVISION,INDEPENDENT RESIDENTIAL HOMES,Third Party Payments,Revenue
Walsall Council,http://opendatacommunities.org/id/metropolitan-district-council/walsall,WC81-326,30/06/2017,Childrens,ATG CONTRACT SERVICES LIMITED,21/06/2017,"6,491.73",52000-WITH DRIVER-HIRE OF VEHICLES,SCHOOL TRANSPORT,Transport,Revenue
Walsall Council,http://opendatacommunities.org/id/metropolitan-district-council/walsall,WC81-327,30/06/2017,Childrens,ATG CONTRACT SERVICES LIMITED,21/06/2017,"11,684.62",52000-WITH DRIVER-HIRE OF VEHICLES,SCHOOL TRANSPORT,Transport,Revenue
Walsall Council,http://opendatacommunities.org/id/metropolitan-district-council/walsall,WC81-328,30/06/2017,Economy & Environment,ATKINS LIMITED,19/06/2017,"4,982.00",01001-OTHER CONSULTANTS FEES,CFR 1072 LEX - GROWTH DEAL,Capital,Capital
Walsall Council,http://opendatacommunities.org/id/metropolitan-district-council/walsall,WC81-329,30/06/2017,Change and Governance,AURORA GRAPHICS & DISPLAYS LTD,07/06/2017,563.40,62008-OUTWORK-PRINT ROOM,PRINTING SERVICES,Supplies & Services,Revenue
Walsall Council,http://opendatacommunities.org/id/metropolitan-district-council/walsall,WC81-330,30/06/2017,Adult Social Care,AUTISM WEST MIDLANDS,05/06/2017,"13,333.29",70000-SOCIAL SERVICES-FEES TO VOLUNTARY BODIES,COMPLEX NEEDS CONTRACTS/SLA's,Third Party Payments,Revenue
Walsall Council,http://opendatacommunities.org/id/metropolitan-district-council/walsall,WC81-331,30/06/2017,Adult Social Care,AUTISM WEST MIDLANDS,05/06/2017,"21,666.50",70000-SOCIAL SERVICES-FEES TO VOLUNTARY BODIES,COMPLEX NEEDS CONTRACTS/SLA's,Third Party Payments,Revenue
Walsall Council,http://opendatacommunities.org/id/metropolitan-district-council/walsall,WC81-332,30/06/2017,Economy & Environment,AVALON PROMOTIONS LTD,14/06/2017,"2,500.00",63000-PROFESSIONAL FEES AND SERVICES,FOREST ARTS CENTRE,Supplies & Services,Revenue
Walsall Council,http://opendatacommunities.org/id/metropolitan-district-council/walsall,WC81-333,30/06/2017,Economy & Environment,AVANTGARDE PHARMA LTD T/A AL-SHAFA PHARMACY,22/06/2017,419.77,71007-CONTRIBUTION TO PCT,PUBLIC HEALTH BUSINESS SUPPORT,Third Party Payments,Revenue
Walsall Council,http://opendatacommunities.org/id/metropolitan-district-council/walsall,WC81-334,30/06/2017,Adult Social Care,REDACTED,14/06/2017,"1,236.30",76422-DIRECT PAYMENTS TO SOCIAL SERVICES CLIENTS,OP COMMISSIONING,Transfer Payments,Revenue
Walsall Council,http://opendatacommunities.org/id/metropolitan-district-council/walsall,WC81-335,30/06/2017,Childrens,AXCIS EDUCATION RECRUITMENT,19/06/2017,870.00,66502-TOP UP FUNDING -GRANTS TO SCHOOLS,INDEPENDENT PROVIDERS - SPECIAL & AP,Third Party Payments,Revenue
Walsall Council,http://opendatacommunities.org/id/metropolitan-district-council/walsall,WC81-336,30/06/2017,Childrens,AXCIS EDUCATION RECRUITMENT,19/06/2017,925.50,66502-TOP UP FUNDING -GRANTS TO SCHOOLS,INDEPENDENT PROVIDERS - SPECIAL & AP,Third Party Payments,Revenue
Walsall Council,http://opendatacommunities.org/id/metropolitan-district-council/walsall,WC81-337,30/06/2017,Childrens,AXCIS EDUCATION RECRUITMENT,16/06/2017,"1,227.00",66502-TOP UP FUNDING -GRANTS TO SCHOOLS,INDEPENDENT PROVIDERS - SPECIAL & AP,Third Party Payments,Revenue
Walsall Council,http://opendatacommunities.org/id/metropolitan-district-council/walsall,WC81-338,30/06/2017,Childrens,AXCIS EDUCATION RECRUITMENT,16/06/2017,"1,227.00",66502-TOP UP FUNDING -GRANTS TO SCHOOLS,INDEPENDENT PROVIDERS - SPECIAL & AP,Third Party Payments,Revenue
Walsall Council,http://opendatacommunities.org/id/metropolitan-district-council/walsall,WC81-339,30/06/2017,Economy & Environment,AXIELL LIMITED,05/06/2017,489.19,63000-PROFESSIONAL FEES AND SERVICES,LIBRARY DEVELOPMENT 1,Supplies & Services,Revenue
Walsall Council,http://opendatacommunities.org/id/metropolitan-district-council/walsall,WC81-340,30/06/2017,Childrens,REDACTED,14/06/2017,"1,605.00",76422-DIRECT PAYMENTS TO SOCIAL SERVICES CLIENTS,FAMILY SUPPORT - DIRECT PAYMENTS,Transfer Payments,Revenue
Walsall Council,http://opendatacommunities.org/id/metropolitan-district-council/walsall,WC81-341,30/06/2017,Adult Social Care,REDACTED,14/06/2017,"3,510.00",76422-DIRECT PAYMENTS TO SOCIAL SERVICES CLIENTS,LD COMMISSIONING,Transfer Payments,Revenue
Walsall Council,http://opendatacommunities.org/id/metropolitan-district-council/walsall,WC81-342,30/06/2017,Childrens,REDACTED,06/06/2017,985.76,74501-MAINTENANCE ALLOWANCE-FOSTER CARERS,FAMILY & FRIENDS FOSTER CARE PROVISION,Transfer Payments,Revenue
Walsall Council,http://opendatacommunities.org/id/metropolitan-district-council/walsall,WC81-343,30/06/2017,Change and Governance,B E FURNITURE LTD T/A B E EVENTHIRE,14/06/2017,478.00,60009-LEASING/HIRE/RENTAL-EQUIPMENT,ELECTORAL ADMINISTRATION,Supplies & Services,Revenue
Walsall Council,http://opendatacommunities.org/id/metropolitan-district-council/walsall,WC81-344,30/06/2017,Childrens,REDACTED,06/06/2017,464.00,76000-TRANSFER PAYMENTS - SOCIAL SERVICES CLIENTS,TRANSITION AND LEAVING CARE,Transfer Payments,Revenue
Walsall Council,http://opendatacommunities.org/id/metropolitan-district-council/walsall,WC81-345,30/06/2017,Childrens,REDACTED,06/06/2017,464.00,76000-TRANSFER PAYMENTS - SOCIAL SERVICES CLIENTS,TRANSITION AND LEAVING CARE,Transfer Payments,Revenue
Walsall Council,http://opendatacommunities.org/id/metropolitan-district-council/walsall,WC81-346,30/06/2017,Childrens,REDACTED,20/06/2017,464.00,76000-TRANSFER PAYMENTS - SOCIAL SERVICES CLIENTS,TRANSITION AND LEAVING CARE,Transfer Payments,Revenue
Walsall Council,http://opendatacommunities.org/id/metropolitan-district-council/walsall,WC81-347,30/06/2017,Childrens,REDACTED,20/06/2017,464.00,76000-TRANSFER PAYMENTS - SOCIAL SERVICES CLIENTS,TRANSITION AND LEAVING CARE,Transfer Payments,Revenue
Walsall Council,http://opendatacommunities.org/id/metropolitan-district-council/walsall,WC81-348,30/06/2017,Childrens,BACK CARE SOLUTIONS LTD,12/06/2017,-530.00,60006-NEW-FURNITURE & EQUIPMENT,CHILDREN'S ADMIN,Supplies & Services,Revenue
Walsall Council,http://opendatacommunities.org/id/metropolitan-district-council/walsall,WC81-349,30/06/2017,Childrens,BACK CARE SOLUTIONS LTD,14/06/2017,938.00,60000-FURNITURE & EQUIPMENT,LOCALITY FAMILY SUPPORT-CENTRAL & EAST,Supplies & Services,Revenue
Walsall Council,http://opendatacommunities.org/id/metropolitan-district-council/walsall,WC81-350,30/06/2017,Change and Governance,BADENOCH & CLARK 002,28/06/2017,"3,274.78",34305-AGENCY STAFF-EMPLOYEES,CORPORATE MANAGEMENT TEAM,Employees,Revenue
Walsall Council,http://opendatacommunities.org/id/metropolitan-district-council/walsall,WC81-351,30/06/2017,Change and Governance,BADENOCH & CLARK 002,06/06/2017,"3,742.60",34305-AGENCY STAFF-EMPLOYEES,CORPORATE MANAGEMENT TEAM,Employees,Revenue
Walsall Council,http://opendatacommunities.org/id/metropolitan-district-council/walsall,WC81-352,30/06/2017,Change and Governance,BADENOCH & CLARK 002,21/06/2017,"4,678.25",34305-AGENCY STAFF-EMPLOYEES,CORPORATE MANAGEMENT TEAM,Employees,Revenue
Walsall Council,http://opendatacommunities.org/id/metropolitan-district-council/walsall,WC81-353,30/06/2017,Adult Social Care,REDACTED,14/06/2017,600.00,76422-DIRECT PAYMENTS TO SOCIAL SERVICES CLIENTS,MH COMMISSIONING,Transfer Payments,Revenue
Walsall Council,http://opendatacommunities.org/id/metropolitan-district-council/walsall,WC81-354,30/06/2017,Adult Social Care,REDACTED,14/06/2017,"2,673.00",76422-DIRECT PAYMENTS TO SOCIAL SERVICES CLIENTS,OP COMMISSIONING,Transfer Payments,Revenue
Walsall Council,http://opendatacommunities.org/id/metropolitan-district-council/walsall,WC81-355,30/06/2017,Adult Social Care,REDACTED,14/06/2017,"10,209.30",76422-DIRECT PAYMENTS TO SOCIAL SERVICES CLIENTS,LD COMMISSIONING,Transfer Payments,Revenue
Walsall Council,http://opendatacommunities.org/id/metropolitan-district-council/walsall,WC81-356,30/06/2017,Adult Social Care,REDACTED,14/06/2017,"1,000.00",76422-DIRECT PAYMENTS TO SOCIAL SERVICES CLIENTS,OP COMMISSIONING,Transfer Payments,Revenue
Walsall Council,http://opendatacommunities.org/id/metropolitan-district-council/walsall,WC81-357,30/06/2017,Adult Social Care,REDACTED,14/06/2017,"1,978.58",76422-DIRECT PAYMENTS TO SOCIAL SERVICES CLIENTS,OP COMMISSIONING,Transfer Payments,Revenue
Walsall Council,http://opendatacommunities.org/id/metropolitan-district-council/walsall,WC81-358,30/06/2017,Childrens,REDACTED,06/06/2017,9.24,60006-NEW-FURNITURE & EQUIPMENT,FAMILY & FRIENDS FOSTER CARE PROVISION,Supplies & Services,Revenue
Walsall Council,http://opendatacommunities.org/id/metropolitan-district-council/walsall,WC81-359,30/06/2017,Childrens,REDACTED,06/06/2017,71.43,74503-BIRTHDAY ALLOWANCE-FOSTER CARERS,FAMILY & FRIENDS FOSTER CARE PROVISION,Transfer Payments,Revenue
Walsall Council,http://opendatacommunities.org/id/metropolitan-district-council/walsall,WC81-360,30/06/2017,Childrens,REDACTED,06/06/2017,345.24,74508-INTERNAL FOSTER CARERS-CARER FEES,FAMILY & FRIENDS FOSTER CARE PROVISION,Transfer Payments,Revenue
Walsall Council,http://opendatacommunities.org/id/metropolitan-district-council/walsall,WC81-361,30/06/2017,Childrens,REDACTED,06/06/2017,571.44,74501-MAINTENANCE ALLOWANCE-FOSTER CARERS,FAMILY & FRIENDS FOSTER CARE PROVISION,Transfer Payments,Revenue
Walsall Council,http://opendatacommunities.org/id/metropolitan-district-council/walsall,WC81-362,30/06/2017,Adult Social Care,REDACTED,14/06/2017,"1,062.05",76422-DIRECT PAYMENTS TO SOCIAL SERVICES CLIENTS,OP COMMISSIONING,Transfer Payments,Revenue
Walsall Council,http://opendatacommunities.org/id/metropolitan-district-council/walsall,WC81-363,30/06/2017,Economy & Environment,BARBOUR LOGIC LIMITED,28/06/2017,"6,562.50",73025-PROFESSIONAL SERVICES-PRIV CONTRACTOR & OTHER AGENCIES,PARKING SERVICES OFF-STREET,Third Party Payments,Revenue
Walsall Council,http://opendatacommunities.org/id/metropolitan-district-council/walsall,WC81-364,30/06/2017,Childrens,BARNARDOS SERVICES LTD,14/06/2017,550.00,69400-REFERENCE BOOKS,PARENTING TEAM,Supplies & Services,Revenue
Walsall Council,http://opendatacommunities.org/id/metropolitan-district-council/walsall,WC81-365,30/06/2017,Childrens,BARNARDOS SERVICES LTD,19/06/2017,"2,963.52",74037-INDEPENDENT FOSTER CARE-OTH AGENCY PROVISION,EXTERNAL FOSTER CARE PROVISION,Third Party Payments,Revenue
Walsall Council,http://opendatacommunities.org/id/metropolitan-district-council/walsall,WC81-366,30/06/2017,Childrens,BARNARDOS SERVICES LTD,22/06/2017,"3,253.50",63000-PROFESSIONAL FEES AND SERVICES,GENERAL MANAGEMENT SUPPORT (INC LEGAL),Supplies & Services,Revenue
Walsall Council,http://opendatacommunities.org/id/metropolitan-district-council/walsall,WC81-367,30/06/2017,Change and Governance,BARNBOROUGH LTD,16/06/2017,"1,067.10",60007-REPAIR OF EQUIPMENT-EQUIPMENT,CL ADMIN,Supplies & Services,Revenue
Walsall Council,http://opendatacommunities.org/id/metropolitan-district-council/walsall,WC81-368,30/06/2017,Childrens,BARR BEACON SCHOOL TRUST,28/06/2017,"21,221.53",66502-TOP UP FUNDING -GRANTS TO SCHOOLS,BARR BEACON SCHOOL TRUST (ACADEMY),Third Party Payments,Revenue
Walsall Council,http://opendatacommunities.org/id/metropolitan-district-council/walsall,WC81-369,30/06/2017,Adult Social Care,REDACTED,14/06/2017,613.00,76422-DIRECT PAYMENTS TO SOCIAL SERVICES CLIENTS,OP COMMISSIONING,Transfer Payments,Revenue
Walsall Council,http://opendatacommunities.org/id/metropolitan-district-council/walsall,WC81-370,30/06/2017,Childrens,REDACTED,19/06/2017,9.24,60006-NEW-FURNITURE & EQUIPMENT,INTERNAL FOSTER CARE PROVISION,Supplies & Services,Revenue
Walsall Council,http://opendatacommunities.org/id/metropolitan-district-council/walsall,WC81-371,30/06/2017,Childrens,REDACTED,19/06/2017,530.96,74508-INTERNAL FOSTER CARERS-CARER FEES,INTERNAL FOSTER CARE PROVISION,Transfer Payments,Revenue
Walsall Council,http://opendatacommunities.org/id/metropolitan-district-council/walsall,WC81-372,30/06/2017,Economy & Environment,BEATSABAR MUSIC PROJECT CIC,29/06/2017,"4,992.00",66500-GRANTS TO OTHER ORGS,ESF COMMUNITY GRANTS,Third Party Payments,Revenue
Walsall Council,http://opendatacommunities.org/id/metropolitan-district-council/walsall,WC81-373,30/06/2017,Childrens,REDACTED,19/06/2017,9.24,60006-NEW-FURNITURE & EQUIPMENT,INTERNAL FOSTER CARE PROVISION,Supplies & Services,Revenue
Walsall Council,http://opendatacommunities.org/id/metropolitan-district-council/walsall,WC81-374,30/06/2017,Childrens,REDACTED,19/06/2017,457.56,74506-TRAVEL-FOSTER CARERS,INTERNAL FOSTER CARE PROVISION,Transfer Payments,Revenue
Walsall Council,http://opendatacommunities.org/id/metropolitan-district-council/walsall,WC81-375,30/06/2017,Childrens,REDACTED,19/06/2017,530.96,74508-INTERNAL FOSTER CARERS-CARER FEES,INTERNAL FOSTER CARE PROVISION,Transfer Payments,Revenue
Walsall Council,http://opendatacommunities.org/id/metropolitan-district-council/walsall,WC81-376,30/06/2017,Adult Social Care,BELVIDERE COURT,13/06/2017,"1,767.64",73373-RESIDENTIAL & NURSING CARE PLACEMENTS,OP COMMISSIONING,Third Party Payments,Revenue
Walsall Council,http://opendatacommunities.org/id/metropolitan-district-council/walsall,WC81-377,30/06/2017,Adult Social Care,BELVIDERE COURT,13/06/2017,"1,767.64",73373-RESIDENTIAL & NURSING CARE PLACEMENTS,OP COMMISSIONING,Third Party Payments,Revenue
Walsall Council,http://opendatacommunities.org/id/metropolitan-district-council/walsall,WC81-378,30/06/2017,Adult Social Care,BELVIDERE COURT,13/06/2017,"1,825.41",73373-RESIDENTIAL & NURSING CARE PLACEMENTS,MH COMMISSIONING,Third Party Payments,Revenue
Walsall Council,http://opendatacommunities.org/id/metropolitan-district-council/walsall,WC81-379,30/06/2017,Adult Social Care,BELVIDERE COURT,13/06/2017,"3,642.86",73373-RESIDENTIAL & NURSING CARE PLACEMENTS,MH COMMISSIONING,Third Party Payments,Revenue
Walsall Council,http://opendatacommunities.org/id/metropolitan-district-council/walsall,WC81-380,30/06/2017,Adult Social Care,REDACTED,14/06/2017,"2,887.50",76422-DIRECT PAYMENTS TO SOCIAL SERVICES CLIENTS,LD COMMISSIONING,Transfer Payments,Revenue
Walsall Council,http://opendatacommunities.org/id/metropolitan-district-council/walsall,WC81-381,30/06/2017,Adult Social Care,BENTLEY COURT PRIORY,06/06/2017,"1,767.64",73373-RESIDENTIAL & NURSING CARE PLACEMENTS,OP COMMISSIONING,Third Party Payments,Revenue
Walsall Council,http://opendatacommunities.org/id/metropolitan-district-council/walsall,WC81-382,30/06/2017,Adult Social Care,BENTLEY COURT PRIORY,06/06/2017,"1,826.56",73373-RESIDENTIAL & NURSING CARE PLACEMENTS,OP COMMISSIONING,Third Party Payments,Revenue
Walsall Council,http://opendatacommunities.org/id/metropolitan-district-council/walsall,WC81-383,30/06/2017,Adult Social Care,BENTLEY COURT PRIORY,06/06/2017,"1,924.50",73373-RESIDENTIAL & NURSING CARE PLACEMENTS,OP COMMISSIONING,Third Party Payments,Revenue
Walsall Council,http://opendatacommunities.org/id/metropolitan-district-council/walsall,WC81-384,30/06/2017,Adult Social Care,BENTLEY COURT PRIORY,06/06/2017,"1,988.65",73373-RESIDENTIAL & NURSING CARE PLACEMENTS,OP COMMISSIONING,Third Party Payments,Revenue
Walsall Council,http://opendatacommunities.org/id/metropolitan-district-council/walsall,WC81-385,30/06/2017,Adult Social Care,BENTLEY COURT PRIORY,06/06/2017,"2,004.17",73373-RESIDENTIAL & NURSING CARE PLACEMENTS,OP COMMISSIONING,Third Party Payments,Revenue
Walsall Council,http://opendatacommunities.org/id/metropolitan-district-council/walsall,WC81-386,30/06/2017,Adult Social Care,BENTLEY COURT PRIORY,06/06/2017,"2,041.20",73373-RESIDENTIAL & NURSING CARE PLACEMENTS,OP COMMISSIONING,Third Party Payments,Revenue
Walsall Council,http://opendatacommunities.org/id/metropolitan-district-council/walsall,WC81-387,30/06/2017,Adult Social Care,BENTLEY COURT PRIORY,06/06/2017,"2,070.98",73373-RESIDENTIAL & NURSING CARE PLACEMENTS,OP COMMISSIONING,Third Party Payments,Revenue
Walsall Council,http://opendatacommunities.org/id/metropolitan-district-council/walsall,WC81-388,30/06/2017,Adult Social Care,BENTLEY COURT PRIORY,06/06/2017,"2,109.24",73373-RESIDENTIAL & NURSING CARE PLACEMENTS,OP COMMISSIONING,Third Party Payments,Revenue
Walsall Council,http://opendatacommunities.org/id/metropolitan-district-council/walsall,WC81-389,30/06/2017,Childrens,BERRY GIFFORD LTD,22/06/2017,"8,956.52",76010-ACCOMMODATION AND RELATED COSTS-ASSISTANCE TO S/S CLIENTS,TRANSITION AND LEAVING CARE,Transfer Payments,Revenue
Walsall Council,http://opendatacommunities.org/id/metropolitan-district-council/walsall,WC81-390,30/06/2017,Adult Social Care,REDACTED,14/06/2017,"1,140.00",76422-DIRECT PAYMENTS TO SOCIAL SERVICES CLIENTS,OP COMMISSIONING,Transfer Payments,Revenue
Walsall Council,http://opendatacommunities.org/id/metropolitan-district-council/walsall,WC81-391,30/06/2017,Childrens,REDACTED,19/06/2017,9.24,60006-NEW-FURNITURE & EQUIPMENT,INTERNAL FOSTER CARE PROVISION,Supplies & Services,Revenue
Walsall Council,http://opendatacommunities.org/id/metropolitan-district-council/walsall,WC81-392,30/06/2017,Childrens,REDACTED,19/06/2017,81.37,74503-BIRTHDAY ALLOWANCE-FOSTER CARERS,INTERNAL FOSTER CARE PROVISION,Transfer Payments,Revenue
Walsall Council,http://opendatacommunities.org/id/metropolitan-district-council/walsall,WC81-393,30/06/2017,Childrens,REDACTED,19/06/2017,571.44,74501-MAINTENANCE ALLOWANCE-FOSTER CARERS,INTERNAL FOSTER CARE PROVISION,Transfer Payments,Revenue
Walsall Council,http://opendatacommunities.org/id/metropolitan-district-council/walsall,WC81-394,30/06/2017,Childrens,REDACTED,19/06/2017,571.44,74501-MAINTENANCE ALLOWANCE-FOSTER CARERS,INTERNAL FOSTER CARE PROVISION,Transfer Payments,Revenue
Walsall Council,http://opendatacommunities.org/id/metropolitan-district-council/walsall,WC81-395,30/06/2017,Childrens,REDACTED,19/06/2017,"1,436.08",74508-INTERNAL FOSTER CARERS-CARER FEES,INTERNAL FOSTER CARE PROVISION,Transfer Payments,Revenue
Walsall Council,http://opendatacommunities.org/id/metropolitan-district-council/walsall,WC81-396,30/06/2017,Adult Social Care,REDACTED,14/06/2017,"1,210.00",76422-DIRECT PAYMENTS TO SOCIAL SERVICES CLIENTS,OP COMMISSIONING,Transfer Payments,Revenue
Walsall Council,http://opendatacommunities.org/id/metropolitan-district-council/walsall,WC81-397,30/06/2017,Adult Social Care,BESCOT LODGE RESIDENTIAL CARE HOME,13/06/2017,"1,735.71",73373-RESIDENTIAL & NURSING CARE PLACEMENTS,OP COMMISSIONING,Third Party Payments,Revenue
Walsall Council,http://opendatacommunities.org/id/metropolitan-district-council/walsall,WC81-398,30/06/2017,Adult Social Care,BESCOT LODGE RESIDENTIAL CARE HOME,13/06/2017,"1,735.72",73373-RESIDENTIAL & NURSING CARE PLACEMENTS,OP COMMISSIONING,Third Party Payments,Revenue
Walsall Council,http://opendatacommunities.org/id/metropolitan-district-council/walsall,WC81-399,30/06/2017,Adult Social Care,BESCOT LODGE RESIDENTIAL CARE HOME,13/06/2017,"1,735.72",73373-RESIDENTIAL & NURSING CARE PLACEMENTS,OP COMMISSIONING,Third Party Payments,Revenue
Walsall Council,http://opendatacommunities.org/id/metropolitan-district-council/walsall,WC81-400,30/06/2017,Adult Social Care,BESCOT LODGE RESIDENTIAL CARE HOME,06/06/2017,"1,928.57",73373-RESIDENTIAL & NURSING CARE PLACEMENTS,OP COMMISSIONING,Third Party Payments,Revenue
Walsall Council,http://opendatacommunities.org/id/metropolitan-district-council/walsall,WC81-401,30/06/2017,Adult Social Care,BESCOT LODGE RESIDENTIAL CARE HOME,13/06/2017,"1,928.57",73373-RESIDENTIAL & NURSING CARE PLACEMENTS,OP COMMISSIONING,Third Party Payments,Revenue
Walsall Council,http://opendatacommunities.org/id/metropolitan-district-council/walsall,WC81-402,30/06/2017,Adult Social Care,BESCOT LODGE RESIDENTIAL CARE HOME,13/06/2017,"1,928.57",73373-RESIDENTIAL & NURSING CARE PLACEMENTS,OP COMMISSIONING,Third Party Payments,Revenue
Walsall Council,http://opendatacommunities.org/id/metropolitan-district-council/walsall,WC81-403,30/06/2017,Adult Social Care,BESCOT LODGE RESIDENTIAL CARE HOME,13/06/2017,"1,928.57",73373-RESIDENTIAL & NURSING CARE PLACEMENTS,OP COMMISSIONING,Third Party Payments,Revenue
Walsall Council,http://opendatacommunities.org/id/metropolitan-district-council/walsall,WC81-404,30/06/2017,Adult Social Care,BESCOT LODGE RESIDENTIAL CARE HOME,06/06/2017,"1,992.86",73373-RESIDENTIAL & NURSING CARE PLACEMENTS,OP COMMISSIONING,Third Party Payments,Revenue
Walsall Council,http://opendatacommunities.org/id/metropolitan-district-council/walsall,WC81-405,30/06/2017,Economy & Environment,BESCOT STADIUM SUNDAY MARKET LTD,14/06/2017,"3,500.00",73025-PROFESSIONAL SERVICES-PRIV CONTRACTOR & OTHER AGENCIES,WILLENHALL MARKET,Third Party Payments,Revenue
Walsall Council,http://opendatacommunities.org/id/metropolitan-district-council/walsall,WC81-406,30/06/2017,Adult Social Care,BETHPHAGE.,16/06/2017,650.00,73374-SUPPORTED & OTHER ACCOMMODATION,LD COMMISSIONING,Third Party Payments,Revenue
Walsall Council,http://opendatacommunities.org/id/metropolitan-district-council/walsall,WC81-407,30/06/2017,Adult Social Care,BETHPHAGE.,02/06/2017,812.50,73374-SUPPORTED & OTHER ACCOMMODATION,LD COMMISSIONING,Third Party Payments,Revenue
Walsall Council,http://opendatacommunities.org/id/metropolitan-district-council/walsall,WC81-408,30/06/2017,Adult Social Care,BETHPHAGE.,16/06/2017,"1,015.92",73374-SUPPORTED & OTHER ACCOMMODATION,LD COMMISSIONING,Third Party Payments,Revenue
Walsall Council,http://opendatacommunities.org/id/metropolitan-district-council/walsall,WC81-409,30/06/2017,Adult Social Care,BETHPHAGE.,02/06/2017,"1,269.90",73374-SUPPORTED & OTHER ACCOMMODATION,LD COMMISSIONING,Third Party Payments,Revenue
Walsall Council,http://opendatacommunities.org/id/metropolitan-district-council/walsall,WC81-410,30/06/2017,Adult Social Care,BETHPHAGE.,16/06/2017,"1,326.36",73374-SUPPORTED & OTHER ACCOMMODATION,LD COMMISSIONING,Third Party Payments,Revenue
Walsall Council,http://opendatacommunities.org/id/metropolitan-district-council/walsall,WC81-411,30/06/2017,Adult Social Care,BETHPHAGE.,16/06/2017,"1,439.24",73374-SUPPORTED & OTHER ACCOMMODATION,LD COMMISSIONING,Third Party Payments,Revenue
Walsall Council,http://opendatacommunities.org/id/metropolitan-district-council/walsall,WC81-412,30/06/2017,Adult Social Care,BETHPHAGE.,02/06/2017,"1,657.95",73374-SUPPORTED & OTHER ACCOMMODATION,LD COMMISSIONING,Third Party Payments,Revenue
Walsall Council,http://opendatacommunities.org/id/metropolitan-district-council/walsall,WC81-413,30/06/2017,Adult Social Care,BETHPHAGE.,02/06/2017,"1,799.05",73374-SUPPORTED & OTHER ACCOMMODATION,LD COMMISSIONING,Third Party Payments,Revenue
Walsall Council,http://opendatacommunities.org/id/metropolitan-district-council/walsall,WC81-414,30/06/2017,Adult Social Care,BETHPHAGE.,16/06/2017,"2,666.80",73374-SUPPORTED & OTHER ACCOMMODATION,LD COMMISSIONING,Third Party Payments,Revenue
Walsall Council,http://opendatacommunities.org/id/metropolitan-district-council/walsall,WC81-415,30/06/2017,Adult Social Care,BETHPHAGE.,16/06/2017,"3,831.92",73374-SUPPORTED & OTHER ACCOMMODATION,LD COMMISSIONING,Third Party Payments,Revenue
Walsall Council,http://opendatacommunities.org/id/metropolitan-district-council/walsall,WC81-416,30/06/2017,Adult Social Care,BETHPHAGE.,02/06/2017,"4,789.90",73374-SUPPORTED & OTHER ACCOMMODATION,LD COMMISSIONING,Third Party Payments,Revenue
Walsall Council,http://opendatacommunities.org/id/metropolitan-district-council/walsall,WC81-417,30/06/2017,Adult Social Care,REDACTED,14/06/2017,"1,186.90",76422-DIRECT PAYMENTS TO SOCIAL SERVICES CLIENTS,MH COMMISSIONING,Transfer Payments,Revenue
Walsall Council,http://opendatacommunities.org/id/metropolitan-district-council/walsall,WC81-418,30/06/2017,Adult Social Care,REDACTED,14/06/2017,"3,459.80",76422-DIRECT PAYMENTS TO SOCIAL SERVICES CLIENTS,OP COMMISSIONING,Transfer Payments,Revenue
Walsall Council,http://opendatacommunities.org/id/metropolitan-district-council/walsall,WC81-419,30/06/2017,Change and Governance,BFA SAFETY TRAINING,02/06/2017,295.00,30030-EXTERNAL TRAINING,HEALTH & SAFETY,Employees,Revenue
Walsall Council,http://opendatacommunities.org/id/metropolitan-district-council/walsall,WC81-420,30/06/2017,Economy & Environment,BIFFA WASTE SERVICES LTD,09/06/2017,240.00,73029-HAZARDOUS WASTE REMOVAL/DISPOSAL-PRIV CONTRACTOR FEES,WASTE DISPOSAL - RESIDUAL,Third Party Payments,Revenue
Walsall Council,http://opendatacommunities.org/id/metropolitan-district-council/walsall,WC81-421,30/06/2017,Economy & Environment,BIFFA WASTE SERVICES LTD,09/06/2017,370.23,73039-LANDFILL TAX-PRIV CONTRACTOR FEES,WASTE DISPOSAL - RESIDUAL,Third Party Payments,Revenue
Walsall Council,http://opendatacommunities.org/id/metropolitan-district-council/walsall,WC81-422,30/06/2017,Childrens,REDACTED,14/06/2017,609.65,76422-DIRECT PAYMENTS TO SOCIAL SERVICES CLIENTS,FAMILY SUPPORT - DIRECT PAYMENTS,Transfer Payments,Revenue
Walsall Council,http://opendatacommunities.org/id/metropolitan-district-council/walsall,WC81-423,30/06/2017,Childrens,REDACTED,14/06/2017,715.00,76422-DIRECT PAYMENTS TO SOCIAL SERVICES CLIENTS,FAMILY SUPPORT - DIRECT PAYMENTS,Transfer Payments,Revenue
Walsall Council,http://opendatacommunities.org/id/metropolitan-district-council/walsall,WC81-424,30/06/2017,Economy & Environment,BILSTON RESOURCE CENTRE,23/06/2017,568.25,63000-PROFESSIONAL FEES AND SERVICES,YEI (IMPACT) PROGRAMME,Supplies & Services,Revenue
Walsall Council,http://opendatacommunities.org/id/metropolitan-district-council/walsall,WC81-425,30/06/2017,Economy & Environment,BILSTON RESOURCE CENTRE,23/06/2017,568.25,63000-PROFESSIONAL FEES AND SERVICES,YEI ESF FUNDING,Supplies & Services,Revenue
Walsall Council,http://opendatacommunities.org/id/metropolitan-district-council/walsall,WC81-426,30/06/2017,Childrens,BIRCHILLS C OF E COMMUNITY ACADEMY,28/06/2017,"2,694.08",66502-TOP UP FUNDING -GRANTS TO SCHOOLS,BIRCHILLS CE COMMUNITY ACADEMY,Third Party Payments,Revenue
Walsall Council,http://opendatacommunities.org/id/metropolitan-district-council/walsall,WC81-427,30/06/2017,Childrens,BIRCHILLS C OF E COMMUNITY ACADEMY,28/06/2017,"19,673.10",66502-TOP UP FUNDING -GRANTS TO SCHOOLS,BIRCHILLS CE COMMUNITY ACADEMY,Third Party Payments,Revenue
Walsall Council,http://opendatacommunities.org/id/metropolitan-district-council/walsall,WC81-428,30/06/2017,Childrens,BIRMINGHAM CITY COUNCIL,19/06/2017,"1,956.16",74037-INDEPENDENT FOSTER CARE-OTH AGENCY PROVISION,EXTERNAL FOSTER CARE PROVISION,Third Party Payments,Revenue
Walsall Council,http://opendatacommunities.org/id/metropolitan-district-council/walsall,WC81-429,30/06/2017,Childrens,BIRMINGHAM CITY COUNCIL,02/06/2017,"2,984.34",52000-WITH DRIVER-HIRE OF VEHICLES,SCHOOL TRANSPORT,Transport,Revenue
Walsall Council,http://opendatacommunities.org/id/metropolitan-district-council/walsall,WC81-430,30/06/2017,Economy & Environment,BIRMINGHAM CITY COUNCIL,01/06/2017,"6,339.33",71000-PAYMENTS FOR SERVICES FROM OTHER LOCAL AUTHORITIES,PLANNING POLICY,Third Party Payments,Revenue
Walsall Council,http://opendatacommunities.org/id/metropolitan-district-council/walsall,WC81-431,30/06/2017,Economy & Environment,BIRMINGHAM CITY COUNCIL,01/06/2017,"12,678.67",71000-PAYMENTS FOR SERVICES FROM OTHER LOCAL AUTHORITIES,ROAD SAFETY & SUSTAINABLE TRAVEL,Third Party Payments,Revenue
Walsall Council,http://opendatacommunities.org/id/metropolitan-district-council/walsall,WC81-432,30/06/2017,Change and Governance,BIRMINGHAM TRAINING UNIT,06/06/2017,790.00,63000-PROFESSIONAL FEES AND SERVICES,WORKFORCE DEVELOPMENT,Supplies & Services,Revenue
Walsall Council,http://opendatacommunities.org/id/metropolitan-district-council/walsall,WC81-433,30/06/2017,Economy & Environment,BLACK COUNTRY CHAMBER OF COMMERCE & INDUSTRY.,22/06/2017,"1,295.00",63000-PROFESSIONAL FEES AND SERVICES,MS-HEAD OF STRATEGIC REGENERATION,Supplies & Services,Revenue
Walsall Council,http://opendatacommunities.org/id/metropolitan-district-council/walsall,WC81-434,30/06/2017,Economy & Environment,BLACK COUNTRY CONSORTIUM LIMITED,21/06/2017,"83,162.31",65500-GRANTS TO ASSOCIATIONS,LEP CORE FUNDING,Third Party Payments,Revenue
Walsall Council,http://opendatacommunities.org/id/metropolitan-district-council/walsall,WC81-435,30/06/2017,Economy & Environment,BLACK COUNTRY CONSORTIUM LIMITED,20/06/2017,"116,473.21",65500-GRANTS TO ASSOCIATIONS,LEP- HESELTINE FUNDING,Third Party Payments,Revenue
Walsall Council,http://opendatacommunities.org/id/metropolitan-district-council/walsall,WC81-436,30/06/2017,Economy & Environment,BLACK COUNTRY DANCE HUB,23/06/2017,550.00,63000-PROFESSIONAL FEES AND SERVICES,FOREST ARTS CENTRE,Supplies & Services,Revenue
Walsall Council,http://opendatacommunities.org/id/metropolitan-district-council/walsall,WC81-437,30/06/2017,Economy & Environment,BLACKPOOL TEACHING HOSPITALS NHS FOUNDATION TRUST,02/06/2017,317.69,63000-PROFESSIONAL FEES AND SERVICES,SEXUAL HEALTH,Supplies & Services,Revenue
Walsall Council,http://opendatacommunities.org/id/metropolitan-district-council/walsall,WC81-438,30/06/2017,Childrens,BLAKENALL HEATH JMI SCHOOL,13/06/2017,"3,794.00",77200-TRANSFER PAYMENTS-OTHER SCHOOLCHILDREN/STUDENT RELATED ITEMS,BLAKENALL HEATH JUNIOR SCHOOL,Transfer Payments,Revenue
Walsall Council,http://opendatacommunities.org/id/metropolitan-district-council/walsall,WC81-439,30/06/2017,Childrens,BLAKENALL HEATH JMI SCHOOL,02/06/2017,"97,059.04",77300-ISB-FORMULA ALLOCATION,BLAKENALL HEATH JUNIOR SCHOOL,Transfer Payments,Revenue
Walsall Council,http://opendatacommunities.org/id/metropolitan-district-council/walsall,WC81-440,30/06/2017,Childrens,BLOXWICH ACADEMY,28/06/2017,"4,789.25",66502-TOP UP FUNDING -GRANTS TO SCHOOLS,BLOXWICH ACADEMY,Third Party Payments,Revenue
Walsall Council,http://opendatacommunities.org/id/metropolitan-district-council/walsall,WC81-441,30/06/2017,Childrens,BLOXWICH ACADEMY,28/06/2017,"12,641.55",66502-TOP UP FUNDING -GRANTS TO SCHOOLS,BLOXWICH ACADEMY,Third Party Payments,Revenue
Walsall Council,http://opendatacommunities.org/id/metropolitan-district-council/walsall,WC81-442,30/06/2017,Adult Social Care,BLOXWICH COMMUNITY PARTNERSHIP.,05/06/2017,279.00,73372-DOMICILIARY CARE,OP COMMISSIONING,Third Party Payments,Revenue
Walsall Council,http://opendatacommunities.org/id/metropolitan-district-council/walsall,WC81-443,30/06/2017,Adult Social Care,BLOXWICH COMMUNITY PARTNERSHIP.,05/06/2017,324.00,73372-DOMICILIARY CARE,MH COMMISSIONING,Third Party Payments,Revenue
Walsall Council,http://opendatacommunities.org/id/metropolitan-district-council/walsall,WC81-444,30/06/2017,Childrens,BLUE COAT CHURCH OF ENGLAND ACADEMY,28/06/2017,"12,040.82",66502-TOP UP FUNDING -GRANTS TO SCHOOLS,BLUE COAT CofE ACADEMY,Third Party Payments,Revenue
Walsall Council,http://opendatacommunities.org/id/metropolitan-district-council/walsall,WC81-445,30/06/2017,Childrens,BLUEBELLS #1,07/06/2017,3.00,53000-OFFICERS/STAFF-CAR ALLOWANCES,BLUEBELLS,Transport,Revenue
Walsall Council,http://opendatacommunities.org/id/metropolitan-district-council/walsall,WC81-446,30/06/2017,Childrens,BLUEBELLS #1,07/06/2017,13.59,"40000-REPAIRS,ALTERATIONS & MAINTENANCE-PREM",BLUEBELLS,Premises,Revenue
Walsall Council,http://opendatacommunities.org/id/metropolitan-district-council/walsall,WC81-447,30/06/2017,Childrens,BLUEBELLS #1,07/06/2017,42.20,61016-FOOD AND BEVERAGES-PROVISIONS,BLUEBELLS,Supplies & Services,Revenue
Walsall Council,http://opendatacommunities.org/id/metropolitan-district-council/walsall,WC81-448,30/06/2017,Childrens,BLUEBELLS #1,07/06/2017,53.25,60006-NEW-FURNITURE & EQUIPMENT,BLUEBELLS,Supplies & Services,Revenue
Walsall Council,http://opendatacommunities.org/id/metropolitan-district-council/walsall,WC81-449,30/06/2017,Childrens,BLUEBELLS #1,07/06/2017,227.54,76400-RESIDENTS PERSONAL EXPENSES-ALLOWANCES TO S/S CLIENTS,BLUEBELLS,Transfer Payments,Revenue
Walsall Council,http://opendatacommunities.org/id/metropolitan-district-council/walsall,WC81-450,30/06/2017,Economy & Environment,BME UNITED LTD,12/06/2017,"3,420.00",63000-PROFESSIONAL FEES AND SERVICES,SMOKING CESSATION,Supplies & Services,Revenue
Walsall Council,http://opendatacommunities.org/id/metropolitan-district-council/walsall,WC81-451,30/06/2017,Adult Social Care,BOLDMERE COURT CARE HOME,13/06/2017,"1,767.60",73373-RESIDENTIAL & NURSING CARE PLACEMENTS,OP COMMISSIONING,Third Party Payments,Revenue
Walsall Council,http://opendatacommunities.org/id/metropolitan-district-council/walsall,WC81-452,30/06/2017,Childrens,BOOKTRUST,20/06/2017,"1,937.69",63000-PROFESSIONAL FEES AND SERVICES,VIRTUAL SCHOOL CENTRAL PUPIL PREMIUM,Supplies & Services,Revenue
Walsall Council,http://opendatacommunities.org/id/metropolitan-district-council/walsall,WC81-453,30/06/2017,Economy & Environment,BOOTS UK LIMITED,22/06/2017,121.65,71007-CONTRIBUTION TO PCT,PUBLIC HEALTH BUSINESS SUPPORT,Third Party Payments,Revenue
Walsall Council,http://opendatacommunities.org/id/metropolitan-district-council/walsall,WC81-454,30/06/2017,Economy & Environment,BOOTS UK LIMITED,22/06/2017,345.15,63000-PROFESSIONAL FEES AND SERVICES,SEXUAL HEALTH,Supplies & Services,Revenue
Walsall Council,http://opendatacommunities.org/id/metropolitan-district-council/walsall,WC81-455,30/06/2017,Economy & Environment,BOOTS UK LIMITED,22/06/2017,557.55,63000-PROFESSIONAL FEES AND SERVICES,SEXUAL HEALTH,Supplies & Services,Revenue
Walsall Council,http://opendatacommunities.org/id/metropolitan-district-council/walsall,WC81-456,30/06/2017,Childrens,BOULTON TRAVEL LIMITED,01/06/2017,400.00,52000-WITH DRIVER-HIRE OF VEHICLES,SCHOOL TRANSPORT,Transport,Revenue
Walsall Council,http://opendatacommunities.org/id/metropolitan-district-council/walsall,WC81-457,30/06/2017,Childrens,BOULTON TRAVEL LIMITED,01/06/2017,480.00,52000-WITH DRIVER-HIRE OF VEHICLES,SCHOOL TRANSPORT,Transport,Revenue
Walsall Council,http://opendatacommunities.org/id/metropolitan-district-council/walsall,WC81-458,30/06/2017,Childrens,BOULTON TRAVEL LIMITED,01/06/2017,"1,000.00",52000-WITH DRIVER-HIRE OF VEHICLES,SCHOOL TRANSPORT,Transport,Revenue
Walsall Council,http://opendatacommunities.org/id/metropolitan-district-council/walsall,WC81-459,30/06/2017,Childrens,BOULTON TRAVEL LIMITED,01/06/2017,"2,034.00",52000-WITH DRIVER-HIRE OF VEHICLES,SCHOOL TRANSPORT,Transport,Revenue
Walsall Council,http://opendatacommunities.org/id/metropolitan-district-council/walsall,WC81-460,30/06/2017,Childrens,BOULTON TRAVEL LIMITED,01/06/2017,"2,413.00",52000-WITH DRIVER-HIRE OF VEHICLES,SCHOOL TRANSPORT,Transport,Revenue
Walsall Council,http://opendatacommunities.org/id/metropolitan-district-council/walsall,WC81-461,30/06/2017,Change and Governance,BOURNEMOUTH CONVENTION BUREAU LTD,02/06/2017,625.00,34329-HOTEL ACCOMMODATION-EMPLOYEES,CORPORATE MANAGEMENT TEAM,Employees,Revenue
Walsall Council,http://opendatacommunities.org/id/metropolitan-district-council/walsall,WC81-462,30/06/2017,Economy & Environment,BRADVALE LTD T/A INSPIRE HEALTHCARE SERVICES,09/06/2017,284.98,60008-MAINTENANCE-FURNITURE & EQUIPMENT,DARLASTON LEISURE CENTRE,Supplies & Services,Revenue
Walsall Council,http://opendatacommunities.org/id/metropolitan-district-council/walsall,WC81-463,30/06/2017,Childrens,BRANAS ISAF PERSONAL DEVELOPMENT CENTRE LTD,19/06/2017,"18,000.00",74036-EXTERNAL RESIDENTIAL CARE-OTH AGENCY PROVISION,INDEPENDENT RESIDENTIAL HOMES,Third Party Payments,Revenue
Walsall Council,http://opendatacommunities.org/id/metropolitan-district-council/walsall,WC81-464,30/06/2017,Change and Governance,BRELMAYNE LTD,28/06/2017,798.00,"40000-REPAIRS,ALTERATIONS & MAINTENANCE-PREM",RECHARGEABLE - SCHOOLS MAINTENANCE,Premises,Revenue
Walsall Council,http://opendatacommunities.org/id/metropolitan-district-council/walsall,WC81-465,30/06/2017,Change and Governance,BRELMAYNE LTD,14/06/2017,"4,340.00",60006-NEW-FURNITURE & EQUIPMENT,CA ELMORE GREEN PRIMARY SCHOOL,Supplies & Services,Revenue
Walsall Council,http://opendatacommunities.org/id/metropolitan-district-council/walsall,WC81-466,30/06/2017,Adult Social Care,REDACTED,14/06/2017,550.00,76422-DIRECT PAYMENTS TO SOCIAL SERVICES CLIENTS,LD COMMISSIONING,Transfer Payments,Revenue
Walsall Council,http://opendatacommunities.org/id/metropolitan-district-council/walsall,WC81-467,30/06/2017,Childrens,REDACTED,19/06/2017,9.24,60006-NEW-FURNITURE & EQUIPMENT,INTERNAL FOSTER CARE PROVISION,Supplies & Services,Revenue
Walsall Council,http://opendatacommunities.org/id/metropolitan-district-council/walsall,WC81-468,30/06/2017,Childrens,REDACTED,19/06/2017,101.29,74503-BIRTHDAY ALLOWANCE-FOSTER CARERS,INTERNAL FOSTER CARE PROVISION,Transfer Payments,Revenue
Walsall Council,http://opendatacommunities.org/id/metropolitan-district-council/walsall,WC81-469,30/06/2017,Childrens,REDACTED,19/06/2017,101.29,74503-BIRTHDAY ALLOWANCE-FOSTER CARERS,INTERNAL FOSTER CARE PROVISION,Transfer Payments,Revenue
Walsall Council,http://opendatacommunities.org/id/metropolitan-district-council/walsall,WC81-470,30/06/2017,Childrens,REDACTED,19/06/2017,810.32,74501-MAINTENANCE ALLOWANCE-FOSTER CARERS,INTERNAL FOSTER CARE PROVISION,Transfer Payments,Revenue
Walsall Council,http://opendatacommunities.org/id/metropolitan-district-council/walsall,WC81-471,30/06/2017,Childrens,REDACTED,19/06/2017,810.32,74501-MAINTENANCE ALLOWANCE-FOSTER CARERS,INTERNAL FOSTER CARE PROVISION,Transfer Payments,Revenue
Walsall Council,http://opendatacommunities.org/id/metropolitan-district-council/walsall,WC81-472,30/06/2017,Childrens,REDACTED,19/06/2017,"1,436.08",74508-INTERNAL FOSTER CARERS-CARER FEES,INTERNAL FOSTER CARE PROVISION,Transfer Payments,Revenue
Walsall Council,http://opendatacommunities.org/id/metropolitan-district-council/walsall,WC81-473,30/06/2017,Economy & Environment,BRENNTAG UK LIMITED,14/06/2017,387.50,60500-GENERAL MATERIALS,BLOXWICH LEISURE CENTRE,Supplies & Services,Revenue
Walsall Council,http://opendatacommunities.org/id/metropolitan-district-council/walsall,WC81-474,30/06/2017,Economy & Environment,BRENNTAG UK LIMITED,20/06/2017,387.50,60503-CHEMICALS & SCIENTIFIC MATS-MATERIALS,OAK PARK,Supplies & Services,Revenue
Walsall Council,http://opendatacommunities.org/id/metropolitan-district-council/walsall,WC81-475,30/06/2017,Economy & Environment,BRENNTAG UK LIMITED,29/06/2017,387.50,60500-GENERAL MATERIALS,BLOXWICH LEISURE CENTRE,Supplies & Services,Revenue
Walsall Council,http://opendatacommunities.org/id/metropolitan-district-council/walsall,WC81-476,30/06/2017,Economy & Environment,BRENNTAG UK LIMITED,29/06/2017,387.50,60503-CHEMICALS & SCIENTIFIC MATS-MATERIALS,OAK PARK,Supplies & Services,Revenue
Walsall Council,http://opendatacommunities.org/id/metropolitan-district-council/walsall,WC81-477,30/06/2017,Economy & Environment,BRENNTAG UK LIMITED,23/06/2017,498.62,60500-GENERAL MATERIALS,BLOXWICH LEISURE CENTRE,Supplies & Services,Revenue
Walsall Council,http://opendatacommunities.org/id/metropolitan-district-council/walsall,WC81-478,30/06/2017,Economy & Environment,BRENNTAG UK LIMITED,14/06/2017,711.68,50301-FUEL-TRANSPORT RUN COSTS,FUEL STOCK ACCOUNT,Transport,Revenue
Walsall Council,http://opendatacommunities.org/id/metropolitan-district-council/walsall,WC81-479,30/06/2017,Adult Social Care,REDACTED,12/06/2017,"1,337.64",73374-SUPPORTED & OTHER ACCOMMODATION,LD COMMISSIONING,Third Party Payments,Revenue
Walsall Council,http://opendatacommunities.org/id/metropolitan-district-council/walsall,WC81-480,30/06/2017,Adult Social Care,REDACTED,12/06/2017,"1,597.60",73374-SUPPORTED & OTHER ACCOMMODATION,LD COMMISSIONING,Third Party Payments,Revenue
Walsall Council,http://opendatacommunities.org/id/metropolitan-district-council/walsall,WC81-481,30/06/2017,Adult Social Care,REDACTED,14/06/2017,"2,158.00",76422-DIRECT PAYMENTS TO SOCIAL SERVICES CLIENTS,OP COMMISSIONING,Transfer Payments,Revenue
Walsall Council,http://opendatacommunities.org/id/metropolitan-district-council/walsall,WC81-482,30/06/2017,Adult Social Care,REDACTED,14/06/2017,922.50,76422-DIRECT PAYMENTS TO SOCIAL SERVICES CLIENTS,OP COMMISSIONING,Transfer Payments,Revenue
Walsall Council,http://opendatacommunities.org/id/metropolitan-district-council/walsall,WC81-483,30/06/2017,Change and Governance,BRITISH GAS BUSINESS,07/06/2017,-210.38,42000-GAS-ENERGY COSTS,CENTRALISED ENERGY,Premises,Revenue
Walsall Council,http://opendatacommunities.org/id/metropolitan-district-council/walsall,WC81-484,30/06/2017,Change and Governance,BRITISH GAS BUSINESS,07/06/2017,280.52,42000-GAS-ENERGY COSTS,CENTRALISED ENERGY,Premises,Revenue
Walsall Council,http://opendatacommunities.org/id/metropolitan-district-council/walsall,WC81-485,30/06/2017,Change and Governance,BRITISH GAS BUSINESS,30/06/2017,"12,017.93",42000-GAS-ENERGY COSTS,CENTRALISED ENERGY,Premises,Revenue
Walsall Council,http://opendatacommunities.org/id/metropolitan-district-council/walsall,WC81-486,30/06/2017,Change and Governance,BRITISH GAS TRADING LIMITED 002,15/06/2017,"2,711.87",01046-OTHER GRANTS,CFR 908 FUEL POVERTY FUND,Capital,Capital
Walsall Council,http://opendatacommunities.org/id/metropolitan-district-council/walsall,WC81-487,30/06/2017,Childrens,BRITISH MUSLIM YOUTH GROUP,12/06/2017,"10,522.09",66500-GRANTS TO OTHER ORGS,TARGETED YOUTH WORK - COMMISSIONED,Third Party Payments,Revenue
Walsall Council,http://opendatacommunities.org/id/metropolitan-district-council/walsall,WC81-488,30/06/2017,Childrens,BRITISH MUSLIM YOUTH GROUP,12/06/2017,"24,859.62",66500-GRANTS TO OTHER ORGS,CENTRAL SUPPORT,Third Party Payments,Revenue
Walsall Council,http://opendatacommunities.org/id/metropolitan-district-council/walsall,WC81-489,30/06/2017,Economy & Environment,BRITISH TELECOMMUNICATIONS LTD,09/06/2017,"3,385.60",01002-PROJECT FEES,CFR 1198 EASTERN OPPORTUNITY AREA 1 A461 CORRIDOR,Capital,Capital
Walsall Council,http://opendatacommunities.org/id/metropolitan-district-council/walsall,WC81-490,30/06/2017,Childrens,BROADLAND GROUP LTD,09/06/2017,547.85,01006-SITE WORKS MAIN CONTRACTORS,CFR 1193 JANE LANE SPECIAL - FLAT ROOFING PHASE 1 OF 3,Capital,Capital
Walsall Council,http://opendatacommunities.org/id/metropolitan-district-council/walsall,WC81-491,30/06/2017,Childrens,BROADLAND GROUP LTD,09/06/2017,547.85,01006-SITE WORKS MAIN CONTRACTORS,CFR 1193 VARIOUS - KITCHEN VENTILATION UPGRADES,Capital,Capital
Walsall Council,http://opendatacommunities.org/id/metropolitan-district-council/walsall,WC81-492,30/06/2017,Childrens,BROADLAND GROUP LTD,09/06/2017,547.85,01006-SITE WORKS MAIN CONTRACTORS,CFR 1193 REPLACEMENT HEATING DISTRIBUTION & EMMITTERS TO MAIN BUILDING,Capital,Capital
Walsall Council,http://opendatacommunities.org/id/metropolitan-district-council/walsall,WC81-493,30/06/2017,Childrens,BROADLAND GROUP LTD,09/06/2017,547.85,01006-SITE WORKS MAIN CONTRACTORS,CFR 1193 PALFREY JUNIORS - ROOFING MAIN HALL,Capital,Capital
Walsall Council,http://opendatacommunities.org/id/metropolitan-district-council/walsall,WC81-494,30/06/2017,Childrens,BROADLAND GROUP LTD,09/06/2017,547.85,01006-SITE WORKS MAIN CONTRACTORS,CFR 1193 KINGSHILL PRIMARY - PITCHED ROOFING PHASE 1 OF 4,Capital,Capital
Walsall Council,http://opendatacommunities.org/id/metropolitan-district-council/walsall,WC81-495,30/06/2017,Childrens,BROADLAND GROUP LTD,09/06/2017,547.85,01006-SITE WORKS MAIN CONTRACTORS,CFR 1193 SUNSHINE INFANTS - FLAT & PITCHED ROOFS,Capital,Capital
Walsall Council,http://opendatacommunities.org/id/metropolitan-district-council/walsall,WC81-496,30/06/2017,Childrens,BROADLAND GROUP LTD,09/06/2017,547.85,01006-SITE WORKS MAIN CONTRACTORS,CFR 1193 BUSILL JONES PRIMARY - ROOFING TO KS1,Capital,Capital
Walsall Council,http://opendatacommunities.org/id/metropolitan-district-council/walsall,WC81-497,30/06/2017,Childrens,BROADLAND GROUP LTD,09/06/2017,547.85,01006-SITE WORKS MAIN CONTRACTORS,CFR 1193 MEADOW VIEW PRIMARY - ROOFING TO EARLY YEARS - FINAL STAGE,Capital,Capital
Walsall Council,http://opendatacommunities.org/id/metropolitan-district-council/walsall,WC81-498,30/06/2017,Childrens,BROADLAND GROUP LTD,09/06/2017,547.85,01006-SITE WORKS MAIN CONTRACTORS,CFR 1193 LINDENS PRIMARY ROOFING & ASPHALT WORKS - FINAL STAGE,Capital,Capital
Walsall Council,http://opendatacommunities.org/id/metropolitan-district-council/walsall,WC81-499,30/06/2017,Childrens,BROADLAND GROUP LTD,09/06/2017,547.85,01006-SITE WORKS MAIN CONTRACTORS,CFR 1193 BLACKWOOD PRIMARY - FLAT ROOFING PHASE 1 OF 4,Capital,Capital
Walsall Council,http://opendatacommunities.org/id/metropolitan-district-council/walsall,WC81-500,30/06/2017,Economy & Environment,BROADWAY PHARMACY,22/06/2017,88.50,63000-PROFESSIONAL FEES AND SERVICES,SEXUAL HEALTH,Supplies & Services,Revenue
Walsall Council,http://opendatacommunities.org/id/metropolitan-district-council/walsall,WC81-501,30/06/2017,Economy & Environment,BROADWAY PHARMACY,22/06/2017,678.45,71007-CONTRIBUTION TO PCT,PUBLIC HEALTH BUSINESS SUPPORT,Third Party Payments,Revenue
Walsall Council,http://opendatacommunities.org/id/metropolitan-district-council/walsall,WC81-502,30/06/2017,Change and Governance,BROADWAY UNITED REFORMED CHURCH,20/06/2017,430.00,63128-HIRE OF ROOM-SERVICES-FEES,ELECTORAL ADMINISTRATION,Supplies & Services,Revenue
Walsall Council,http://opendatacommunities.org/id/metropolitan-district-council/walsall,WC81-503,30/06/2017,Childrens,BROWNHILLS ASPHALT & TARMAC LIMITED,06/06/2017,888.00,01006-SITE WORKS MAIN CONTRACTORS,CFR 1193 SALISBURY PRIMARY - CORRIDOR FLOOR REPLACEMENT,Capital,Capital
Walsall Council,http://opendatacommunities.org/id/metropolitan-district-council/walsall,WC81-504,30/06/2017,Economy & Environment,BROWNHILLS ASPHALT & TARMAC LIMITED,22/06/2017,955.00,"40000-REPAIRS,ALTERATIONS & MAINTENANCE-PREM",RETAINED HOUSING-HIGHWAYS,Premises,Revenue
Walsall Council,http://opendatacommunities.org/id/metropolitan-district-council/walsall,WC81-505,30/06/2017,Economy & Environment,BROWNHILLS ASPHALT & TARMAC LIMITED,14/06/2017,"3,784.00","40000-REPAIRS,ALTERATIONS & MAINTENANCE-PREM",RETAINED HOUSING-HIGHWAYS,Premises,Revenue
Walsall Council,http://opendatacommunities.org/id/metropolitan-district-council/walsall,WC81-506,30/06/2017,Childrens,BROWNHILLS ASPHALT & TARMAC LIMITED,22/06/2017,"6,200.00",01006-SITE WORKS MAIN CONTRACTORS,CFR 1193 LINDENS PRIMARY ROOFING & ASPHALT WORKS - FINAL STAGE,Capital,Capital
Walsall Council,http://opendatacommunities.org/id/metropolitan-district-council/walsall,WC81-507,30/06/2017,Childrens,BROWNHILLS ASPHALT & TARMAC LIMITED,26/06/2017,"11,925.00",01006-SITE WORKS MAIN CONTRACTORS,CFR 1193 SALISBURY PRIMARY - CORRIDOR FLOOR REPLACEMENT,Capital,Capital
Walsall Council,http://opendatacommunities.org/id/metropolitan-district-council/walsall,WC81-508,30/06/2017,Childrens,BROWNHILLS COMMUNITY ASSOCIATION,07/06/2017,"9,510.51",66500-GRANTS TO OTHER ORGS,CENTRAL SUPPORT,Third Party Payments,Revenue
Walsall Council,http://opendatacommunities.org/id/metropolitan-district-council/walsall,WC81-509,30/06/2017,Change and Governance,BROWNHILLS PARISH CHURCH,20/06/2017,256.00,63128-HIRE OF ROOM-SERVICES-FEES,ELECTORAL ADMINISTRATION,Supplies & Services,Revenue
Walsall Council,http://opendatacommunities.org/id/metropolitan-district-council/walsall,WC81-510,30/06/2017,Economy & Environment,BROXAP LTD,22/06/2017,605.00,60500-GENERAL MATERIALS,ARBORETUM,Supplies & Services,Revenue
Walsall Council,http://opendatacommunities.org/id/metropolitan-district-council/walsall,WC81-511,30/06/2017,Adult Social Care,REDACTED,14/06/2017,"1,912.50",76422-DIRECT PAYMENTS TO SOCIAL SERVICES CLIENTS,LD COMMISSIONING,Transfer Payments,Revenue
Walsall Council,http://opendatacommunities.org/id/metropolitan-district-council/walsall,WC81-512,30/06/2017,Economy & Environment,REDACTED,07/06/2017,600.00,62527-VISUAL ARTS,NAG - TEMPORARY EXHIBITIONS,Supplies & Services,Revenue
Walsall Council,http://opendatacommunities.org/id/metropolitan-district-council/walsall,WC81-513,30/06/2017,Childrens,REDACTED,19/06/2017,"18,768.00",74036-EXTERNAL RESIDENTIAL CARE-OTH AGENCY PROVISION,INDEPENDENT RESIDENTIAL HOMES,Third Party Payments,Revenue
Walsall Council,http://opendatacommunities.org/id/metropolitan-district-council/walsall,WC81-514,30/06/2017,Change and Governance,B-SURE SECURITY SERVICES LTD,06/06/2017,350.00,"40000-REPAIRS,ALTERATIONS & MAINTENANCE-PREM",CHALLENGE BUILDING,Premises,Revenue
Walsall Council,http://opendatacommunities.org/id/metropolitan-district-council/walsall,WC81-515,30/06/2017,Change and Governance,B-SURE SECURITY SERVICES LTD,06/06/2017,"2,365.00","40000-REPAIRS,ALTERATIONS & MAINTENANCE-PREM",CENTRALISED MAINTENANCE,Premises,Revenue
Walsall Council,http://opendatacommunities.org/id/metropolitan-district-council/walsall,WC81-516,30/06/2017,Childrens,BT,05/06/2017,526.00,63602-COST OF RENTAL-TELEPHONES,LOCALITY FAMILY SUPPORT-CENTRAL & EAST,Supplies & Services,Revenue
Walsall Council,http://opendatacommunities.org/id/metropolitan-district-council/walsall,WC81-517,30/06/2017,Change and Governance,BT,14/06/2017,704.50,63603-COST OF CALLS-TELEPHONES,PROCESSING,Supplies & Services,Revenue
Walsall Council,http://opendatacommunities.org/id/metropolitan-district-council/walsall,WC81-518,30/06/2017,Change and Governance,BT,13/06/2017,719.26,63603-COST OF CALLS-TELEPHONES,PROCESSING,Supplies & Services,Revenue
Walsall Council,http://opendatacommunities.org/id/metropolitan-district-council/walsall,WC81-519,30/06/2017,Childrens,BT PLC,01/06/2017,484.50,63602-COST OF RENTAL-TELEPHONES,LOCALITY FAMILY SUPPORT-CENTRAL & EAST,Supplies & Services,Revenue
Walsall Council,http://opendatacommunities.org/id/metropolitan-district-council/walsall,WC81-520,30/06/2017,Change and Governance,BT PLC,06/06/2017,"1,268.35",63601-COSTS (NOT INTERNAL RECHARGES)-TELEPHONES,RECHARGEABLE EQUIPMENT,Supplies & Services,Revenue
Walsall Council,http://opendatacommunities.org/id/metropolitan-district-council/walsall,WC81-521,30/06/2017,Change and Governance,BT PLC,28/06/2017,"1,268.35",63601-COSTS (NOT INTERNAL RECHARGES)-TELEPHONES,RECHARGEABLE EQUIPMENT,Supplies & Services,Revenue
Walsall Council,http://opendatacommunities.org/id/metropolitan-district-council/walsall,WC81-522,30/06/2017,Change and Governance,BT REDCARE,16/06/2017,"26,968.60",60008-MAINTENANCE-FURNITURE & EQUIPMENT,CCTV,Supplies & Services,Revenue
Walsall Council,http://opendatacommunities.org/id/metropolitan-district-council/walsall,WC81-523,30/06/2017,Change and Governance,BT REDCARE,16/06/2017,"62,177.00",60008-MAINTENANCE-FURNITURE & EQUIPMENT,CCTV,Supplies & Services,Revenue
Walsall Council,http://opendatacommunities.org/id/metropolitan-district-council/walsall,WC81-524,30/06/2017,Adult Social Care,BUPA CARE HOMES (CFHCARE) LTD,27/06/2017,"-1,479.00",73373-RESIDENTIAL & NURSING CARE PLACEMENTS,OP COMMISSIONING,Third Party Payments,Revenue
Walsall Council,http://opendatacommunities.org/id/metropolitan-district-council/walsall,WC81-525,30/06/2017,Adult Social Care,BUPA CARE HOMES (CFHCARE) LTD,27/06/2017,"2,001.24",73373-RESIDENTIAL & NURSING CARE PLACEMENTS,OP COMMISSIONING,Third Party Payments,Revenue
Walsall Council,http://opendatacommunities.org/id/metropolitan-district-council/walsall,WC81-526,30/06/2017,Adult Social Care,BUPA CARE HOMES (CFHCARE) LTD,27/06/2017,"3,380.20",73373-RESIDENTIAL & NURSING CARE PLACEMENTS,OP COMMISSIONING,Third Party Payments,Revenue
Walsall Council,http://opendatacommunities.org/id/metropolitan-district-council/walsall,WC81-527,30/06/2017,Adult Social Care,BUPA NURSING HOMES-ANVILLE CT,13/06/2017,"1,915.71",73373-RESIDENTIAL & NURSING CARE PLACEMENTS,OP COMMISSIONING,Third Party Payments,Revenue
Walsall Council,http://opendatacommunities.org/id/metropolitan-district-council/walsall,WC81-528,30/06/2017,Adult Social Care,BUSH HOME LTD,06/06/2017,636.43,73373-RESIDENTIAL & NURSING CARE PLACEMENTS,OP COMMISSIONING,Third Party Payments,Revenue
Walsall Council,http://opendatacommunities.org/id/metropolitan-district-council/walsall,WC81-529,30/06/2017,Adult Social Care,BUSH HOME LTD,06/06/2017,"1,620.00",73373-RESIDENTIAL & NURSING CARE PLACEMENTS,OP COMMISSIONING,Third Party Payments,Revenue
Walsall Council,http://opendatacommunities.org/id/metropolitan-district-council/walsall,WC81-530,30/06/2017,Adult Social Care,BUSH HOME LTD,06/06/2017,"1,620.00",73373-RESIDENTIAL & NURSING CARE PLACEMENTS,OP COMMISSIONING,Third Party Payments,Revenue
Walsall Council,http://opendatacommunities.org/id/metropolitan-district-council/walsall,WC81-531,30/06/2017,Adult Social Care,BUSH HOME LTD,13/06/2017,"1,620.00",73373-RESIDENTIAL & NURSING CARE PLACEMENTS,OP COMMISSIONING,Third Party Payments,Revenue
Walsall Council,http://opendatacommunities.org/id/metropolitan-district-council/walsall,WC81-532,30/06/2017,Adult Social Care,BUSH HOME LTD,06/06/2017,"1,800.00",73373-RESIDENTIAL & NURSING CARE PLACEMENTS,MH COMMISSIONING,Third Party Payments,Revenue
Walsall Council,http://opendatacommunities.org/id/metropolitan-district-council/walsall,WC81-533,30/06/2017,Adult Social Care,BUSH HOME LTD,06/06/2017,"2,661.43",73373-RESIDENTIAL & NURSING CARE PLACEMENTS,OP COMMISSIONING,Third Party Payments,Revenue
Walsall Council,http://opendatacommunities.org/id/metropolitan-district-council/walsall,WC81-534,30/06/2017,Adult Social Care,BUSH HOME LTD,06/06/2017,"2,892.86",73373-RESIDENTIAL & NURSING CARE PLACEMENTS,MH COMMISSIONING,Third Party Payments,Revenue
Walsall Council,http://opendatacommunities.org/id/metropolitan-district-council/walsall,WC81-535,30/06/2017,Adult Social Care,BUSH HOME LTD,06/06/2017,"3,066.43",73373-RESIDENTIAL & NURSING CARE PLACEMENTS,OP COMMISSIONING,Third Party Payments,Revenue
Walsall Council,http://opendatacommunities.org/id/metropolitan-district-council/walsall,WC81-536,30/06/2017,Adult Social Care,BUSH HOME LTD,06/06/2017,"3,066.43",73373-RESIDENTIAL & NURSING CARE PLACEMENTS,OP COMMISSIONING,Third Party Payments,Revenue
Walsall Council,http://opendatacommunities.org/id/metropolitan-district-council/walsall,WC81-537,30/06/2017,Adult Social Care,BUSH HOME LTD,06/06/2017,"4,050.00",73373-RESIDENTIAL & NURSING CARE PLACEMENTS,MH COMMISSIONING,Third Party Payments,Revenue
Walsall Council,http://opendatacommunities.org/id/metropolitan-district-council/walsall,WC81-538,30/06/2017,Childrens,BUSY BEES CHILDCARE LTD,28/06/2017,"4,259.21",66502-TOP UP FUNDING -GRANTS TO SCHOOLS,INDEPENDENT PROVIDERS - SPECIAL & AP,Third Party Payments,Revenue
Walsall Council,http://opendatacommunities.org/id/metropolitan-district-council/walsall,WC81-539,30/06/2017,Childrens,BY THE BRIDGE,19/06/2017,"2,846.20",74037-INDEPENDENT FOSTER CARE-OTH AGENCY PROVISION,EXTERNAL FOSTER CARE PROVISION,Third Party Payments,Revenue
Walsall Council,http://opendatacommunities.org/id/metropolitan-district-council/walsall,WC81-540,30/06/2017,Childrens,BY THE BRIDGE,19/06/2017,"3,004.50",74037-INDEPENDENT FOSTER CARE-OTH AGENCY PROVISION,EXTERNAL FOSTER CARE PROVISION,Third Party Payments,Revenue
Walsall Council,http://opendatacommunities.org/id/metropolitan-district-council/walsall,WC81-541,30/06/2017,Change and Governance,BYTES SOFTWARE SERVICES LTD,15/06/2017,"20,487.12",63820-RECHARGE FOR MAINTENANCE/APPLICATION COSTS-COMPUTER,APPLICATIONS,Supplies & Services,Revenue
Walsall Council,http://opendatacommunities.org/id/metropolitan-district-council/walsall,WC81-542,30/06/2017,Adult Social Care,C & V ORCHARD MANOR LTD,27/06/2017,257.14,73373-RESIDENTIAL & NURSING CARE PLACEMENTS,OP COMMISSIONING,Third Party Payments,Revenue
Walsall Council,http://opendatacommunities.org/id/metropolitan-district-council/walsall,WC81-543,30/06/2017,Adult Social Care,C & V ORCHARD MANOR LTD,27/06/2017,900.00,73373-RESIDENTIAL & NURSING CARE PLACEMENTS,OP COMMISSIONING,Third Party Payments,Revenue
Walsall Council,http://opendatacommunities.org/id/metropolitan-district-council/walsall,WC81-544,30/06/2017,Adult Social Care,C & V ORCHARD MANOR LTD,27/06/2017,"1,272.85",73373-RESIDENTIAL & NURSING CARE PLACEMENTS,PD COMMISSIONING,Third Party Payments,Revenue
Walsall Council,http://opendatacommunities.org/id/metropolitan-district-council/walsall,WC81-545,30/06/2017,Adult Social Care,C & V ORCHARD MANOR LTD,27/06/2017,"1,562.21",73373-RESIDENTIAL & NURSING CARE PLACEMENTS,OP COMMISSIONING,Third Party Payments,Revenue
Walsall Council,http://opendatacommunities.org/id/metropolitan-district-council/walsall,WC81-546,30/06/2017,Adult Social Care,C & V ORCHARD MANOR LTD,06/06/2017,"1,620.00",73373-RESIDENTIAL & NURSING CARE PLACEMENTS,OP COMMISSIONING,Third Party Payments,Revenue
Walsall Council,http://opendatacommunities.org/id/metropolitan-district-council/walsall,WC81-547,30/06/2017,Adult Social Care,C & V ORCHARD MANOR LTD,06/06/2017,"1,620.00",73373-RESIDENTIAL & NURSING CARE PLACEMENTS,LD COMMISSIONING,Third Party Payments,Revenue
Walsall Council,http://opendatacommunities.org/id/metropolitan-district-council/walsall,WC81-548,30/06/2017,Adult Social Care,C & V ORCHARD MANOR LTD,06/06/2017,"1,620.00",73373-RESIDENTIAL & NURSING CARE PLACEMENTS,OP COMMISSIONING,Third Party Payments,Revenue
Walsall Council,http://opendatacommunities.org/id/metropolitan-district-council/walsall,WC81-549,30/06/2017,Adult Social Care,C & V ORCHARD MANOR LTD,06/06/2017,"1,620.00",73373-RESIDENTIAL & NURSING CARE PLACEMENTS,MH COMMISSIONING,Third Party Payments,Revenue
Walsall Council,http://opendatacommunities.org/id/metropolitan-district-council/walsall,WC81-550,30/06/2017,Adult Social Care,C & V ORCHARD MANOR LTD,06/06/2017,"1,620.00",73373-RESIDENTIAL & NURSING CARE PLACEMENTS,MH COMMISSIONING,Third Party Payments,Revenue
Walsall Council,http://opendatacommunities.org/id/metropolitan-district-council/walsall,WC81-551,30/06/2017,Adult Social Care,C & V ORCHARD MANOR LTD,06/06/2017,"1,620.00",73373-RESIDENTIAL & NURSING CARE PLACEMENTS,MH COMMISSIONING,Third Party Payments,Revenue
Walsall Council,http://opendatacommunities.org/id/metropolitan-district-council/walsall,WC81-552,30/06/2017,Adult Social Care,C & V ORCHARD MANOR LTD,06/06/2017,"1,620.00",73373-RESIDENTIAL & NURSING CARE PLACEMENTS,MH COMMISSIONING,Third Party Payments,Revenue
Walsall Council,http://opendatacommunities.org/id/metropolitan-district-council/walsall,WC81-553,30/06/2017,Adult Social Care,C & V ORCHARD MANOR LTD,27/06/2017,"1,620.00",73373-RESIDENTIAL & NURSING CARE PLACEMENTS,LD COMMISSIONING,Third Party Payments,Revenue
Walsall Council,http://opendatacommunities.org/id/metropolitan-district-council/walsall,WC81-554,30/06/2017,Adult Social Care,C & V ORCHARD MANOR LTD,27/06/2017,"1,620.00",73373-RESIDENTIAL & NURSING CARE PLACEMENTS,OP COMMISSIONING,Third Party Payments,Revenue
Walsall Council,http://opendatacommunities.org/id/metropolitan-district-council/walsall,WC81-555,30/06/2017,Adult Social Care,C & V ORCHARD MANOR LTD,27/06/2017,"1,620.00",73373-RESIDENTIAL & NURSING CARE PLACEMENTS,MH COMMISSIONING,Third Party Payments,Revenue
Walsall Council,http://opendatacommunities.org/id/metropolitan-district-council/walsall,WC81-556,30/06/2017,Adult Social Care,C & V ORCHARD MANOR LTD,27/06/2017,"1,620.00",73373-RESIDENTIAL & NURSING CARE PLACEMENTS,MH COMMISSIONING,Third Party Payments,Revenue
Walsall Council,http://opendatacommunities.org/id/metropolitan-district-council/walsall,WC81-557,30/06/2017,Adult Social Care,C & V ORCHARD MANOR LTD,27/06/2017,"1,620.00",73373-RESIDENTIAL & NURSING CARE PLACEMENTS,MH COMMISSIONING,Third Party Payments,Revenue
Walsall Council,http://opendatacommunities.org/id/metropolitan-district-council/walsall,WC81-558,30/06/2017,Adult Social Care,C & V ORCHARD MANOR LTD,06/06/2017,"1,620.60",73373-RESIDENTIAL & NURSING CARE PLACEMENTS,OP COMMISSIONING,Third Party Payments,Revenue
Walsall Council,http://opendatacommunities.org/id/metropolitan-district-council/walsall,WC81-559,30/06/2017,Adult Social Care,C & V ORCHARD MANOR LTD,27/06/2017,"1,620.60",73373-RESIDENTIAL & NURSING CARE PLACEMENTS,OP COMMISSIONING,Third Party Payments,Revenue
Walsall Council,http://opendatacommunities.org/id/metropolitan-district-council/walsall,WC81-560,30/06/2017,Adult Social Care,C & V ORCHARD MANOR LTD,06/06/2017,"1,800.00",73373-RESIDENTIAL & NURSING CARE PLACEMENTS,OP COMMISSIONING,Third Party Payments,Revenue
Walsall Council,http://opendatacommunities.org/id/metropolitan-district-council/walsall,WC81-561,30/06/2017,Adult Social Care,C & V ORCHARD MANOR LTD,06/06/2017,"1,800.00",73373-RESIDENTIAL & NURSING CARE PLACEMENTS,OP COMMISSIONING,Third Party Payments,Revenue
Walsall Council,http://opendatacommunities.org/id/metropolitan-district-council/walsall,WC81-562,30/06/2017,Adult Social Care,C & V ORCHARD MANOR LTD,06/06/2017,"1,800.00",73373-RESIDENTIAL & NURSING CARE PLACEMENTS,MH COMMISSIONING,Third Party Payments,Revenue
Walsall Council,http://opendatacommunities.org/id/metropolitan-district-council/walsall,WC81-563,30/06/2017,Adult Social Care,C & V ORCHARD MANOR LTD,06/06/2017,"1,800.00",73373-RESIDENTIAL & NURSING CARE PLACEMENTS,MH COMMISSIONING,Third Party Payments,Revenue
Walsall Council,http://opendatacommunities.org/id/metropolitan-district-council/walsall,WC81-564,30/06/2017,Adult Social Care,C & V ORCHARD MANOR LTD,06/06/2017,"1,800.00",73373-RESIDENTIAL & NURSING CARE PLACEMENTS,OP COMMISSIONING,Third Party Payments,Revenue
Walsall Council,http://opendatacommunities.org/id/metropolitan-district-council/walsall,WC81-565,30/06/2017,Adult Social Care,C & V ORCHARD MANOR LTD,06/06/2017,"1,800.00",73373-RESIDENTIAL & NURSING CARE PLACEMENTS,OP COMMISSIONING,Third Party Payments,Revenue
Walsall Council,http://opendatacommunities.org/id/metropolitan-district-council/walsall,WC81-566,30/06/2017,Adult Social Care,C & V ORCHARD MANOR LTD,06/06/2017,"1,800.00",73373-RESIDENTIAL & NURSING CARE PLACEMENTS,OP COMMISSIONING,Third Party Payments,Revenue
Walsall Council,http://opendatacommunities.org/id/metropolitan-district-council/walsall,WC81-567,30/06/2017,Adult Social Care,C & V ORCHARD MANOR LTD,27/06/2017,"1,800.00",73373-RESIDENTIAL & NURSING CARE PLACEMENTS,OP COMMISSIONING,Third Party Payments,Revenue
Walsall Council,http://opendatacommunities.org/id/metropolitan-district-council/walsall,WC81-568,30/06/2017,Adult Social Care,C & V ORCHARD MANOR LTD,27/06/2017,"1,800.00",73373-RESIDENTIAL & NURSING CARE PLACEMENTS,OP COMMISSIONING,Third Party Payments,Revenue
Walsall Council,http://opendatacommunities.org/id/metropolitan-district-council/walsall,WC81-569,30/06/2017,Adult Social Care,C & V ORCHARD MANOR LTD,27/06/2017,"1,800.00",73373-RESIDENTIAL & NURSING CARE PLACEMENTS,MH COMMISSIONING,Third Party Payments,Revenue
Walsall Council,http://opendatacommunities.org/id/metropolitan-district-council/walsall,WC81-570,30/06/2017,Adult Social Care,C & V ORCHARD MANOR LTD,27/06/2017,"1,800.00",73373-RESIDENTIAL & NURSING CARE PLACEMENTS,MH COMMISSIONING,Third Party Payments,Revenue
Walsall Council,http://opendatacommunities.org/id/metropolitan-district-council/walsall,WC81-571,30/06/2017,Adult Social Care,C & V ORCHARD MANOR LTD,27/06/2017,"1,800.00",73373-RESIDENTIAL & NURSING CARE PLACEMENTS,OP COMMISSIONING,Third Party Payments,Revenue
Walsall Council,http://opendatacommunities.org/id/metropolitan-district-council/walsall,WC81-572,30/06/2017,Adult Social Care,C & V ORCHARD MANOR LTD,27/06/2017,"1,800.00",73373-RESIDENTIAL & NURSING CARE PLACEMENTS,OP COMMISSIONING,Third Party Payments,Revenue
Walsall Council,http://opendatacommunities.org/id/metropolitan-district-council/walsall,WC81-573,30/06/2017,Adult Social Care,C & V ORCHARD MANOR LTD,27/06/2017,"1,800.00",73373-RESIDENTIAL & NURSING CARE PLACEMENTS,OP COMMISSIONING,Third Party Payments,Revenue
Walsall Council,http://opendatacommunities.org/id/metropolitan-district-council/walsall,WC81-574,30/06/2017,Adult Social Care,C & V ORCHARD MANOR LTD,27/06/2017,"5,142.86",73373-RESIDENTIAL & NURSING CARE PLACEMENTS,OP COMMISSIONING,Third Party Payments,Revenue
Walsall Council,http://opendatacommunities.org/id/metropolitan-district-council/walsall,WC81-575,30/06/2017,Adult Social Care,C & V ORCHARD MANOR LTD,27/06/2017,"8,403.42",73373-RESIDENTIAL & NURSING CARE PLACEMENTS,PD COMMISSIONING,Third Party Payments,Revenue
Walsall Council,http://opendatacommunities.org/id/metropolitan-district-council/walsall,WC81-576,30/06/2017,Adult Social Care,C & V ORCHARD RESIDENTIAL LTD,06/06/2017,533.30,73373-RESIDENTIAL & NURSING CARE PLACEMENTS,OP COMMISSIONING,Third Party Payments,Revenue
Walsall Council,http://opendatacommunities.org/id/metropolitan-district-council/walsall,WC81-577,30/06/2017,Adult Social Care,C & V ORCHARD RESIDENTIAL LTD,06/06/2017,"1,330.51",73373-RESIDENTIAL & NURSING CARE PLACEMENTS,OP COMMISSIONING,Third Party Payments,Revenue
Walsall Council,http://opendatacommunities.org/id/metropolitan-district-council/walsall,WC81-578,30/06/2017,Adult Social Care,C & V ORCHARD RESIDENTIAL LTD,06/06/2017,"1,330.71",73373-RESIDENTIAL & NURSING CARE PLACEMENTS,OP COMMISSIONING,Third Party Payments,Revenue
Walsall Council,http://opendatacommunities.org/id/metropolitan-district-council/walsall,WC81-579,30/06/2017,Adult Social Care,C & V ORCHARD RESIDENTIAL LTD,06/06/2017,"1,620.00",73373-RESIDENTIAL & NURSING CARE PLACEMENTS,OP COMMISSIONING,Third Party Payments,Revenue
Walsall Council,http://opendatacommunities.org/id/metropolitan-district-council/walsall,WC81-580,30/06/2017,Adult Social Care,C & V ORCHARD RESIDENTIAL LTD,06/06/2017,"1,620.00",73373-RESIDENTIAL & NURSING CARE PLACEMENTS,OP COMMISSIONING,Third Party Payments,Revenue
Walsall Council,http://opendatacommunities.org/id/metropolitan-district-council/walsall,WC81-581,30/06/2017,Adult Social Care,C & V ORCHARD RESIDENTIAL LTD,06/06/2017,"1,620.00",73373-RESIDENTIAL & NURSING CARE PLACEMENTS,OP COMMISSIONING,Third Party Payments,Revenue
Walsall Council,http://opendatacommunities.org/id/metropolitan-district-council/walsall,WC81-582,30/06/2017,Adult Social Care,C & V ORCHARD RESIDENTIAL LTD,27/06/2017,"1,620.00",73373-RESIDENTIAL & NURSING CARE PLACEMENTS,OP COMMISSIONING,Third Party Payments,Revenue
Walsall Council,http://opendatacommunities.org/id/metropolitan-district-council/walsall,WC81-583,30/06/2017,Adult Social Care,C & V ORCHARD RESIDENTIAL LTD,27/06/2017,"1,620.00",73373-RESIDENTIAL & NURSING CARE PLACEMENTS,OP COMMISSIONING,Third Party Payments,Revenue
Walsall Council,http://opendatacommunities.org/id/metropolitan-district-council/walsall,WC81-584,30/06/2017,Adult Social Care,C & V ORCHARD RESIDENTIAL LTD,27/06/2017,"1,620.00",73373-RESIDENTIAL & NURSING CARE PLACEMENTS,OP COMMISSIONING,Third Party Payments,Revenue
Walsall Council,http://opendatacommunities.org/id/metropolitan-district-council/walsall,WC81-585,30/06/2017,Adult Social Care,C & V ORCHARD RESIDENTIAL LTD,27/06/2017,"1,620.00",73373-RESIDENTIAL & NURSING CARE PLACEMENTS,OP COMMISSIONING,Third Party Payments,Revenue
Walsall Council,http://opendatacommunities.org/id/metropolitan-district-council/walsall,WC81-586,30/06/2017,Adult Social Care,C & V ORCHARD RESIDENTIAL LTD,06/06/2017,"1,799.96",73373-RESIDENTIAL & NURSING CARE PLACEMENTS,OP COMMISSIONING,Third Party Payments,Revenue
Walsall Council,http://opendatacommunities.org/id/metropolitan-district-council/walsall,WC81-587,30/06/2017,Adult Social Care,C & V ORCHARD RESIDENTIAL LTD,27/06/2017,"1,799.96",73373-RESIDENTIAL & NURSING CARE PLACEMENTS,OP COMMISSIONING,Third Party Payments,Revenue
Walsall Council,http://opendatacommunities.org/id/metropolitan-district-council/walsall,WC81-588,30/06/2017,Adult Social Care,C & V ORCHARD RESIDENTIAL LTD,06/06/2017,"1,800.00",73373-RESIDENTIAL & NURSING CARE PLACEMENTS,OP COMMISSIONING,Third Party Payments,Revenue
Walsall Council,http://opendatacommunities.org/id/metropolitan-district-council/walsall,WC81-589,30/06/2017,Adult Social Care,C & V ORCHARD RESIDENTIAL LTD,06/06/2017,"1,800.00",73373-RESIDENTIAL & NURSING CARE PLACEMENTS,OP COMMISSIONING,Third Party Payments,Revenue
Walsall Council,http://opendatacommunities.org/id/metropolitan-district-council/walsall,WC81-590,30/06/2017,Adult Social Care,C & V ORCHARD RESIDENTIAL LTD,06/06/2017,"1,800.00",73373-RESIDENTIAL & NURSING CARE PLACEMENTS,OP COMMISSIONING,Third Party Payments,Revenue
Walsall Council,http://opendatacommunities.org/id/metropolitan-district-council/walsall,WC81-591,30/06/2017,Adult Social Care,C & V ORCHARD RESIDENTIAL LTD,06/06/2017,"1,800.00",73373-RESIDENTIAL & NURSING CARE PLACEMENTS,OP COMMISSIONING,Third Party Payments,Revenue
Walsall Council,http://opendatacommunities.org/id/metropolitan-district-council/walsall,WC81-592,30/06/2017,Adult Social Care,C & V ORCHARD RESIDENTIAL LTD,06/06/2017,"1,800.00",73373-RESIDENTIAL & NURSING CARE PLACEMENTS,OP COMMISSIONING,Third Party Payments,Revenue
Walsall Council,http://opendatacommunities.org/id/metropolitan-district-council/walsall,WC81-593,30/06/2017,Adult Social Care,C & V ORCHARD RESIDENTIAL LTD,06/06/2017,"1,800.00",73373-RESIDENTIAL & NURSING CARE PLACEMENTS,OP COMMISSIONING,Third Party Payments,Revenue
Walsall Council,http://opendatacommunities.org/id/metropolitan-district-council/walsall,WC81-594,30/06/2017,Adult Social Care,C & V ORCHARD RESIDENTIAL LTD,06/06/2017,"1,800.00",73373-RESIDENTIAL & NURSING CARE PLACEMENTS,OP COMMISSIONING,Third Party Payments,Revenue
Walsall Council,http://opendatacommunities.org/id/metropolitan-district-council/walsall,WC81-595,30/06/2017,Adult Social Care,C & V ORCHARD RESIDENTIAL LTD,06/06/2017,"1,800.00",73373-RESIDENTIAL & NURSING CARE PLACEMENTS,MH COMMISSIONING,Third Party Payments,Revenue
Walsall Council,http://opendatacommunities.org/id/metropolitan-district-council/walsall,WC81-596,30/06/2017,Adult Social Care,C & V ORCHARD RESIDENTIAL LTD,06/06/2017,"1,800.00",73373-RESIDENTIAL & NURSING CARE PLACEMENTS,OP COMMISSIONING,Third Party Payments,Revenue
Walsall Council,http://opendatacommunities.org/id/metropolitan-district-council/walsall,WC81-597,30/06/2017,Adult Social Care,C & V ORCHARD RESIDENTIAL LTD,27/06/2017,"1,800.00",73373-RESIDENTIAL & NURSING CARE PLACEMENTS,OP COMMISSIONING,Third Party Payments,Revenue
Walsall Council,http://opendatacommunities.org/id/metropolitan-district-council/walsall,WC81-598,30/06/2017,Adult Social Care,C & V ORCHARD RESIDENTIAL LTD,27/06/2017,"1,800.00",73373-RESIDENTIAL & NURSING CARE PLACEMENTS,OP COMMISSIONING,Third Party Payments,Revenue
Walsall Council,http://opendatacommunities.org/id/metropolitan-district-council/walsall,WC81-599,30/06/2017,Adult Social Care,C & V ORCHARD RESIDENTIAL LTD,27/06/2017,"1,800.00",73373-RESIDENTIAL & NURSING CARE PLACEMENTS,OP COMMISSIONING,Third Party Payments,Revenue
Walsall Council,http://opendatacommunities.org/id/metropolitan-district-council/walsall,WC81-600,30/06/2017,Adult Social Care,C & V ORCHARD RESIDENTIAL LTD,27/06/2017,"1,800.00",73373-RESIDENTIAL & NURSING CARE PLACEMENTS,OP COMMISSIONING,Third Party Payments,Revenue
Walsall Council,http://opendatacommunities.org/id/metropolitan-district-council/walsall,WC81-601,30/06/2017,Adult Social Care,C & V ORCHARD RESIDENTIAL LTD,27/06/2017,"1,800.00",73373-RESIDENTIAL & NURSING CARE PLACEMENTS,OP COMMISSIONING,Third Party Payments,Revenue
Walsall Council,http://opendatacommunities.org/id/metropolitan-district-council/walsall,WC81-602,30/06/2017,Adult Social Care,C & V ORCHARD RESIDENTIAL LTD,27/06/2017,"1,800.00",73373-RESIDENTIAL & NURSING CARE PLACEMENTS,OP COMMISSIONING,Third Party Payments,Revenue
Walsall Council,http://opendatacommunities.org/id/metropolitan-district-council/walsall,WC81-603,30/06/2017,Adult Social Care,C & V ORCHARD RESIDENTIAL LTD,27/06/2017,"1,800.00",73373-RESIDENTIAL & NURSING CARE PLACEMENTS,OP COMMISSIONING,Third Party Payments,Revenue
Walsall Council,http://opendatacommunities.org/id/metropolitan-district-council/walsall,WC81-604,30/06/2017,Adult Social Care,C & V ORCHARD RESIDENTIAL LTD,27/06/2017,"1,800.00",73373-RESIDENTIAL & NURSING CARE PLACEMENTS,OP COMMISSIONING,Third Party Payments,Revenue
Walsall Council,http://opendatacommunities.org/id/metropolitan-district-council/walsall,WC81-605,30/06/2017,Adult Social Care,C & V ORCHARD RESIDENTIAL LTD,27/06/2017,"1,800.00",73373-RESIDENTIAL & NURSING CARE PLACEMENTS,MH COMMISSIONING,Third Party Payments,Revenue
Walsall Council,http://opendatacommunities.org/id/metropolitan-district-council/walsall,WC81-606,30/06/2017,Adult Social Care,C & V ORCHARD RESIDENTIAL LTD,27/06/2017,"3,934.25",73373-RESIDENTIAL & NURSING CARE PLACEMENTS,OP COMMISSIONING,Third Party Payments,Revenue
Walsall Council,http://opendatacommunities.org/id/metropolitan-district-council/walsall,WC81-607,30/06/2017,Adult Social Care,C & V ORCHARD RESIDENTIAL LTD,06/06/2017,"6,942.85",73373-RESIDENTIAL & NURSING CARE PLACEMENTS,OP COMMISSIONING,Third Party Payments,Revenue
Walsall Council,http://opendatacommunities.org/id/metropolitan-district-council/walsall,WC81-608,30/06/2017,Adult Social Care,C & V ORCHARD RESIDENTIAL LTD,06/06/2017,"7,058.57",73373-RESIDENTIAL & NURSING CARE PLACEMENTS,OP COMMISSIONING,Third Party Payments,Revenue
Walsall Council,http://opendatacommunities.org/id/metropolitan-district-council/walsall,WC81-609,30/06/2017,Adult Social Care,C & V ORCHARD RESIDENTIAL LTD,06/06/2017,"8,485.71",73373-RESIDENTIAL & NURSING CARE PLACEMENTS,OP COMMISSIONING,Third Party Payments,Revenue
Walsall Council,http://opendatacommunities.org/id/metropolitan-district-council/walsall,WC81-610,30/06/2017,Childrens,REDACTED,19/06/2017,9.24,60006-NEW-FURNITURE & EQUIPMENT,INTERNAL FOSTER CARE PROVISION,Supplies & Services,Revenue
Walsall Council,http://opendatacommunities.org/id/metropolitan-district-council/walsall,WC81-611,30/06/2017,Childrens,REDACTED,19/06/2017,810.32,74501-MAINTENANCE ALLOWANCE-FOSTER CARERS,INTERNAL FOSTER CARE PROVISION,Transfer Payments,Revenue
Walsall Council,http://opendatacommunities.org/id/metropolitan-district-council/walsall,WC81-612,30/06/2017,Childrens,REDACTED,19/06/2017,810.32,74501-MAINTENANCE ALLOWANCE-FOSTER CARERS,INTERNAL FOSTER CARE PROVISION,Transfer Payments,Revenue
Walsall Council,http://opendatacommunities.org/id/metropolitan-district-council/walsall,WC81-613,30/06/2017,Childrens,REDACTED,19/06/2017,810.32,74501-MAINTENANCE ALLOWANCE-FOSTER CARERS,INTERNAL FOSTER CARE PROVISION,Transfer Payments,Revenue
Walsall Council,http://opendatacommunities.org/id/metropolitan-district-council/walsall,WC81-614,30/06/2017,Childrens,REDACTED,19/06/2017,810.32,74501-MAINTENANCE ALLOWANCE-FOSTER CARERS,INTERNAL FOSTER CARE PROVISION,Transfer Payments,Revenue
Walsall Council,http://opendatacommunities.org/id/metropolitan-district-council/walsall,WC81-615,30/06/2017,Childrens,REDACTED,19/06/2017,985.76,74501-MAINTENANCE ALLOWANCE-FOSTER CARERS,INTERNAL FOSTER CARE PROVISION,Transfer Payments,Revenue
Walsall Council,http://opendatacommunities.org/id/metropolitan-district-council/walsall,WC81-616,30/06/2017,Childrens,REDACTED,19/06/2017,985.76,74501-MAINTENANCE ALLOWANCE-FOSTER CARERS,INTERNAL FOSTER CARE PROVISION,Transfer Payments,Revenue
Walsall Council,http://opendatacommunities.org/id/metropolitan-district-council/walsall,WC81-617,30/06/2017,Childrens,REDACTED,19/06/2017,"4,308.40",74508-INTERNAL FOSTER CARERS-CARER FEES,INTERNAL FOSTER CARE PROVISION,Transfer Payments,Revenue
Walsall Council,http://opendatacommunities.org/id/metropolitan-district-council/walsall,WC81-618,30/06/2017,Childrens,REDACTED,19/06/2017,9.24,60006-NEW-FURNITURE & EQUIPMENT,INTERNAL FOSTER CARE PROVISION,Supplies & Services,Revenue
Walsall Council,http://opendatacommunities.org/id/metropolitan-district-council/walsall,WC81-619,30/06/2017,Childrens,REDACTED,19/06/2017,405.16,74504-HOLIDAY/CHRISTMAS ALLOWANCE-FOSTER CARERS,INTERNAL FOSTER CARE PROVISION,Transfer Payments,Revenue
Walsall Council,http://opendatacommunities.org/id/metropolitan-district-council/walsall,WC81-620,30/06/2017,Childrens,REDACTED,19/06/2017,405.16,74504-HOLIDAY/CHRISTMAS ALLOWANCE-FOSTER CARERS,INTERNAL FOSTER CARE PROVISION,Transfer Payments,Revenue
Walsall Council,http://opendatacommunities.org/id/metropolitan-district-council/walsall,WC81-621,30/06/2017,Childrens,REDACTED,19/06/2017,810.32,74501-MAINTENANCE ALLOWANCE-FOSTER CARERS,INTERNAL FOSTER CARE PROVISION,Transfer Payments,Revenue
Walsall Council,http://opendatacommunities.org/id/metropolitan-district-council/walsall,WC81-622,30/06/2017,Childrens,REDACTED,19/06/2017,810.32,74501-MAINTENANCE ALLOWANCE-FOSTER CARERS,INTERNAL FOSTER CARE PROVISION,Transfer Payments,Revenue
Walsall Council,http://opendatacommunities.org/id/metropolitan-district-council/walsall,WC81-623,30/06/2017,Childrens,REDACTED,19/06/2017,"1,436.08",74508-INTERNAL FOSTER CARERS-CARER FEES,INTERNAL FOSTER CARE PROVISION,Transfer Payments,Revenue
Walsall Council,http://opendatacommunities.org/id/metropolitan-district-council/walsall,WC81-624,30/06/2017,Economy & Environment,C P DAVIDSON & SONS LTD,12/06/2017,"1,093.94",60500-GENERAL MATERIALS,FLEET,Supplies & Services,Revenue
Walsall Council,http://opendatacommunities.org/id/metropolitan-district-council/walsall,WC81-625,30/06/2017,Economy & Environment,C P DAVIDSON & SONS LTD,13/06/2017,"2,910.54",60500-GENERAL MATERIALS,FLEET,Supplies & Services,Revenue
Walsall Council,http://opendatacommunities.org/id/metropolitan-district-council/walsall,WC81-626,30/06/2017,Childrens,REDACTED,06/06/2017,285.72,74504-HOLIDAY/CHRISTMAS ALLOWANCE-FOSTER CARERS,FAMILY & FRIENDS FOSTER CARE PROVISION,Transfer Payments,Revenue
Walsall Council,http://opendatacommunities.org/id/metropolitan-district-council/walsall,WC81-627,30/06/2017,Childrens,REDACTED,12/06/2017,325.46,74504-HOLIDAY/CHRISTMAS ALLOWANCE-FOSTER CARERS,FAMILY & FRIENDS FOSTER CARE PROVISION,Transfer Payments,Revenue
Walsall Council,http://opendatacommunities.org/id/metropolitan-district-council/walsall,WC81-628,30/06/2017,Childrens,REDACTED,06/06/2017,571.44,74501-MAINTENANCE ALLOWANCE-FOSTER CARERS,FAMILY & FRIENDS FOSTER CARE PROVISION,Transfer Payments,Revenue
Walsall Council,http://opendatacommunities.org/id/metropolitan-district-council/walsall,WC81-629,30/06/2017,Childrens,REDACTED,06/06/2017,650.92,74501-MAINTENANCE ALLOWANCE-FOSTER CARERS,FAMILY & FRIENDS FOSTER CARE PROVISION,Transfer Payments,Revenue
Walsall Council,http://opendatacommunities.org/id/metropolitan-district-council/walsall,WC81-630,30/06/2017,Adult Social Care,CALDENE  REST HOME,13/06/2017,"1,620.00",73373-RESIDENTIAL & NURSING CARE PLACEMENTS,OP COMMISSIONING,Third Party Payments,Revenue
Walsall Council,http://opendatacommunities.org/id/metropolitan-district-council/walsall,WC81-631,30/06/2017,Adult Social Care,CALDENE  REST HOME,27/06/2017,"1,620.00",73373-RESIDENTIAL & NURSING CARE PLACEMENTS,OP COMMISSIONING,Third Party Payments,Revenue
Walsall Council,http://opendatacommunities.org/id/metropolitan-district-council/walsall,WC81-632,30/06/2017,Adult Social Care,CALDMORE AREA HOUSING ASS LTD,13/06/2017,"2,533.04",73373-RESIDENTIAL & NURSING CARE PLACEMENTS,MH COMMISSIONING,Third Party Payments,Revenue
Walsall Council,http://opendatacommunities.org/id/metropolitan-district-council/walsall,WC81-633,30/06/2017,Adult Social Care,CALDMORE AREA HOUSING ASS LTD,13/06/2017,"2,533.04",73373-RESIDENTIAL & NURSING CARE PLACEMENTS,MH COMMISSIONING,Third Party Payments,Revenue
Walsall Council,http://opendatacommunities.org/id/metropolitan-district-council/walsall,WC81-634,30/06/2017,Adult Social Care,CALDMORE AREA HOUSING ASS LTD,13/06/2017,"2,533.04",73373-RESIDENTIAL & NURSING CARE PLACEMENTS,OP COMMISSIONING,Third Party Payments,Revenue
Walsall Council,http://opendatacommunities.org/id/metropolitan-district-council/walsall,WC81-635,30/06/2017,Adult Social Care,CALDMORE AREA HOUSING ASS LTD,13/06/2017,"2,533.04",73373-RESIDENTIAL & NURSING CARE PLACEMENTS,MH COMMISSIONING,Third Party Payments,Revenue
Walsall Council,http://opendatacommunities.org/id/metropolitan-district-council/walsall,WC81-636,30/06/2017,Adult Social Care,CALDMORE AREA HOUSING ASS LTD,13/06/2017,"2,533.04",73373-RESIDENTIAL & NURSING CARE PLACEMENTS,MH COMMISSIONING,Third Party Payments,Revenue
Walsall Council,http://opendatacommunities.org/id/metropolitan-district-council/walsall,WC81-637,30/06/2017,Adult Social Care,CALDMORE AREA HOUSING ASS LTD,13/06/2017,"2,533.04",73373-RESIDENTIAL & NURSING CARE PLACEMENTS,MH COMMISSIONING,Third Party Payments,Revenue
Walsall Council,http://opendatacommunities.org/id/metropolitan-district-council/walsall,WC81-638,30/06/2017,Adult Social Care,CALDMORE AREA HOUSING ASS LTD,13/06/2017,"2,533.04",73373-RESIDENTIAL & NURSING CARE PLACEMENTS,MH COMMISSIONING,Third Party Payments,Revenue
Walsall Council,http://opendatacommunities.org/id/metropolitan-district-council/walsall,WC81-639,30/06/2017,Adult Social Care,CALDMORE AREA HOUSING ASS LTD,13/06/2017,"2,533.04",73373-RESIDENTIAL & NURSING CARE PLACEMENTS,MH COMMISSIONING,Third Party Payments,Revenue
Walsall Council,http://opendatacommunities.org/id/metropolitan-district-council/walsall,WC81-640,30/06/2017,Adult Social Care,CALDMORE AREA HOUSING ASS LTD,13/06/2017,"2,533.04",73373-RESIDENTIAL & NURSING CARE PLACEMENTS,MH COMMISSIONING,Third Party Payments,Revenue
Walsall Council,http://opendatacommunities.org/id/metropolitan-district-council/walsall,WC81-641,30/06/2017,Adult Social Care,CALDMORE AREA HOUSING ASS LTD,13/06/2017,"2,533.04",73373-RESIDENTIAL & NURSING CARE PLACEMENTS,MH COMMISSIONING,Third Party Payments,Revenue
Walsall Council,http://opendatacommunities.org/id/metropolitan-district-council/walsall,WC81-642,30/06/2017,Adult Social Care,CALDMORE AREA HOUSING ASS LTD,13/06/2017,"2,533.04",73373-RESIDENTIAL & NURSING CARE PLACEMENTS,MH COMMISSIONING,Third Party Payments,Revenue
Walsall Council,http://opendatacommunities.org/id/metropolitan-district-council/walsall,WC81-643,30/06/2017,Adult Social Care,CALDMORE AREA HOUSING ASS LTD,13/06/2017,"2,533.04",73373-RESIDENTIAL & NURSING CARE PLACEMENTS,MH COMMISSIONING,Third Party Payments,Revenue
Walsall Council,http://opendatacommunities.org/id/metropolitan-district-council/walsall,WC81-644,30/06/2017,Adult Social Care,CALDMORE AREA HOUSING ASS LTD,27/06/2017,"2,804.44",73373-RESIDENTIAL & NURSING CARE PLACEMENTS,MH COMMISSIONING,Third Party Payments,Revenue
Walsall Council,http://opendatacommunities.org/id/metropolitan-district-council/walsall,WC81-645,30/06/2017,Childrens,CALDMORE PRIMARY ACADEMY,28/06/2017,"1,895.39",66502-TOP UP FUNDING -GRANTS TO SCHOOLS,CALDMORE PRIMARY ACADEMY,Third Party Payments,Revenue
Walsall Council,http://opendatacommunities.org/id/metropolitan-district-council/walsall,WC81-646,30/06/2017,Childrens,REDACTED,06/06/2017,375.88,74510-RESIDENTS ORDERS,ADOPTION ALLOWANCES,Third Party Payments,Revenue
Walsall Council,http://opendatacommunities.org/id/metropolitan-district-council/walsall,WC81-647,30/06/2017,Childrens,REDACTED,14/06/2017,393.75,76422-DIRECT PAYMENTS TO SOCIAL SERVICES CLIENTS,FAMILY SUPPORT - DIRECT PAYMENTS,Transfer Payments,Revenue
Walsall Council,http://opendatacommunities.org/id/metropolitan-district-council/walsall,WC81-648,30/06/2017,Childrens,CAMBIAN CHILDCARE LIMITED,19/06/2017,"13,400.00",74036-EXTERNAL RESIDENTIAL CARE-OTH AGENCY PROVISION,INDEPENDENT RESIDENTIAL HOMES,Third Party Payments,Revenue
Walsall Council,http://opendatacommunities.org/id/metropolitan-district-council/walsall,WC81-649,30/06/2017,Childrens,CAMBIAN CHILDCARE LIMITED,19/06/2017,"13,400.00",74036-EXTERNAL RESIDENTIAL CARE-OTH AGENCY PROVISION,INDEPENDENT RESIDENTIAL HOMES,Third Party Payments,Revenue
Walsall Council,http://opendatacommunities.org/id/metropolitan-district-council/walsall,WC81-650,30/06/2017,Adult Social Care,CAMBIAN HEALTHCARE LTD,05/06/2017,"13,290.90",73375-IN PATIENT BEDS,LD COMMISSIONING,Third Party Payments,Revenue
Walsall Council,http://opendatacommunities.org/id/metropolitan-district-council/walsall,WC81-651,30/06/2017,Childrens,CAMPION SCHOOL,02/06/2017,"1,529.00",66502-TOP UP FUNDING -GRANTS TO SCHOOLS,ACADEMIES,Third Party Payments,Revenue
Walsall Council,http://opendatacommunities.org/id/metropolitan-district-council/walsall,WC81-652,30/06/2017,Childrens,CAMPION SCHOOL,02/06/2017,"1,529.00",66502-TOP UP FUNDING -GRANTS TO SCHOOLS,ACADEMIES,Third Party Payments,Revenue
Walsall Council,http://opendatacommunities.org/id/metropolitan-district-council/walsall,WC81-653,30/06/2017,Change and Governance,CANAL & RIVER TRUST,01/06/2017,590.00,62515-MISCELLANEOUS SUPPLIES,AREA 3 - NORTH WALSALL,Supplies & Services,Revenue
Walsall Council,http://opendatacommunities.org/id/metropolitan-district-council/walsall,WC81-654,30/06/2017,Economy & Environment,CANAL & RIVER TRUST,05/06/2017,"247,777.51",01006-SITE WORKS MAIN CONTRACTORS,CFR 1121 MANAGING SHORT TRIPS,Capital,Capital
Walsall Council,http://opendatacommunities.org/id/metropolitan-district-council/walsall,WC81-655,30/06/2017,Economy & Environment,CAPELAND LIMITED,06/06/2017,262.00,60500-GENERAL MATERIALS,FLEET,Supplies & Services,Revenue
Walsall Council,http://opendatacommunities.org/id/metropolitan-district-council/walsall,WC81-656,30/06/2017,Change and Governance,CAPITA BUSINESS SERVICES LTD 001,07/06/2017,420.00,63800-COMPUTER EQUIPMENT AND SUPPLIES,RECHARGEABLE EQUIPMENT,Supplies & Services,Revenue
Walsall Council,http://opendatacommunities.org/id/metropolitan-district-council/walsall,WC81-657,30/06/2017,Childrens,CAPITA BUSINESS SERVICES LTD 001,20/06/2017,"8,000.00",63800-COMPUTER EQUIPMENT AND SUPPLIES,SEN REFORM GRANT,Supplies & Services,Revenue
Walsall Council,http://opendatacommunities.org/id/metropolitan-district-council/walsall,WC81-658,30/06/2017,Childrens,CAPSTONE FOSTER CARE (SOUTH EAST) LIMITED,19/06/2017,"2,855.68",74037-INDEPENDENT FOSTER CARE-OTH AGENCY PROVISION,EXTERNAL FOSTER CARE PROVISION,Third Party Payments,Revenue
Walsall Council,http://opendatacommunities.org/id/metropolitan-district-council/walsall,WC81-659,30/06/2017,Childrens,CAPSTONE FOSTER CARE (SOUTH EAST) LIMITED,19/06/2017,"3,005.64",74037-INDEPENDENT FOSTER CARE-OTH AGENCY PROVISION,EXTERNAL FOSTER CARE PROVISION,Third Party Payments,Revenue
Walsall Council,http://opendatacommunities.org/id/metropolitan-district-council/walsall,WC81-660,30/06/2017,Childrens,CAPSTONE FOSTER CARE (SOUTH EAST) LIMITED,19/06/2017,"3,194.04",74037-INDEPENDENT FOSTER CARE-OTH AGENCY PROVISION,EXTERNAL FOSTER CARE PROVISION,Third Party Payments,Revenue
Walsall Council,http://opendatacommunities.org/id/metropolitan-district-council/walsall,WC81-661,30/06/2017,Childrens,CAPSTONE FOSTER CARE (SOUTH EAST) LIMITED,19/06/2017,"3,194.04",74037-INDEPENDENT FOSTER CARE-OTH AGENCY PROVISION,EXTERNAL FOSTER CARE PROVISION,Third Party Payments,Revenue
Walsall Council,http://opendatacommunities.org/id/metropolitan-district-council/walsall,WC81-662,30/06/2017,Childrens,CAPSTONE FOSTER CARE (SOUTH EAST) LIMITED,19/06/2017,"3,260.04",74037-INDEPENDENT FOSTER CARE-OTH AGENCY PROVISION,EXTERNAL FOSTER CARE PROVISION,Third Party Payments,Revenue
Walsall Council,http://opendatacommunities.org/id/metropolitan-district-council/walsall,WC81-663,30/06/2017,Adult Social Care,CARE 2 U LIMITED,21/06/2017,"31,398.34",73372-DOMICILIARY CARE,OP COMMISSIONING,Third Party Payments,Revenue
Walsall Council,http://opendatacommunities.org/id/metropolitan-district-council/walsall,WC81-664,30/06/2017,Childrens,CARE 4 CHILDREN RESIDENTIAL SERVICES LTD,19/06/2017,"7,200.00",74037-INDEPENDENT FOSTER CARE-OTH AGENCY PROVISION,EXTERNAL FOSTER CARE PROVISION,Third Party Payments,Revenue
Walsall Council,http://opendatacommunities.org/id/metropolitan-district-council/walsall,WC81-665,30/06/2017,Adult Social Care,CARE FIRST CARE HOMES LTD,13/06/2017,578.57,73373-RESIDENTIAL & NURSING CARE PLACEMENTS,OP COMMISSIONING,Third Party Payments,Revenue
Walsall Council,http://opendatacommunities.org/id/metropolitan-district-council/walsall,WC81-666,30/06/2017,Adult Social Care,CARE FIRST MANAGEMENT SERVICES LTD,21/06/2017,780.00,73374-SUPPORTED & OTHER ACCOMMODATION,LD COMMISSIONING,Third Party Payments,Revenue
Walsall Council,http://opendatacommunities.org/id/metropolitan-district-council/walsall,WC81-667,30/06/2017,Childrens,CARE FOR ME HOUSING AND SUPPORT,09/06/2017,"2,600.00",76010-ACCOMMODATION AND RELATED COSTS-ASSISTANCE TO S/S CLIENTS,TRANSITION AND LEAVING CARE,Transfer Payments,Revenue
Walsall Council,http://opendatacommunities.org/id/metropolitan-district-council/walsall,WC81-668,30/06/2017,Childrens,CARE LEAVERS,23/06/2017,299.92,76010-ACCOMMODATION AND RELATED COSTS-ASSISTANCE TO S/S CLIENTS,TRANSITION AND LEAVING CARE,Transfer Payments,Revenue
Walsall Council,http://opendatacommunities.org/id/metropolitan-district-council/walsall,WC81-669,30/06/2017,Childrens,CARE LEAVERS,23/06/2017,558.50,63114-OTHER FEES & LICENCES-SERVICES-FEES,TRANSITION AND LEAVING CARE,Supplies & Services,Revenue
Walsall Council,http://opendatacommunities.org/id/metropolitan-district-council/walsall,WC81-670,30/06/2017,Childrens,CARE LEAVERS,23/06/2017,"3,646.00",64002-OTHER EXPENSES-EXPENSES,TRANSITION AND LEAVING CARE,Supplies & Services,Revenue
Walsall Council,http://opendatacommunities.org/id/metropolitan-district-council/walsall,WC81-671,30/06/2017,Childrens,CARE LEAVERS,23/06/2017,"5,882.51",74500-CARE LEAVERS MTCE PAYMENTS,TRANSITION AND LEAVING CARE,Third Party Payments,Revenue
Walsall Council,http://opendatacommunities.org/id/metropolitan-district-council/walsall,WC81-672,30/06/2017,Childrens,CARE LEAVERS,23/06/2017,"6,273.44",76400-RESIDENTS PERSONAL EXPENSES-ALLOWANCES TO S/S CLIENTS,TRANSITION AND LEAVING CARE,Transfer Payments,Revenue
Walsall Council,http://opendatacommunities.org/id/metropolitan-district-council/walsall,WC81-673,30/06/2017,Adult Social Care,CARE SHOP,06/06/2017,466.80,60539-CLEANING MATERIALS,COMMUNITY INTERMEDIATE CARE,Supplies & Services,Revenue
Walsall Council,http://opendatacommunities.org/id/metropolitan-district-council/walsall,WC81-674,30/06/2017,Adult Social Care,CARE SHOP,26/06/2017,624.04,60539-CLEANING MATERIALS,REABLEMENT TEAM - HOLLY BANK,Supplies & Services,Revenue
Walsall Council,http://opendatacommunities.org/id/metropolitan-district-council/walsall,WC81-675,30/06/2017,Adult Social Care,CARE SHOP,28/06/2017,690.87,60539-CLEANING MATERIALS,REABLEMENT TEAM - HOLLY BANK,Supplies & Services,Revenue
Walsall Council,http://opendatacommunities.org/id/metropolitan-district-council/walsall,WC81-676,30/06/2017,Childrens,CARE TODAY CHILDRENS SERVICES,19/06/2017,"12,732.00",74036-EXTERNAL RESIDENTIAL CARE-OTH AGENCY PROVISION,INDEPENDENT RESIDENTIAL HOMES,Third Party Payments,Revenue
Walsall Council,http://opendatacommunities.org/id/metropolitan-district-council/walsall,WC81-677,30/06/2017,Adult Social Care,CARE XY LIMITED,08/06/2017,"2,291.25",73025-PROFESSIONAL SERVICES-PRIV CONTRACTOR & OTHER AGENCIES,COMMUNITY INTERMEDIATE CARE,Third Party Payments,Revenue
Walsall Council,http://opendatacommunities.org/id/metropolitan-district-council/walsall,WC81-678,30/06/2017,Adult Social Care,CARE XY LIMITED,08/06/2017,"2,486.25",73025-PROFESSIONAL SERVICES-PRIV CONTRACTOR & OTHER AGENCIES,COMMUNITY INTERMEDIATE CARE,Third Party Payments,Revenue
Walsall Council,http://opendatacommunities.org/id/metropolitan-district-council/walsall,WC81-679,30/06/2017,Adult Social Care,CARE XY LIMITED,20/06/2017,"3,136.25",73025-PROFESSIONAL SERVICES-PRIV CONTRACTOR & OTHER AGENCIES,COMMUNITY INTERMEDIATE CARE,Third Party Payments,Revenue
Walsall Council,http://opendatacommunities.org/id/metropolitan-district-council/walsall,WC81-680,30/06/2017,Adult Social Care,CARE XY LIMITED,20/06/2017,"3,259.75",73025-PROFESSIONAL SERVICES-PRIV CONTRACTOR & OTHER AGENCIES,COMMUNITY INTERMEDIATE CARE,Third Party Payments,Revenue
Walsall Council,http://opendatacommunities.org/id/metropolitan-district-council/walsall,WC81-681,30/06/2017,Childrens,CARE XY LIMITED,08/06/2017,"5,781.50",63000-PROFESSIONAL FEES AND SERVICES,DIRECTLY COMMISSIONED NURSING SERVICES,Supplies & Services,Revenue
Walsall Council,http://opendatacommunities.org/id/metropolitan-district-council/walsall,WC81-682,30/06/2017,Childrens,CAREFIRST SERVICES LIMITED,19/06/2017,"2,657.01",76010-ACCOMMODATION AND RELATED COSTS-ASSISTANCE TO S/S CLIENTS,SAFEGUARDING & FAMILY SUPPORT,Transfer Payments,Revenue
Walsall Council,http://opendatacommunities.org/id/metropolitan-district-council/walsall,WC81-683,30/06/2017,Childrens,CAREFIRST SERVICES LIMITED,19/06/2017,"2,657.01",76010-ACCOMMODATION AND RELATED COSTS-ASSISTANCE TO S/S CLIENTS,TRANSITION AND LEAVING CARE,Transfer Payments,Revenue
Walsall Council,http://opendatacommunities.org/id/metropolitan-district-council/walsall,WC81-684,30/06/2017,Adult Social Care,CARETECH COMMUNITY SERVICE,01/06/2017,"-1,791.42",73374-SUPPORTED & OTHER ACCOMMODATION,OP COMMISSIONING,Third Party Payments,Revenue
Walsall Council,http://opendatacommunities.org/id/metropolitan-district-council/walsall,WC81-685,30/06/2017,Adult Social Care,CAREVIEW SERVICES LTD,13/06/2017,"6,583.36",73373-RESIDENTIAL & NURSING CARE PLACEMENTS,LD COMMISSIONING,Third Party Payments,Revenue
Walsall Council,http://opendatacommunities.org/id/metropolitan-district-council/walsall,WC81-686,30/06/2017,Adult Social Care,CARING CARE LIMITED,21/06/2017,"70,367.48",73372-DOMICILIARY CARE,OP COMMISSIONING,Third Party Payments,Revenue
Walsall Council,http://opendatacommunities.org/id/metropolitan-district-council/walsall,WC81-687,30/06/2017,Adult Social Care,CARING HANDS LIMITED,21/06/2017,"42,050.00",73372-DOMICILIARY CARE,OP COMMISSIONING,Third Party Payments,Revenue
Walsall Council,http://opendatacommunities.org/id/metropolitan-district-council/walsall,WC81-688,30/06/2017,Adult Social Care,REDACTED,14/06/2017,"1,637.40",73374-SUPPORTED & OTHER ACCOMMODATION,LD COMMISSIONING,Third Party Payments,Revenue
Walsall Council,http://opendatacommunities.org/id/metropolitan-district-council/walsall,WC81-689,30/06/2017,Adult Social Care,REDACTED,14/06/2017,"1,637.40",73374-SUPPORTED & OTHER ACCOMMODATION,LD COMMISSIONING,Third Party Payments,Revenue
Walsall Council,http://opendatacommunities.org/id/metropolitan-district-council/walsall,WC81-690,30/06/2017,Adult Social Care,REDACTED,14/06/2017,562.50,76422-DIRECT PAYMENTS TO SOCIAL SERVICES CLIENTS,PD COMMISSIONING,Transfer Payments,Revenue
Walsall Council,http://opendatacommunities.org/id/metropolitan-district-council/walsall,WC81-691,30/06/2017,Childrens,REDACTED,19/06/2017,9.24,60006-NEW-FURNITURE & EQUIPMENT,INTERNAL FOSTER CARE PROVISION,Supplies & Services,Revenue
Walsall Council,http://opendatacommunities.org/id/metropolitan-district-council/walsall,WC81-692,30/06/2017,Childrens,REDACTED,19/06/2017,473.00,74510-RESIDENTS ORDERS,ADOPTION ALLOWANCES,Third Party Payments,Revenue
Walsall Council,http://opendatacommunities.org/id/metropolitan-district-council/walsall,WC81-693,30/06/2017,Childrens,REDACTED,19/06/2017,530.96,74508-INTERNAL FOSTER CARERS-CARER FEES,INTERNAL FOSTER CARE PROVISION,Transfer Payments,Revenue
Walsall Council,http://opendatacommunities.org/id/metropolitan-district-council/walsall,WC81-694,30/06/2017,Childrens,CAROLE BROOKS ASSOCIATES LIMITED,14/06/2017,"10,141.13",63102-CONSULTANTS FEES - CORPORATE,GENERAL MANAGEMENT SUPPORT (INC LEGAL),Supplies & Services,Revenue
Walsall Council,http://opendatacommunities.org/id/metropolitan-district-council/walsall,WC81-695,30/06/2017,Childrens,REDACTED,06/06/2017,361.12,74509-SPECIAL GUARDIANSHIP ORDERS,ADOPTION ALLOWANCES,Transfer Payments,Revenue
Walsall Council,http://opendatacommunities.org/id/metropolitan-district-council/walsall,WC81-696,30/06/2017,Economy & Environment,CARTER SYNERGY LTD,26/06/2017,315.70,"40000-REPAIRS,ALTERATIONS & MAINTENANCE-PREM",NAG - MAINTENANCE,Premises,Revenue
Walsall Council,http://opendatacommunities.org/id/metropolitan-district-council/walsall,WC81-697,30/06/2017,Economy & Environment,CARTER SYNERGY LTD,14/06/2017,483.10,"40000-REPAIRS,ALTERATIONS & MAINTENANCE-PREM",NAG - MAINTENANCE,Premises,Revenue
Walsall Council,http://opendatacommunities.org/id/metropolitan-district-council/walsall,WC81-698,30/06/2017,Economy & Environment,CARTER SYNERGY LTD,14/06/2017,985.10,"40000-REPAIRS,ALTERATIONS & MAINTENANCE-PREM",NAG - MAINTENANCE,Premises,Revenue
Walsall Council,http://opendatacommunities.org/id/metropolitan-district-council/walsall,WC81-699,30/06/2017,Economy & Environment,CARTER SYNERGY LTD,15/06/2017,"1,404.89","40000-REPAIRS,ALTERATIONS & MAINTENANCE-PREM",NAG - MAINTENANCE,Premises,Revenue
Walsall Council,http://opendatacommunities.org/id/metropolitan-district-council/walsall,WC81-700,30/06/2017,Economy & Environment,CARWOOD MOTOR UNITS LIMITED,06/06/2017,480.00,60500-GENERAL MATERIALS,FLEET,Supplies & Services,Revenue
Walsall Council,http://opendatacommunities.org/id/metropolitan-district-council/walsall,WC81-701,30/06/2017,Adult Social Care,CATHEDRAL LEASING LTD,08/06/2017,708.14,60500-GENERAL MATERIALS,TELE-HEALTHCARE,Supplies & Services,Revenue
Walsall Council,http://opendatacommunities.org/id/metropolitan-district-council/walsall,WC81-702,30/06/2017,Adult Social Care,REDACTED,14/06/2017,816.75,76422-DIRECT PAYMENTS TO SOCIAL SERVICES CLIENTS,LD COMMISSIONING,Transfer Payments,Revenue
Walsall Council,http://opendatacommunities.org/id/metropolitan-district-council/walsall,WC81-703,30/06/2017,Adult Social Care,REDACTED,14/06/2017,945.00,76422-DIRECT PAYMENTS TO SOCIAL SERVICES CLIENTS,MH COMMISSIONING,Transfer Payments,Revenue
Walsall Council,http://opendatacommunities.org/id/metropolitan-district-council/walsall,WC81-704,30/06/2017,Childrens,REDACTED,06/06/2017,425.08,74009-ADOPTION ALLOWANCE,ADOPTION ALLOWANCES,Transfer Payments,Revenue
Walsall Council,http://opendatacommunities.org/id/metropolitan-district-council/walsall,WC81-705,30/06/2017,Adult Social Care,REDACTED,14/06/2017,517.50,76422-DIRECT PAYMENTS TO SOCIAL SERVICES CLIENTS,LD COMMISSIONING,Transfer Payments,Revenue
Walsall Council,http://opendatacommunities.org/id/metropolitan-district-council/walsall,WC81-706,30/06/2017,Childrens,REDACTED,14/06/2017,"1,267.83",76422-DIRECT PAYMENTS TO SOCIAL SERVICES CLIENTS,FAMILY SUPPORT - DIRECT PAYMENTS,Transfer Payments,Revenue
Walsall Council,http://opendatacommunities.org/id/metropolitan-district-council/walsall,WC81-707,30/06/2017,Childrens,REDACTED,06/06/2017,425.08,74510-RESIDENTS ORDERS,ADOPTION ALLOWANCES,Third Party Payments,Revenue
Walsall Council,http://opendatacommunities.org/id/metropolitan-district-council/walsall,WC81-708,30/06/2017,Adult Social Care,REDACTED,14/06/2017,758.10,76422-DIRECT PAYMENTS TO SOCIAL SERVICES CLIENTS,OP COMMISSIONING,Transfer Payments,Revenue
Walsall Council,http://opendatacommunities.org/id/metropolitan-district-council/walsall,WC81-709,30/06/2017,Adult Social Care,CEDER LODGE NURSING HOME,13/06/2017,"3,545.48",73373-RESIDENTIAL & NURSING CARE PLACEMENTS,OP COMMISSIONING,Third Party Payments,Revenue
Walsall Council,http://opendatacommunities.org/id/metropolitan-district-council/walsall,WC81-710,30/06/2017,Economy & Environment,CELTIC TECHNOLOGIES LIMITED,13/06/2017,"61,009.00",01006-SITE WORKS MAIN CONTRACTORS,CFR 1072 LEX - GROWTH DEAL,Capital,Capital
Walsall Council,http://opendatacommunities.org/id/metropolitan-district-council/walsall,WC81-711,30/06/2017,Childrens,REDACTED,19/06/2017,9.24,60006-NEW-FURNITURE & EQUIPMENT,INTERNAL FOSTER CARE PROVISION,Supplies & Services,Revenue
Walsall Council,http://opendatacommunities.org/id/metropolitan-district-council/walsall,WC81-712,30/06/2017,Childrens,REDACTED,19/06/2017,71.43,74503-BIRTHDAY ALLOWANCE-FOSTER CARERS,INTERNAL FOSTER CARE PROVISION,Transfer Payments,Revenue
Walsall Council,http://opendatacommunities.org/id/metropolitan-district-council/walsall,WC81-713,30/06/2017,Childrens,REDACTED,19/06/2017,345.24,74508-INTERNAL FOSTER CARERS-CARER FEES,INTERNAL FOSTER CARE PROVISION,Transfer Payments,Revenue
Walsall Council,http://opendatacommunities.org/id/metropolitan-district-council/walsall,WC81-714,30/06/2017,Childrens,REDACTED,19/06/2017,571.44,74501-MAINTENANCE ALLOWANCE-FOSTER CARERS,INTERNAL FOSTER CARE PROVISION,Transfer Payments,Revenue
Walsall Council,http://opendatacommunities.org/id/metropolitan-district-council/walsall,WC81-715,30/06/2017,Economy & Environment,CERTAS ENERGY UK LIMITED,20/06/2017,452.50,50301-FUEL-TRANSPORT RUN COSTS,TARMAC,Transport,Revenue
Walsall Council,http://opendatacommunities.org/id/metropolitan-district-council/walsall,WC81-716,30/06/2017,Economy & Environment,CERTAS ENERGY UK LIMITED,14/06/2017,678.75,50301-FUEL-TRANSPORT RUN COSTS,FUEL STOCK ACCOUNT,Transport,Revenue
Walsall Council,http://opendatacommunities.org/id/metropolitan-district-council/walsall,WC81-717,30/06/2017,Economy & Environment,CERTAS ENERGY UK LIMITED,14/06/2017,690.00,50301-FUEL-TRANSPORT RUN COSTS,FUEL STOCK ACCOUNT,Transport,Revenue
Walsall Council,http://opendatacommunities.org/id/metropolitan-district-council/walsall,WC81-718,30/06/2017,Economy & Environment,CERTAS ENERGY UK LIMITED,29/06/2017,"1,332.90",50301-FUEL-TRANSPORT RUN COSTS,FUEL STOCK ACCOUNT,Transport,Revenue
Walsall Council,http://opendatacommunities.org/id/metropolitan-district-council/walsall,WC81-719,30/06/2017,Economy & Environment,CERTAS ENERGY UK LIMITED,14/06/2017,"2,197.50",50301-FUEL-TRANSPORT RUN COSTS,FUEL STOCK ACCOUNT,Transport,Revenue
Walsall Council,http://opendatacommunities.org/id/metropolitan-district-council/walsall,WC81-720,30/06/2017,Economy & Environment,CERTAS ENERGY UK LIMITED,28/06/2017,"17,931.43",50301-FUEL-TRANSPORT RUN COSTS,FUEL STOCK ACCOUNT,Transport,Revenue
Walsall Council,http://opendatacommunities.org/id/metropolitan-district-council/walsall,WC81-721,30/06/2017,Economy & Environment,CERTAS ENERGY UK LIMITED,14/06/2017,"18,060.32",50301-FUEL-TRANSPORT RUN COSTS,FUEL STOCK ACCOUNT,Transport,Revenue
Walsall Council,http://opendatacommunities.org/id/metropolitan-district-council/walsall,WC81-722,30/06/2017,Economy & Environment,CERTAS ENERGY UK LIMITED,29/06/2017,"18,137.30",50301-FUEL-TRANSPORT RUN COSTS,FUEL STOCK ACCOUNT,Transport,Revenue
Walsall Council,http://opendatacommunities.org/id/metropolitan-district-council/walsall,WC81-723,30/06/2017,Economy & Environment,CERTAS ENERGY UK LIMITED,20/06/2017,"18,332.31",50301-FUEL-TRANSPORT RUN COSTS,FUEL STOCK ACCOUNT,Transport,Revenue
Walsall Council,http://opendatacommunities.org/id/metropolitan-district-council/walsall,WC81-724,30/06/2017,Childrens,CF CORPORATE FINANCE LTD,02/06/2017,221.22,60009-LEASING/HIRE/RENTAL-EQUIPMENT,LOCALITY FAMILY SUPPORT-NORTH,Supplies & Services,Revenue
Walsall Council,http://opendatacommunities.org/id/metropolitan-district-council/walsall,WC81-725,30/06/2017,Adult Social Care,REDACTED,14/06/2017,405.00,76422-DIRECT PAYMENTS TO SOCIAL SERVICES CLIENTS,LD COMMISSIONING,Transfer Payments,Revenue
Walsall Council,http://opendatacommunities.org/id/metropolitan-district-council/walsall,WC81-726,30/06/2017,Economy & Environment,CHANGE GROW LIVE (CGL),01/06/2017,"809,057.00",63253-PAYMENT TO CONTRACTOR,ALCOHOL & DRUGS MISUSE,Third Party Payments,Revenue
Walsall Council,http://opendatacommunities.org/id/metropolitan-district-council/walsall,WC81-727,30/06/2017,Change and Governance,CHAPMAN SAFETY SERVICES,22/06/2017,250.00,63000-PROFESSIONAL FEES AND SERVICES,CORE SKILLS,Supplies & Services,Revenue
Walsall Council,http://opendatacommunities.org/id/metropolitan-district-council/walsall,WC81-728,30/06/2017,Adult Social Care,REDACTED,14/06/2017,990.00,76422-DIRECT PAYMENTS TO SOCIAL SERVICES CLIENTS,OP COMMISSIONING,Transfer Payments,Revenue
Walsall Council,http://opendatacommunities.org/id/metropolitan-district-council/walsall,WC81-729,30/06/2017,Childrens,REDACTED,06/06/2017,368.76,74509-SPECIAL GUARDIANSHIP ORDERS,ADOPTION ALLOWANCES,Transfer Payments,Revenue
Walsall Council,http://opendatacommunities.org/id/metropolitan-district-council/walsall,WC81-730,30/06/2017,Childrens,REDACTED,14/06/2017,323.70,76422-DIRECT PAYMENTS TO SOCIAL SERVICES CLIENTS,FAMILY SUPPORT - DIRECT PAYMENTS,Transfer Payments,Revenue
Walsall Council,http://opendatacommunities.org/id/metropolitan-district-council/walsall,WC81-731,30/06/2017,Adult Social Care,CHARMEND LTD,21/06/2017,810.00,73373-RESIDENTIAL & NURSING CARE PLACEMENTS,OP COMMISSIONING,Third Party Payments,Revenue
Walsall Council,http://opendatacommunities.org/id/metropolitan-district-council/walsall,WC81-732,30/06/2017,Adult Social Care,CHARMEND LTD,21/06/2017,"1,928.57",73373-RESIDENTIAL & NURSING CARE PLACEMENTS,OP COMMISSIONING,Third Party Payments,Revenue
Walsall Council,http://opendatacommunities.org/id/metropolitan-district-council/walsall,WC81-733,30/06/2017,Adult Social Care,CHARMEND LTD,08/06/2017,"19,795.71",73019-PSE'S-PRIV CONTRACTOR FEES,TRANSITIONAL CARE SUPPORT TEAM,Third Party Payments,Revenue
Walsall Council,http://opendatacommunities.org/id/metropolitan-district-council/walsall,WC81-734,30/06/2017,Adult Social Care,CHARTER CARE,21/06/2017,"53,723.02",73372-DOMICILIARY CARE,OP COMMISSIONING,Third Party Payments,Revenue
Walsall Council,http://opendatacommunities.org/id/metropolitan-district-council/walsall,WC81-735,30/06/2017,Adult Social Care,CHASEVIEW CARE HOME,27/06/2017,"1,800.00",73373-RESIDENTIAL & NURSING CARE PLACEMENTS,OP COMMISSIONING,Third Party Payments,Revenue
Walsall Council,http://opendatacommunities.org/id/metropolitan-district-council/walsall,WC81-736,30/06/2017,Adult Social Care,CHERISH HOME CARE,20/06/2017,351.00,73372-DOMICILIARY CARE,OP COMMISSIONING,Third Party Payments,Revenue
Walsall Council,http://opendatacommunities.org/id/metropolitan-district-council/walsall,WC81-737,30/06/2017,Adult Social Care,CHERISH HOME CARE,20/06/2017,390.00,73372-DOMICILIARY CARE,OP COMMISSIONING,Third Party Payments,Revenue
Walsall Council,http://opendatacommunities.org/id/metropolitan-district-council/walsall,WC81-738,30/06/2017,Adult Social Care,CHERISH HOME CARE,20/06/2017,510.25,73372-DOMICILIARY CARE,OP COMMISSIONING,Third Party Payments,Revenue
Walsall Council,http://opendatacommunities.org/id/metropolitan-district-council/walsall,WC81-739,30/06/2017,Adult Social Care,CHERISH HOME CARE,20/06/2017,702.00,73372-DOMICILIARY CARE,OP COMMISSIONING,Third Party Payments,Revenue
Walsall Council,http://opendatacommunities.org/id/metropolitan-district-council/walsall,WC81-740,30/06/2017,Adult Social Care,CHERISH HOME CARE,20/06/2017,728.00,73372-DOMICILIARY CARE,PD COMMISSIONING,Third Party Payments,Revenue
Walsall Council,http://opendatacommunities.org/id/metropolitan-district-council/walsall,WC81-741,30/06/2017,Adult Social Care,CHERISH HOME CARE,20/06/2017,728.00,73372-DOMICILIARY CARE,OP COMMISSIONING,Third Party Payments,Revenue
Walsall Council,http://opendatacommunities.org/id/metropolitan-district-council/walsall,WC81-742,30/06/2017,Adult Social Care,CHERISH HOME CARE,20/06/2017,910.00,73372-DOMICILIARY CARE,OP COMMISSIONING,Third Party Payments,Revenue
Walsall Council,http://opendatacommunities.org/id/metropolitan-district-council/walsall,WC81-743,30/06/2017,Adult Social Care,CHERISH HOME CARE,20/06/2017,"1,274.00",73372-DOMICILIARY CARE,OP COMMISSIONING,Third Party Payments,Revenue
Walsall Council,http://opendatacommunities.org/id/metropolitan-district-council/walsall,WC81-744,30/06/2017,Adult Social Care,CHERISH HOME CARE,20/06/2017,"1,638.00",73372-DOMICILIARY CARE,OP COMMISSIONING,Third Party Payments,Revenue
Walsall Council,http://opendatacommunities.org/id/metropolitan-district-council/walsall,WC81-745,30/06/2017,Adult Social Care,REDACTED,14/06/2017,"2,037.00",76422-DIRECT PAYMENTS TO SOCIAL SERVICES CLIENTS,LD COMMISSIONING,Transfer Payments,Revenue
Walsall Council,http://opendatacommunities.org/id/metropolitan-district-council/walsall,WC81-746,30/06/2017,Childrens,CHILD AUTISM UK,16/06/2017,749.85,66502-TOP UP FUNDING -GRANTS TO SCHOOLS,INDEPENDENT PROVIDERS - SPECIAL & AP,Third Party Payments,Revenue
Walsall Council,http://opendatacommunities.org/id/metropolitan-district-council/walsall,WC81-747,30/06/2017,Childrens,CHILD AUTISM UK,02/06/2017,797.21,66502-TOP UP FUNDING -GRANTS TO SCHOOLS,INDEPENDENT PROVIDERS - SPECIAL & AP,Third Party Payments,Revenue
Walsall Council,http://opendatacommunities.org/id/metropolitan-district-council/walsall,WC81-748,30/06/2017,Childrens,CHILD AUTISM UK,09/06/2017,849.51,66502-TOP UP FUNDING -GRANTS TO SCHOOLS,INDEPENDENT PROVIDERS - SPECIAL & AP,Third Party Payments,Revenue
Walsall Council,http://opendatacommunities.org/id/metropolitan-district-council/walsall,WC81-749,30/06/2017,Childrens,CHILDREN ALWAYS FIRST LTD,19/06/2017,"1,946.00",74037-INDEPENDENT FOSTER CARE-OTH AGENCY PROVISION,EXTERNAL FOSTER CARE PROVISION,Third Party Payments,Revenue
Walsall Council,http://opendatacommunities.org/id/metropolitan-district-council/walsall,WC81-750,30/06/2017,Childrens,CHILDREN ALWAYS FIRST LTD,19/06/2017,"2,566.64",74037-INDEPENDENT FOSTER CARE-OTH AGENCY PROVISION,EXTERNAL FOSTER CARE PROVISION,Third Party Payments,Revenue
Walsall Council,http://opendatacommunities.org/id/metropolitan-district-council/walsall,WC81-751,30/06/2017,Childrens,CHILDREN ALWAYS FIRST LTD,19/06/2017,"2,646.00",74037-INDEPENDENT FOSTER CARE-OTH AGENCY PROVISION,EXTERNAL FOSTER CARE PROVISION,Third Party Payments,Revenue
Walsall Council,http://opendatacommunities.org/id/metropolitan-district-council/walsall,WC81-752,30/06/2017,Childrens,CHILDREN ALWAYS FIRST LTD,19/06/2017,"2,741.20",74037-INDEPENDENT FOSTER CARE-OTH AGENCY PROVISION,EXTERNAL FOSTER CARE PROVISION,Third Party Payments,Revenue
Walsall Council,http://opendatacommunities.org/id/metropolitan-district-council/walsall,WC81-753,30/06/2017,Childrens,CHILDREN ALWAYS FIRST LTD,19/06/2017,"2,741.20",74037-INDEPENDENT FOSTER CARE-OTH AGENCY PROVISION,EXTERNAL FOSTER CARE PROVISION,Third Party Payments,Revenue
Walsall Council,http://opendatacommunities.org/id/metropolitan-district-council/walsall,WC81-754,30/06/2017,Childrens,CHILDREN ALWAYS FIRST LTD,19/06/2017,"2,826.00",74037-INDEPENDENT FOSTER CARE-OTH AGENCY PROVISION,EXTERNAL FOSTER CARE PROVISION,Third Party Payments,Revenue
Walsall Council,http://opendatacommunities.org/id/metropolitan-district-council/walsall,WC81-755,30/06/2017,Childrens,CHILDREN ALWAYS FIRST LTD,19/06/2017,"2,952.00",74037-INDEPENDENT FOSTER CARE-OTH AGENCY PROVISION,EXTERNAL FOSTER CARE PROVISION,Third Party Payments,Revenue
Walsall Council,http://opendatacommunities.org/id/metropolitan-district-council/walsall,WC81-756,30/06/2017,Childrens,CHILDREN ALWAYS FIRST LTD,19/06/2017,"3,180.00",74037-INDEPENDENT FOSTER CARE-OTH AGENCY PROVISION,EXTERNAL FOSTER CARE PROVISION,Third Party Payments,Revenue
Walsall Council,http://opendatacommunities.org/id/metropolitan-district-council/walsall,WC81-757,30/06/2017,Childrens,CHILDREN WITH DISABILITIES TEAM,14/06/2017,270.00,42000-GAS-ENERGY COSTS,DIRECTLY COMMISSIONED NURSING SERVICES,Premises,Revenue
Walsall Council,http://opendatacommunities.org/id/metropolitan-district-council/walsall,WC81-758,30/06/2017,Adult Social Care,CHOICECARE 2000 LIMITED,21/06/2017,"3,108.64",73373-RESIDENTIAL & NURSING CARE PLACEMENTS,MH COMMISSIONING,Third Party Payments,Revenue
Walsall Council,http://opendatacommunities.org/id/metropolitan-district-council/walsall,WC81-759,30/06/2017,Adult Social Care,CHOICECARE 2000 LIMITED,21/06/2017,"3,272.72",73373-RESIDENTIAL & NURSING CARE PLACEMENTS,MH COMMISSIONING,Third Party Payments,Revenue
Walsall Council,http://opendatacommunities.org/id/metropolitan-district-council/walsall,WC81-760,30/06/2017,Adult Social Care,REDACTED,14/06/2017,"1,365.00",76422-DIRECT PAYMENTS TO SOCIAL SERVICES CLIENTS,OP COMMISSIONING,Transfer Payments,Revenue
Walsall Council,http://opendatacommunities.org/id/metropolitan-district-council/walsall,WC81-761,30/06/2017,Adult Social Care,REDACTED,14/06/2017,612.00,76422-DIRECT PAYMENTS TO SOCIAL SERVICES CLIENTS,PD COMMISSIONING,Transfer Payments,Revenue
Walsall Council,http://opendatacommunities.org/id/metropolitan-district-council/walsall,WC81-762,30/06/2017,Adult Social Care,REDACTED,14/06/2017,"2,790.00",76422-DIRECT PAYMENTS TO SOCIAL SERVICES CLIENTS,OP COMMISSIONING,Transfer Payments,Revenue
Walsall Council,http://opendatacommunities.org/id/metropolitan-district-council/walsall,WC81-763,30/06/2017,Childrens,REDACTED,06/06/2017,372.84,74509-SPECIAL GUARDIANSHIP ORDERS,ADOPTION ALLOWANCES,Transfer Payments,Revenue
Walsall Council,http://opendatacommunities.org/id/metropolitan-district-council/walsall,WC81-764,30/06/2017,Childrens,REDACTED,06/06/2017,372.88,74509-SPECIAL GUARDIANSHIP ORDERS,ADOPTION ALLOWANCES,Transfer Payments,Revenue
Walsall Council,http://opendatacommunities.org/id/metropolitan-district-council/walsall,WC81-765,30/06/2017,Adult Social Care,REDACTED,14/06/2017,"1,077.70",76422-DIRECT PAYMENTS TO SOCIAL SERVICES CLIENTS,PD COMMISSIONING,Transfer Payments,Revenue
Walsall Council,http://opendatacommunities.org/id/metropolitan-district-council/walsall,WC81-766,30/06/2017,Adult Social Care,REDACTED,14/06/2017,"1,570.00",76422-DIRECT PAYMENTS TO SOCIAL SERVICES CLIENTS,LD COMMISSIONING,Transfer Payments,Revenue
Walsall Council,http://opendatacommunities.org/id/metropolitan-district-council/walsall,WC81-767,30/06/2017,Adult Social Care,REDACTED,14/06/2017,735.00,76422-DIRECT PAYMENTS TO SOCIAL SERVICES CLIENTS,OP COMMISSIONING,Transfer Payments,Revenue
Walsall Council,http://opendatacommunities.org/id/metropolitan-district-council/walsall,WC81-768,30/06/2017,Childrens,REDACTED,19/06/2017,9.24,60006-NEW-FURNITURE & EQUIPMENT,INTERNAL FOSTER CARE PROVISION,Supplies & Services,Revenue
Walsall Council,http://opendatacommunities.org/id/metropolitan-district-council/walsall,WC81-769,30/06/2017,Childrens,REDACTED,19/06/2017,345.24,74508-INTERNAL FOSTER CARERS-CARER FEES,INTERNAL FOSTER CARE PROVISION,Transfer Payments,Revenue
Walsall Council,http://opendatacommunities.org/id/metropolitan-district-council/walsall,WC81-770,30/06/2017,Childrens,REDACTED,19/06/2017,650.92,74501-MAINTENANCE ALLOWANCE-FOSTER CARERS,INTERNAL FOSTER CARE PROVISION,Transfer Payments,Revenue
Walsall Council,http://opendatacommunities.org/id/metropolitan-district-council/walsall,WC81-771,30/06/2017,Childrens,CHUBB ELECTRONIC SECURITY LTD,15/06/2017,400.55,01006-SITE WORKS MAIN CONTRACTORS,CFR 1010 RUSHALL PRIMARY/EDC ALTERATIONS,Capital,Capital
Walsall Council,http://opendatacommunities.org/id/metropolitan-district-council/walsall,WC81-772,30/06/2017,Change and Governance,CHUBB FIRE & SECURITY LTD,28/06/2017,432.42,"40000-REPAIRS,ALTERATIONS & MAINTENANCE-PREM",CENTRALISED MAINTENANCE,Premises,Revenue
Walsall Council,http://opendatacommunities.org/id/metropolitan-district-council/walsall,WC81-773,30/06/2017,Change and Governance,CHUBB FIRE & SECURITY LTD,28/06/2017,572.25,"40000-REPAIRS,ALTERATIONS & MAINTENANCE-PREM",CENTRALISED MAINTENANCE,Premises,Revenue
Walsall Council,http://opendatacommunities.org/id/metropolitan-district-council/walsall,WC81-774,30/06/2017,Childrens,CHUBB FIRE & SECURITY LTD,22/06/2017,600.00,60006-NEW-FURNITURE & EQUIPMENT,SAFEGUARDING & FAMILY SUPPORT,Supplies & Services,Revenue
Walsall Council,http://opendatacommunities.org/id/metropolitan-district-council/walsall,WC81-775,30/06/2017,Change and Governance,CHUBB FIRE & SECURITY LTD,28/06/2017,964.00,"40000-REPAIRS,ALTERATIONS & MAINTENANCE-PREM",CENTRALISED MAINTENANCE,Premises,Revenue
Walsall Council,http://opendatacommunities.org/id/metropolitan-district-council/walsall,WC81-776,30/06/2017,Change and Governance,CHUBB FIRE & SECURITY LTD,28/06/2017,"1,736.41","40000-REPAIRS,ALTERATIONS & MAINTENANCE-PREM",CENTRAL OFFICE ACCOMMODATION,Premises,Revenue
Walsall Council,http://opendatacommunities.org/id/metropolitan-district-council/walsall,WC81-777,30/06/2017,Change and Governance,CHUBB FIRE & SECURITY LTD,26/06/2017,"3,202.80","40000-REPAIRS,ALTERATIONS & MAINTENANCE-PREM",CENTRAL OFFICE ACCOMMODATION,Premises,Revenue
Walsall Council,http://opendatacommunities.org/id/metropolitan-district-council/walsall,WC81-778,30/06/2017,Change and Governance,CHUBB FIRE & SECURITY LTD,26/06/2017,"4,578.78","40000-REPAIRS,ALTERATIONS & MAINTENANCE-PREM",CENTRAL OFFICE ACCOMMODATION,Premises,Revenue
